Service Area Categorisation,Service Division Categorisation,Responsible Unit,Expenses Type,Expenses sub-Type,Detailed Expenses Type,Date,Transaction Number,Amount,Capital/ Revenue,Supplier Name
Cultural Env Reg&Plan Services,Economic Development,(LABGI)-BUSINESS SUPPORT,Supplies & Services,Services,General Office Expenses,10/1/2010,1,8950,Revenue,MERTON CHAMBER OF COMMERCE
,,2001/02 Adaptations,"New Const, Conv & Renvtion",Ste Wrk-Rn & Mt-Main Contractr,Ste Wrk-Rn & Mt-Main Contractr,10/5/2010,2,8584.76,Capital,TBS ADAPTATIONS LTD
,,2001/02 Adaptations,"New Const, Conv & Renvtion",Ste Wrk-Rn & Mt-Main Contractr,Ste Wrk-Rn & Mt-Main Contractr,10/5/2010,3,3888.51,Capital,TBS ADAPTATIONS LTD
,,2001/02 Adaptations,"New Const, Conv & Renvtion",Ste Wrk-Rn & Mt-Main Contractr,Ste Wrk-Rn & Mt-Main Contractr,10/5/2010,4,2111.91,Capital,TBS ADAPTATIONS LTD
,,MORTLAKE DRIVE MITCHAM,Fund Balances,,Rechble Works - Exp,10/20/2010,5,603,Revenue,EDF ENERGY NETWORKS LTD.
Cultural Env Reg&Plan Services,Economic Development,Weir Rd - fac un,Premises Related Expenditure,RepairsAlterations&MtceOfBldgs,Rechargeable to tenants,10/1/2010,6,775.22,Revenue,DYNAMIQ CLEANING LIMITED
Cultural Env Reg&Plan Services,Economic Development,Weir Rd - fac un,Premises Related Expenditure,RepairsAlterations&MtceOfBldgs,Rechargeable to tenants,10/27/2010,7,775.22,Revenue,DYNAMIQ CLEANING LIMITED
Housing Services,Special Services,Abbey Orchard Estate (Swain's,Premises Related Expenditure,Energy Costs,Gas (incl. Butane),10/20/2010,8,5148.77,Revenue,KENT COUNTY COUNCIL COMM SVCS
Housing Services,Special Services,Abbey Orchard Estate (Swain's,Premises Related Expenditure,Energy Costs,Gas (incl. Butane),10/11/2010,9,3109.9,Revenue,KENT COUNTY COUNCIL COMM SVCS
Housing Services,Special Services,Abbey Orchard Estate (Swain's,Premises Related Expenditure,Energy Costs,Gas (incl. Butane),10/11/2010,10,1914.21,Revenue,KENT COUNTY COUNCIL COMM SVCS
Childrens & Education Services,Non-Delegated School Grants,ABG Education Health Partnshps,Supplies & Services,Expenses,Conferences,10/15/2010,11,950,Revenue,REDACTED
Childrens & Education Services,Non-Delegated School Grants,ABG Secondary Strategy T&L Fou,Supplies & Services,Expenses,Conferences,10/28/2010,12,500,Revenue,REDACTED
Childrens & Education Services,Non-Delegated School Grants,ABG SEN ABG SEN Head of Serv,Supplies & Services,Services,Consultants,10/29/2010,13,2630,Revenue,DAN GRANT ASSOCIATES LTD
Adult Social Care,Other Adult Services,Access and Engagement,Third Party Payments,Private Contractors,Miscellaneous Hired Services,10/18/2010,14,41048,Revenue,CRI
Adult Social Care,Other Adult Services,Access and Engagement,Third Party Payments,Private Contractors,Miscellaneous Hired Services,10/21/2010,15,1856.25,Revenue,COMM.DRUG SERV.FOR SOUTHLONDON
,,Access Works,"New Const, Conv & Renvtion",Dsgn/Sprvsn-Ext Cnsltcy Fees,Dsgn/Sprvsn-Ext Cnsltcy Fees,10/29/2010,16,5123.5,Capital,EC HARRIS LLP
Central Services,Fully rechargeable Overheads,Accounts Receivable,Third Party Payments,Private Contractors,Miscellaneous Agency Services,10/22/2010,17,740,Revenue,COMMERCIAL CREDIT CO
Central Services,Fully rechargeable Overheads,Accounts Receivable,Supplies & Services,Services,Commission Fees,10/25/2010,18,548.31,Revenue,COMMERCIAL COLLECTION SERVICES
,,Adventure Playground,"New Const, Conv & Renvtion",Ste Wrks-Nw Bld-Main Cntrct,Ste Wrks-Nw Bld-Main Cntrct,10/25/2010,19,17983.35,Capital,THEORIES LANDSCAPES
Childrens & Education Services,Adult Education,AE-Adult Education Main,Supplies & Services,Comms and Computing,Telephones - Gen-Creditors,10/13/2010,20,6824,Revenue,SYNETRIX LIMITED
Childrens & Education Services,Adult Education,AE-Adult Education Main,Supplies & Services,Services,Consultants,10/15/2010,21,5180.8,Revenue,TCMD LTD
Childrens & Education Services,Adult Education,AE-Adult Education Main,Premises Related Expenditure,Energy Costs,Gas (incl. Butane),10/18/2010,22,3333.47,Revenue,KENT COUNTY COUNCIL COMM SVCS
Childrens & Education Services,Adult Education,AE-Adult Education Main,Premises Related Expenditure,Cleaning and Domestic Supplies,Cleaning Services,10/28/2010,23,3216.17,Revenue,JULIUS RUTHERFOORD & CO LTD
Childrens & Education Services,Adult Education,AE-Adult Education Main,Supplies & Services,Services,Misc Advertising/Publicity,10/13/2010,24,2835,Revenue,HOTCOURSES
Childrens & Education Services,Adult Education,AE-Adult Education Main,Supplies & Services,Services,Misc Advertising/Publicity,10/11/2010,25,2465,Revenue,HOTCOURSES
Childrens & Education Services,Adult Education,AE-Adult Education Main,Supplies & Services,Equip Furniture/Materials,Equipment - R & M,10/11/2010,26,2400,Revenue,PJD SALES
Childrens & Education Services,Adult Education,AE-Adult Education Main,Supplies & Services,Comms and Computing,Computer Software,10/28/2010,27,2030,Revenue,TIME2STUDY
Childrens & Education Services,Adult Education,AE-Adult Education Main,Supplies & Services,Services,Misc Advertising/Publicity,10/21/2010,28,2018,Revenue,NEWSQUEST (LONDON)LTD
Childrens & Education Services,Adult Education,AE-Adult Education Main,Supplies & Services,Comms and Computing,Software Licences,10/22/2010,29,1320,Revenue,HOSTING FINESSE
Childrens & Education Services,Adult Education,AE-Adult Education Main,Supplies & Services,Equip Furniture/Materials,Materials,10/21/2010,30,1226.99,Revenue,PEARSON EDUCATION LTD.
Childrens & Education Services,Adult Education,AE-Adult Education Main,Employees,Indirect Employee Expenses,Post Entry training-creditors,10/20/2010,31,995,Revenue,CHARTERED MANAGEMENT INSTITUTE
Childrens & Education Services,Adult Education,AE-Adult Education Main,Supplies & Services,Comms and Computing,Postage - General,10/11/2010,32,800,Revenue,NEOPOST FINANCE LIMITED
Childrens & Education Services,Adult Education,AE-Adult Education Main,Supplies & Services,Miscellaneous Expenses,Examination Fees,10/7/2010,33,790,Revenue,UCLES
Childrens & Education Services,Adult Education,AE-Adult Education Main,Supplies & Services,Services,Misc Advertising/Publicity,10/21/2010,34,520,Revenue,NEWSQUEST (LONDON)LTD
Childrens & Education Services,Adult Education,AE-Adult Education Main,Supplies & Services,Comms and Computing,Telephones - Gen-Creditors,10/1/2010,35,512.25,Revenue,SCS
Childrens & Education Services,Adult Education,AE-Craft,Supplies & Services,Equip Furniture/Materials,Materials,10/18/2010,36,611.19,Revenue,REDACTED
Childrens & Education Services,Adult Education,AE-Full cost,Supplies & Services,Equip Furniture/Materials,Contract Catering,10/18/2010,37,598.83,Revenue,BFS GROUP LIMITED - (3663)
Childrens & Education Services,Adult Education,AE-Mind & Body,Supplies & Services,Equip Furniture/Materials,Materials,10/18/2010,38,536.09,Revenue,ESSENTIALLY YOURS LTD
Cultural Env Reg&Plan Services,Community Development (Plg),African Educ Cultural & Health,Supplies & Services,Grants and Subscriptions,Grants - Running Expenses,10/5/2010,39,5000,Revenue,A.E.C.H.O
,,Agency Hays Contract A/c,Fund Balances,,Payments X,10/13/2010,40,443815.45,Revenue,HAYS EXECUTIVE
,,Agency Hays Contract A/c,Fund Balances,,Payments X,10/18/2010,41,254828.71,Revenue,HAYS EXECUTIVE
,,Agency Hays Contract A/c,Fund Balances,,Payments X,10/28/2010,42,118700.22,Revenue,HAYS EXECUTIVE
Childrens & Education Services,Other Ch's & Family Services,AHDC - (Disabled Children),Third Party Payments,Private Contractors,Miscellaneous Agency Services,10/5/2010,43,8641.41,Revenue,MERTON MENCAP (PROJECT THE TC)
Childrens & Education Services,Other Ch's & Family Services,AHDC - (Disabled Children),Third Party Payments,Private Contractors,Miscellaneous Agency Services,10/5/2010,44,4424.49,Revenue,MERTON MENCAP (PROJECT THE TC)
Childrens & Education Services,Other Ch's & Family Services,AHDC - (Disabled Children),Third Party Payments,Private Contractors,Miscellaneous Agency Services,10/21/2010,45,3582,Revenue,GENERATE
,,Alley Gating Sch - Fly Tipping,"New Const, Conv & Renvtion",Ste Wrk-Rn & Mt-Main Contractr,Ste Wrk-Rn & Mt-Main Contractr,10/28/2010,46,1015.8,Capital,PJ HARVEY & CO LTD
Childrens & Education Services,Assuring Access To Schools,Alt Education - Pupil Budget,Third Party Payments,Private Contractors,Miscellaneous Agency Services,10/14/2010,47,3015,Revenue,HARRISON ALLEN EDUCATION SVCES
Childrens & Education Services,Assuring Access To Schools,Alt Education - Pupil Budget,Supplies & Services,Services,Bought in Teaching Services,10/1/2010,48,2924,Revenue,IMMANUEL HOUSE-COMM TRAINING
Childrens & Education Services,Assuring Access To Schools,Alt Education - Pupil Budget,Supplies & Services,Services,Bought in Teaching Services,10/1/2010,49,1624,Revenue,IMMANUEL HOUSE-COMM TRAINING
Childrens & Education Services,Assuring Access To Schools,Alt Education - Pupil Budget,Supplies & Services,Services,Bought in Teaching Services,10/28/2010,50,734,Revenue,NACRO SERVICES SUSSEX
,,Annual Season Ticket Loans,Fund Balances,,Payments X,10/13/2010,51,856,Revenue,LONDON UNDERGROUND LTD
,,Annual Season Ticket Loans,Fund Balances,,Payments X,10/11/2010,52,856,Revenue,TRANSPORT FOR LONDON
,,Annual Season Ticket Loans,Fund Balances,,Payments X,10/21/2010,53,664,Revenue,LONDON UNDERGROUND LTD
Cultural Env Reg&Plan Services,Comm. Safety (Crime Reduction),Anti-Social Behaviour,Supplies & Services,Services,Misc Advertising/Publicity,10/19/2010,54,3400,Revenue,VANTAGE TECHNOLOGIES LIMITED
,,AoT Rowan High Schl,Fund Balances,,Payments X,10/13/2010,55,23540,Revenue,SIMON PURCELL ASSOCIATES LTD
,,Aragon expansion,"New Const, Conv & Renvtion",Ste Wrk-Rn & Mt-Main Contractr,Ste Wrk-Rn & Mt-Main Contractr,10/11/2010,56,76051.78,Capital,SHERMAN CONSTRUCTION
Cultural Env Reg&Plan Services,SMSS (Cult),Arts  Dev  Service Support,Supplies & Services,Equip Furniture/Materials,Equipment - R & M,10/20/2010,57,500,Revenue,PROSCREENS
Adult Social Care,Asylum seekers,AS Child - Res Care (Grant),Third Party Payments,Private Contractors,Miscellaneous Agency Services,10/4/2010,58,2600,Revenue,LIVINGSTONE SUPPORTED HOUSING
Adult Social Care,Asylum seekers,AS Child - Res Care (Grant),Third Party Payments,Private Contractors,Supported Lodgings,10/6/2010,59,700,Revenue,REDACTED
Adult Social Care,Asylum seekers,AS Child - Res Care (Grant),Third Party Payments,Private Contractors,Miscellaneous Agency Services,10/21/2010,60,548.57,Revenue,KEYA SUPPORT LTD
Adult Social Care,Asylum seekers,AS Child Res Care  (No Grant),Third Party Payments,Private Contractors,Miscellaneous Agency Services,10/20/2010,61,1500,Revenue,LIVINGSTONE SUPPORTED HOUSING
Adult Social Care,Asylum seekers,AS Child Res Care  (No Grant),Third Party Payments,Private Contractors,Miscellaneous Agency Services,10/20/2010,62,1200,Revenue,LIVINGSTONE SUPPORTED HOUSING
Adult Social Care,Asylum seekers,AS Child Res Care  (No Grant),Third Party Payments,Private Contractors,Miscellaneous Agency Services,10/25/2010,63,814.28,Revenue,LIVINGSTONE SUPPORTED HOUSING
Adult Social Care,Asylum seekers,AS Child Res Care  (No Grant),Third Party Payments,Private Contractors,Private Tenant/Landlord,10/25/2010,64,784.56,Revenue,REDACTED
Adult Social Care,Asylum seekers,AS Child Res Care  (No Grant),Third Party Payments,Private Contractors,Miscellaneous Agency Services,10/4/2010,65,780,Revenue,RBS INVOICE FINANCE LIMITED
Adult Social Care,Asylum seekers,AS Child Res Care  (No Grant),Third Party Payments,Private Contractors,Supported Lodgings,10/21/2010,66,750,Revenue,REDACTED
Adult Social Care,Asylum seekers,AS Child Res Care  (No Grant),Third Party Payments,Private Contractors,Miscellaneous Agency Services,10/4/2010,67,728.57,Revenue,RBS INVOICE FINANCE LIMITED
Adult Social Care,Asylum seekers,AS Child Res Care  (No Grant),Third Party Payments,Private Contractors,Private Tenant/Landlord,10/21/2010,68,692.28,Revenue,REDACTED
Adult Social Care,Asylum seekers,AS Child Res Care  (No Grant),Third Party Payments,Private Contractors,Private Tenant/Landlord,10/20/2010,69,600,Revenue,REDACTED
Adult Social Care,Asylum seekers,AS Child Res Care  (No Grant),Third Party Payments,Private Contractors,Supported Lodgings,10/7/2010,70,600,Revenue,REDACTED
,,Asbestos Risk Assessment Works,"New Const, Conv & Renvtion",Ste Wrk-Rn & Mt-Main Contractr,Ste Wrk-Rn & Mt-Main Contractr,10/27/2010,71,5985,Capital,EUROPEAN ASBESTOS SERVICES
,,Asbestos Risk Assessment Works,"New Const, Conv & Renvtion",Ste Wrk-Rn & Mt-Main Contractr,Ste Wrk-Rn & Mt-Main Contractr,10/19/2010,72,800,Capital,AIR SURVEYS  LIMITED
,,Assessment Framework fr Merton,"New Const, Conv & Renvtion",Ste Wrk-Rn & Mt-Main Contractr,Ste Wrk-Rn & Mt-Main Contractr,10/20/2010,73,7400,Capital,REDACTED
,,Audit Software,Other Capital Expenditure,Misc Cap Expenditure,Misc Cap Expenditure,10/19/2010,74,950,Capital,MAGIQUE GALILEO SOFTWARE LTD
,,Be A Brighter Biker,Other Capital Expenditure,Misc Cap Expenditure,Misc Cap Expenditure,10/14/2010,75,2525.1,Capital,PREMIER RIDER TRAINING
Housing Services,Homelessness,Bed & Breakfast - accomm,Third Party Payments,Private Contractors,Miscellaneous Agency Services,10/18/2010,76,4700,Revenue,EURO HOTELS (CROYDON COURT)LTD
Housing Services,Homelessness,Bed & Breakfast - accomm,Third Party Payments,Private Contractors,Miscellaneous Agency Services,10/7/2010,77,1985,Revenue,EURO HOTELS (CROYDON COURT)LTD
Housing Services,Homelessness,Bed & Breakfast - accomm,Third Party Payments,Private Contractors,Miscellaneous Agency Services,10/11/2010,78,775,Revenue,THE STANTHORPE HOTEL
Housing Services,Homelessness,Bed & Breakfast - accomm,Third Party Payments,Private Contractors,Miscellaneous Agency Services,10/22/2010,79,750,Revenue,THE STANTHORPE HOTEL
,,Benedict expansion,"New Const, Conv & Renvtion",Dsgn/Sprvsn-Other Expenses,Dsgn/Sprvsn-Other Expenses,10/25/2010,80,31595,Capital,THAMES WATER UTILITIES
,,Benedict expansion,"New Const, Conv & Renvtion",Dsgn/Sprvsn-Other Expenses,Dsgn/Sprvsn-Other Expenses,10/21/2010,81,6718.67,Capital,EDF ENERGY NETWORKS
Housing Services,Housing Benefit Administration,Benefits Administration,Supplies & Services,Comms and Computing,Computer Purchases - Misc,10/14/2010,82,15430,Revenue,CIVICA UK LIMITED
Housing Services,Housing Benefit Administration,Benefits Administration,Supplies & Services,Comms and Computing,Computer Purchases - Misc,10/14/2010,83,3000,Revenue,CIVICA UK LIMITED
Housing Services,Housing Benefit Administration,Benefits Administration,Supplies & Services,Comms and Computing,Computer Purchases - Misc,10/14/2010,84,2600,Revenue,CIVICA UK LIMITED
Housing Services,Housing Benefit Administration,Benefits Administration,Supplies & Services,Comms and Computing,Computer Purchases - Misc,10/5/2010,85,1000,Revenue,CIVICA UK LIMITED
Housing Services,Housing Benefit Administration,Benefits Administration,Supplies & Services,Comms and Computing,Computer Purchases - Misc,10/1/2010,86,900,Revenue,CIVICA UK LIMITED
Housing Services,Housing Benefit Administration,Benefits Administration,Supplies & Services,Comms and Computing,Other IT Expenditure,10/18/2010,87,837.6,Revenue,CIVICA UK LIMITED
Housing Services,Housing Benefit Administration,Benefits Administration,Employees,Direct Employee Expenses,Agency Staff & Casual Paymts,10/14/2010,88,649.38,Revenue,THE SYNERGY GROUP LIMITED
Housing Services,Housing Benefit Administration,Benefits Administration,Employees,Direct Employee Expenses,Agency Staff & Casual Paymts,10/14/2010,89,649.38,Revenue,THE SYNERGY GROUP LIMITED
Housing Services,Housing Benefit Administration,Benefits Administration,Employees,Direct Employee Expenses,Agency Staff & Casual Paymts,10/21/2010,90,649.38,Revenue,THE SYNERGY GROUP LIMITED
Housing Services,Housing Benefit Administration,Benefits Administration,Employees,Direct Employee Expenses,Agency Staff & Casual Paymts,10/21/2010,91,641.16,Revenue,THE SYNERGY GROUP LIMITED
Housing Services,Housing Benefit Administration,Benefits Administration,Employees,Direct Employee Expenses,Agency Staff & Casual Paymts,10/28/2010,92,641.16,Revenue,THE SYNERGY GROUP LIMITED
Housing Services,Housing Benefit Administration,Benefits Administration,Employees,Direct Employee Expenses,Agency Staff & Casual Paymts,10/7/2010,93,616.5,Revenue,THE SYNERGY GROUP LIMITED
Housing Services,Housing Benefit Administration,Benefits Administration,Employees,Direct Employee Expenses,Agency Staff & Casual Paymts,10/7/2010,94,616.5,Revenue,THE SYNERGY GROUP LIMITED
Housing Services,Housing Benefit Administration,Benefits Administration,Employees,Direct Employee Expenses,Agency Staff & Casual Paymts,10/14/2010,95,600.06,Revenue,THE SYNERGY GROUP LIMITED
Housing Services,Housing Benefit Administration,Benefits Administration,Employees,Direct Employee Expenses,Agency Staff & Casual Paymts,10/21/2010,96,600.06,Revenue,THE SYNERGY GROUP LIMITED
Housing Services,Housing Benefit Administration,Benefits Administration,Employees,Direct Employee Expenses,Agency Staff & Casual Paymts,10/28/2010,97,600.06,Revenue,THE SYNERGY GROUP LIMITED
Housing Services,Housing Benefit Administration,Benefits Administration,Employees,Direct Employee Expenses,Agency Staff & Casual Paymts,10/21/2010,98,583.62,Revenue,THE SYNERGY GROUP LIMITED
Housing Services,Housing Benefit Administration,Benefits Administration,Employees,Direct Employee Expenses,Agency Staff & Casual Paymts,10/14/2010,99,579.51,Revenue,THE SYNERGY GROUP LIMITED
Housing Services,Housing Benefit Administration,Benefits Administration,Employees,Direct Employee Expenses,Agency Staff & Casual Paymts,10/7/2010,100,563.07,Revenue,THE SYNERGY GROUP LIMITED
Housing Services,Housing Benefit Administration,Benefits Administration,Employees,Direct Employee Expenses,Agency Staff & Casual Paymts,10/28/2010,101,517.86,Revenue,THE SYNERGY GROUP LIMITED
,,Big Lottery Play Areas,"New Const, Conv & Renvtion",Ste Wrk-Rn & Mt-Main Contractr,Ste Wrk-Rn & Mt-Main Contractr,10/18/2010,102,2389.5,Capital,BEACH COMMUNICATIONS LTD
,,Bond,"New Const, Conv & Renvtion",Ste Wrk-Rn & Mt-Main Contractr,Ste Wrk-Rn & Mt-Main Contractr,10/18/2010,103,53176.2,Capital,SALTASH ENTERPRISES LTD
,,Borough Schemes Acc,"New Const, Conv & Renvtion",Ste Wrk-Rn & Mt-Main Contractr,Ste Wrk-Rn & Mt-Main Contractr,10/11/2010,104,24545,Capital,WS ATKINS (SERVICES) LIMITED
,,Borough Schemes Acc,Other Capital Expenditure,Misc Cap Expenditure,Misc Cap Expenditure,10/18/2010,105,6776.4,Capital,HARRISON GROUP ENVIRONMENTAL
,,Bridge Repairs General,Other Capital Expenditure,Misc Cap Expenditure,Misc Cap Expenditure,10/21/2010,106,630.7,Capital,ABS WASTEWATER TECHNOLOGY LTD
,,Budgets,"New Const, Conv & Renvtion",Ste Wrk-Rn & Mt-Main Contractr,Ste Wrk-Rn & Mt-Main Contractr,10/12/2010,107,10008.66,Capital,FM CONWAY LTD
,,Bushey Rd with Grand Drive,"New Const, Conv & Renvtion",Dsgn/Sprvsn-Other Expenses,Dsgn/Sprvsn-Other Expenses,10/13/2010,108,2940,Capital,RBS COMM SERVICES LTD
,,Bushey Road Bridge,Other Capital Expenditure,Misc Cap Expenditure,Misc Cap Expenditure,10/28/2010,109,34391.88,Capital,FM CONWAY LTD
Central Services,Fully rechargeable Overheads,Business Systems - Deptl Supt,Supplies & Services,Comms and Computing,Computer Software,10/19/2010,110,755,Revenue,NCC SERVICES LIMITED
Adult Social Care,Adult u65 Phys/Sensory Impair,C & H Buildings,Premises Related Expenditure,RepairsAlterations&MtceOfBldgs,DDM - Mechanical,10/19/2010,111,3752.35,Revenue,COFELY LIMITED
Adult Social Care,Adult u65 Phys/Sensory Impair,C & H Buildings,Premises Related Expenditure,RepairsAlterations&MtceOfBldgs,DDM - General Building,10/25/2010,112,861.87,Revenue,LOVELL LTD
Adult Social Care,Adult u65 Phys/Sensory Impair,C & H Buildings,Premises Related Expenditure,RepairsAlterations&MtceOfBldgs,DDM - Electrical,10/15/2010,113,806.34,Revenue,COFELY LIMITED
Adult Social Care,Adult u65 Phys/Sensory Impair,C & H Buildings,Premises Related Expenditure,RepairsAlterations&MtceOfBldgs,DDM - Electrical,10/27/2010,114,795.96,Revenue,COFELY LIMITED
,,Car Loans Account,Fund Balances,,Loan Advances,10/13/2010,115,8408.4,Revenue,TIMBERLEY LANE MOTORS
Housing Services,Private Sector Housing Renewal,Care/Repair Hanover HA,Supplies & Services,Grants and Subscriptions,Grants,10/13/2010,116,57000,Revenue,AGE CONCERN (MERTON)
,,Cash Received in Error Refunds,Fund Balances,,Amount Refunded,10/6/2010,117,31967,Revenue,CROYDON COUNCIL
,,Cash Received in Error Refunds,Fund Balances,,Amount Refunded,10/14/2010,118,6682.38,Revenue,MOAT HOMES LIMITED
,,Cash Received in Error Refunds,Fund Balances,,Amount Refunded,10/14/2010,119,3877.5,Revenue,GMTV
,,Cash Received in Error Refunds,Fund Balances,,Amount Refunded,10/6/2010,120,3686.57,Revenue,LABETTS BLINDS & CONTRACT FURN
,,Cash Received in Error Refunds,Fund Balances,,Amount Refunded,10/6/2010,121,2564.29,Revenue,REDACTED
,,Cash Received in Error Refunds,Fund Balances,,Amount Refunded,10/14/2010,122,890,Revenue,ARTHUR ROAD DENTAL PRACTICE
,,Cash Received in Error Refunds,Fund Balances,,Amount Refunded,10/6/2010,123,843.54,Revenue,REDACTED
Adult Social Care,Other Adult Services,CC Grants Transport - VO,Supplies & Services,Grants and Subscriptions,Grants - Running Expenses,10/14/2010,124,5000,Revenue,SOUTH LONDON REFUGEE ASSOCIATI
Adult Social Care,Other Adult Services,CC Small Grants - VO,Supplies & Services,Grants and Subscriptions,Grants - Running Expenses,10/7/2010,125,53766.67,Revenue,CARERS SUPPORT MERTON
Adult Social Care,Other Adult Services,CC Small Grants - VO,Supplies & Services,Grants and Subscriptions,Grants - Running Expenses,10/7/2010,126,5000,Revenue,VOLUNTEER CENTRE MERTON
Adult Social Care,Other Adult Services,CC Small Grants - VO,Supplies & Services,Grants and Subscriptions,Grants - Running Expenses,10/21/2010,127,2500,Revenue,COMM.DRUG SERV.FOR SOUTHLONDON
Cultural Env Reg&Plan Services,Comm. Safety (Crime Reduction),CCTV,Supplies & Services,Comms and Computing,Communications,10/5/2010,128,17413.2,Revenue,BT REDCARE
Cultural Env Reg&Plan Services,Comm. Safety (Crime Reduction),CCTV,Supplies & Services,Equip Furniture/Materials,Equipment - R & M,10/13/2010,129,9715.4,Revenue,BEACH COMMUNICATIONS LTD
Cultural Env Reg&Plan Services,Comm. Safety (Crime Reduction),CCTV,Supplies & Services,Equip Furniture/Materials,Equipment - R & M,10/13/2010,130,9715.4,Revenue,BEACH COMMUNICATIONS LTD
Cultural Env Reg&Plan Services,Comm. Safety (Crime Reduction),CCTV,Supplies & Services,Comms and Computing,Communications,10/13/2010,131,2566.47,Revenue,QUADRANT SECURITY GROUP LTD.
Cultural Env Reg&Plan Services,Comm. Safety (Crime Reduction),CCTV,Supplies & Services,Comms and Computing,Communications,10/7/2010,132,2446,Revenue,BT REDCARE
Cultural Env Reg&Plan Services,Comm. Safety (Crime Reduction),CCTV,Supplies & Services,Comms and Computing,Communications,10/11/2010,133,2430.02,Revenue,QUADRANT SECURITY GROUP LTD.
Cultural Env Reg&Plan Services,Comm. Safety (Crime Reduction),CCTV,Supplies & Services,Equip Furniture/Materials,Equipment - R & M,10/21/2010,134,1807.38,Revenue,CARTEL SECURITY SYSTEMS PLC
Cultural Env Reg&Plan Services,Comm. Safety (Crime Reduction),CCTV,Supplies & Services,Services,Consultants,10/7/2010,135,1565.46,Revenue,GOODWILL ASSOCIATES LIMITED
Cultural Env Reg&Plan Services,Comm. Safety (Crime Reduction),CCTV,Supplies & Services,Comms and Computing,Communications,10/5/2010,136,1245,Revenue,BT REDCARE
Cultural Env Reg&Plan Services,Cemetery Cremation & Mortuary,Cemeteries (Unloc),Supplies & Services,Equip Furniture/Materials,Equip-Purchases,10/21/2010,137,737,Revenue,TELESHORE (UK) LTD
Cultural Env Reg&Plan Services,Cemetery Cremation & Mortuary,Cemeteries (Unloc),Premises Related Expenditure,Energy Costs,Gas (incl. Butane),10/28/2010,138,592.71,Revenue,KENT COUNTY COUNCIL COMM SVCS
CS -Oth Operating Inc & Expend,Trading A/c Surpluses/Deficits,CHAS Scheme,Supplies & Services,Services,Assessor Fees,10/28/2010,139,5775,Revenue,ARC ASSOCIATES (UK)
CS -Oth Operating Inc & Expend,Trading A/c Surpluses/Deficits,CHAS Scheme,Supplies & Services,Services,Assessor Fees,10/28/2010,140,4950,Revenue,STALLARD KANE ASSOCIATES LTD
CS -Oth Operating Inc & Expend,Trading A/c Surpluses/Deficits,CHAS Scheme,Supplies & Services,Services,Assessor Fees,10/1/2010,141,4820,Revenue,ARC ASSOCIATES (UK)
CS -Oth Operating Inc & Expend,Trading A/c Surpluses/Deficits,CHAS Scheme,Supplies & Services,Services,Assessor Fees,10/13/2010,142,4015.4,Revenue,REDACTED
CS -Oth Operating Inc & Expend,Trading A/c Surpluses/Deficits,CHAS Scheme,Supplies & Services,Services,Assessor Fees,10/20/2010,143,3696.88,Revenue,REDACTED
CS -Oth Operating Inc & Expend,Trading A/c Surpluses/Deficits,CHAS Scheme,Supplies & Services,Services,Assessor Fees,10/13/2010,144,3260,Revenue,REDACTED
CS -Oth Operating Inc & Expend,Trading A/c Surpluses/Deficits,CHAS Scheme,Supplies & Services,Services,Assessor Fees,10/22/2010,145,3180,Revenue,ALIMOR SAFETY LTD
CS -Oth Operating Inc & Expend,Trading A/c Surpluses/Deficits,CHAS Scheme,Supplies & Services,Services,Assessor Fees,10/20/2010,146,3040,Revenue,SOUTH EAST HEALTH & SAFETY LTD
CS -Oth Operating Inc & Expend,Trading A/c Surpluses/Deficits,CHAS Scheme,Supplies & Services,Services,Assessor Fees,10/13/2010,147,2979.22,Revenue,REDACTED
CS -Oth Operating Inc & Expend,Trading A/c Surpluses/Deficits,CHAS Scheme,Supplies & Services,Services,Assessor Fees,10/5/2010,148,2705,Revenue,REDACTED
CS -Oth Operating Inc & Expend,Trading A/c Surpluses/Deficits,CHAS Scheme,Supplies & Services,Services,Assessor Fees,10/27/2010,149,2639.5,Revenue,REDACTED
CS -Oth Operating Inc & Expend,Trading A/c Surpluses/Deficits,CHAS Scheme,Supplies & Services,Services,Assessor Fees,10/27/2010,150,2600,Revenue,REDACTED
CS -Oth Operating Inc & Expend,Trading A/c Surpluses/Deficits,CHAS Scheme,Supplies & Services,Services,Assessor Fees,10/27/2010,151,2475,Revenue,ARC ASSOCIATES (UK)
CS -Oth Operating Inc & Expend,Trading A/c Surpluses/Deficits,CHAS Scheme,Supplies & Services,Services,Assessor Fees,10/13/2010,152,2255,Revenue,REDACTED
CS -Oth Operating Inc & Expend,Trading A/c Surpluses/Deficits,CHAS Scheme,Supplies & Services,Services,Assessor Fees,10/20/2010,153,2110,Revenue,REDACTED
CS -Oth Operating Inc & Expend,Trading A/c Surpluses/Deficits,CHAS Scheme,Supplies & Services,Services,Assessor Fees,10/13/2010,154,2100,Revenue,REDACTED
CS -Oth Operating Inc & Expend,Trading A/c Surpluses/Deficits,CHAS Scheme,Supplies & Services,Services,Assessor Fees,10/20/2010,155,1970,Revenue,MGW SAFETY SERVICES
CS -Oth Operating Inc & Expend,Trading A/c Surpluses/Deficits,CHAS Scheme,Supplies & Services,Services,Assessor Fees,10/22/2010,156,1771.76,Revenue,WEST WALES SAFETY SERVICES
CS -Oth Operating Inc & Expend,Trading A/c Surpluses/Deficits,CHAS Scheme,Supplies & Services,Services,Assessor Fees,10/13/2010,157,1672.06,Revenue,2ND NATURE SAFETY SOLUTIONS UK
CS -Oth Operating Inc & Expend,Trading A/c Surpluses/Deficits,CHAS Scheme,Supplies & Services,Services,Assessor Fees,10/1/2010,158,1615,Revenue,REDACTED
CS -Oth Operating Inc & Expend,Trading A/c Surpluses/Deficits,CHAS Scheme,Supplies & Services,Services,Assessor Fees,10/27/2010,159,1500,Revenue,REDACTED
CS -Oth Operating Inc & Expend,Trading A/c Surpluses/Deficits,CHAS Scheme,Supplies & Services,Services,Assessor Fees,10/13/2010,160,1430,Revenue,WOODS CONSULTANCY SERVICES LTD
CS -Oth Operating Inc & Expend,Trading A/c Surpluses/Deficits,CHAS Scheme,Supplies & Services,Services,Assessor Fees,10/20/2010,161,1424.84,Revenue,REDACTED
CS -Oth Operating Inc & Expend,Trading A/c Surpluses/Deficits,CHAS Scheme,Supplies & Services,Services,Assessor Fees,10/13/2010,162,1420,Revenue,REDACTED
CS -Oth Operating Inc & Expend,Trading A/c Surpluses/Deficits,CHAS Scheme,Supplies & Services,Services,Assessor Fees,10/13/2010,163,1400,Revenue,REDACTED
CS -Oth Operating Inc & Expend,Trading A/c Surpluses/Deficits,CHAS Scheme,Supplies & Services,Services,Assessor Fees,10/13/2010,164,1380,Revenue,REDACTED
CS -Oth Operating Inc & Expend,Trading A/c Surpluses/Deficits,CHAS Scheme,Supplies & Services,Services,Assessor Fees,10/20/2010,165,1215,Revenue,HOLLYGLADE LTD T/A BEACONRISK
CS -Oth Operating Inc & Expend,Trading A/c Surpluses/Deficits,CHAS Scheme,Supplies & Services,Services,Assessor Fees,10/20/2010,166,1140,Revenue,REDACTED
CS -Oth Operating Inc & Expend,Trading A/c Surpluses/Deficits,CHAS Scheme,Supplies & Services,Services,Assessor Fees,10/1/2010,167,1130,Revenue,TERN ASSOCIATES LTD
CS -Oth Operating Inc & Expend,Trading A/c Surpluses/Deficits,CHAS Scheme,Supplies & Services,Services,Assessor Fees,10/20/2010,168,1095,Revenue,REDACTED
CS -Oth Operating Inc & Expend,Trading A/c Surpluses/Deficits,CHAS Scheme,Supplies & Services,Services,Assessor Fees,10/11/2010,169,1005,Revenue,REDACTED
CS -Oth Operating Inc & Expend,Trading A/c Surpluses/Deficits,CHAS Scheme,Supplies & Services,Services,Assessor Fees,10/20/2010,170,1000,Revenue,REDACTED
CS -Oth Operating Inc & Expend,Trading A/c Surpluses/Deficits,CHAS Scheme,Supplies & Services,Services,Assessor Fees,10/13/2010,171,970,Revenue,REDACTED
CS -Oth Operating Inc & Expend,Trading A/c Surpluses/Deficits,CHAS Scheme,Supplies & Services,Services,Assessor Fees,10/27/2010,172,965,Revenue,REDACTED
CS -Oth Operating Inc & Expend,Trading A/c Surpluses/Deficits,CHAS Scheme,Supplies & Services,Services,Assessor Fees,10/1/2010,173,961.15,Revenue,REDACTED
CS -Oth Operating Inc & Expend,Trading A/c Surpluses/Deficits,CHAS Scheme,Supplies & Services,Services,Assessor Fees,10/13/2010,174,960,Revenue,REDACTED
CS -Oth Operating Inc & Expend,Trading A/c Surpluses/Deficits,CHAS Scheme,Supplies & Services,Services,Assessor Fees,10/20/2010,175,934.09,Revenue,REDACTED
CS -Oth Operating Inc & Expend,Trading A/c Surpluses/Deficits,CHAS Scheme,Supplies & Services,Services,Assessor Fees,10/13/2010,176,930,Revenue,REDACTED
CS -Oth Operating Inc & Expend,Trading A/c Surpluses/Deficits,CHAS Scheme,Supplies & Services,Services,Assessor Fees,10/27/2010,177,925,Revenue,REDACTED
CS -Oth Operating Inc & Expend,Trading A/c Surpluses/Deficits,CHAS Scheme,Supplies & Services,Services,Assessor Fees,10/13/2010,178,915,Revenue,REDACTED
CS -Oth Operating Inc & Expend,Trading A/c Surpluses/Deficits,CHAS Scheme,Supplies & Services,Services,Assessor Fees,10/21/2010,179,905,Revenue,REDACTED
CS -Oth Operating Inc & Expend,Trading A/c Surpluses/Deficits,CHAS Scheme,Supplies & Services,Services,Assessor Fees,10/5/2010,180,880,Revenue,REDACTED
CS -Oth Operating Inc & Expend,Trading A/c Surpluses/Deficits,CHAS Scheme,Supplies & Services,Services,Assessor Fees,10/20/2010,181,847.75,Revenue,REDACTED
CS -Oth Operating Inc & Expend,Trading A/c Surpluses/Deficits,CHAS Scheme,Supplies & Services,Services,Assessor Fees,10/28/2010,182,846.15,Revenue,REDACTED
CS -Oth Operating Inc & Expend,Trading A/c Surpluses/Deficits,CHAS Scheme,Supplies & Services,Services,Assessor Fees,10/15/2010,183,845,Revenue,REDACTED
CS -Oth Operating Inc & Expend,Trading A/c Surpluses/Deficits,CHAS Scheme,Supplies & Services,Services,Assessor Fees,10/20/2010,184,800,Revenue,REDACTED
CS -Oth Operating Inc & Expend,Trading A/c Surpluses/Deficits,CHAS Scheme,Supplies & Services,Services,Assessor Fees,10/5/2010,185,800,Revenue,REDACTED
CS -Oth Operating Inc & Expend,Trading A/c Surpluses/Deficits,CHAS Scheme,Supplies & Services,Services,Assessor Fees,10/5/2010,186,795,Revenue,REDACTED
CS -Oth Operating Inc & Expend,Trading A/c Surpluses/Deficits,CHAS Scheme,Supplies & Services,Services,Assessor Fees,10/13/2010,187,759.5,Revenue,REDACTED
CS -Oth Operating Inc & Expend,Trading A/c Surpluses/Deficits,CHAS Scheme,Supplies & Services,Services,Assessor Fees,10/27/2010,188,655,Revenue,REDACTED
CS -Oth Operating Inc & Expend,Trading A/c Surpluses/Deficits,CHAS Scheme,Supplies & Services,Services,Assessor Fees,10/13/2010,189,635,Revenue,REDACTED
CS -Oth Operating Inc & Expend,Trading A/c Surpluses/Deficits,CHAS Scheme,Supplies & Services,Services,Assessor Fees,10/20/2010,190,630,Revenue,REDACTED
CS -Oth Operating Inc & Expend,Trading A/c Surpluses/Deficits,CHAS Scheme,Supplies & Services,Services,Assessor Fees,10/20/2010,191,630,Revenue,REDACTED
CS -Oth Operating Inc & Expend,Trading A/c Surpluses/Deficits,CHAS Scheme,Supplies & Services,Services,Assessor Fees,10/1/2010,192,620.9,Revenue,REDACTED
CS -Oth Operating Inc & Expend,Trading A/c Surpluses/Deficits,CHAS Scheme,Supplies & Services,Services,Assessor Fees,10/13/2010,193,620,Revenue,REDACTED
CS -Oth Operating Inc & Expend,Trading A/c Surpluses/Deficits,CHAS Scheme,Supplies & Services,Services,Assessor Fees,10/27/2010,194,620,Revenue,REDACTED
CS -Oth Operating Inc & Expend,Trading A/c Surpluses/Deficits,CHAS Scheme,Supplies & Services,Services,Assessor Fees,10/13/2010,195,601.88,Revenue,REDACTED
CS -Oth Operating Inc & Expend,Trading A/c Surpluses/Deficits,CHAS Scheme,Supplies & Services,Services,Assessor Fees,10/13/2010,196,590,Revenue,REDACTED
CS -Oth Operating Inc & Expend,Trading A/c Surpluses/Deficits,CHAS Scheme,Supplies & Services,Services,Assessor Fees,10/15/2010,197,540,Revenue,REDACTED
CS -Oth Operating Inc & Expend,Trading A/c Surpluses/Deficits,CHAS Scheme,Supplies & Services,Services,Assessor Fees,10/13/2010,198,517.34,Revenue,REDACTED
CS -Oth Operating Inc & Expend,Trading A/c Surpluses/Deficits,CHAS Scheme,Supplies & Services,Services,Assessor Fees,10/27/2010,199,505,Revenue,REDACTED
CS -Oth Operating Inc & Expend,Trading A/c Surpluses/Deficits,CHAS Scheme,Supplies & Services,Services,Assessor Fees,10/27/2010,200,505,Revenue,REDACTED
,,Chaucer Centre replace Boilers,"New Const, Conv & Renvtion",Ste Wrk-Rn & Mt-Main Contractr,Ste Wrk-Rn & Mt-Main Contractr,10/11/2010,201,21821.31,Capital,C FLETCHER SONS & CO LTD
Central Services,Fully rechargeable Overheads,Chief Exec's Office,Supplies & Services,Equip Furniture/Materials,Hire of Equipment,10/7/2010,202,5216,Revenue,FIZZ AV
Central Services,Fully rechargeable Overheads,Chief Exec's Office,Premises Related Expenditure,Rents,Room/venue rental hire,10/18/2010,203,1100,Revenue,AHMADIYYA MUSLIM ASSOC UK
Central Services,Fully rechargeable Overheads,Chief Exec's Office,Supplies & Services,Equip Furniture/Materials,Hire of Equipment,10/7/2010,204,621.5,Revenue,DASH LINEN SERVICES LTD
Central Services,Fully rechargeable Overheads,Chief Financial Manager,Supplies & Services,Grants and Subscriptions,Subscriptions,10/7/2010,205,1883,Revenue,INSTITUTE OF PUBLIC FINANCE
Childrens & Education Services,Pre-School Ed (inc Nursery),Children's centres,Premises Related Expenditure,RepairsAlterations&MtceOfBldgs,Maintenance of Grounds,10/29/2010,206,6990.5,Revenue,GARDEN CARE CONTRACTING LTD
,,CHP Equipment,"New Const, Conv & Renvtion",Dsgn/Sprvsn-Other Expenses,Dsgn/Sprvsn-Other Expenses,10/18/2010,207,3895,Capital,ACCON UK LTD
Central Services,Fully rechargeable Overheads,Civic Centre,Premises Related Expenditure,Cleaning and Domestic Supplies,Cleaning Services,10/5/2010,208,8992.44,Revenue,DYNAMIQ CLEANING LIMITED
Central Services,Fully rechargeable Overheads,Civic Centre,Premises Related Expenditure,Cleaning and Domestic Supplies,Cleaning Services,10/27/2010,209,8992.44,Revenue,DYNAMIQ CLEANING LIMITED
Central Services,Fully rechargeable Overheads,Civic Centre,Supplies & Services,Equip Furniture/Materials,Op. Leasing Equipment,10/29/2010,210,6417,Revenue,GREENCARE H20 LTD
Central Services,Fully rechargeable Overheads,Civic Centre,Supplies & Services,Equip Furniture/Materials,Equipment - R & M,10/29/2010,211,5160,Revenue,GREENCARE H20 LTD
Central Services,Fully rechargeable Overheads,Civic Centre,Third Party Payments,Private Contractors,Contract Payments,10/18/2010,212,4312.44,Revenue,AUTOGRAPH FOODSERVICE
Central Services,Fully rechargeable Overheads,Civic Centre,Premises Related Expenditure,Cleaning and Domestic Supplies,Cleaning Services,10/1/2010,213,2810.17,Revenue,DYNAMIQ CLEANING LIMITED
Central Services,Fully rechargeable Overheads,Civic Centre,Premises Related Expenditure,Cleaning and Domestic Supplies,Cleaning Services,10/1/2010,214,1329.24,Revenue,DYNAMIQ CLEANING LIMITED
Central Services,Fully rechargeable Overheads,Civic Centre,Premises Related Expenditure,Cleaning and Domestic Supplies,Cleaning Services,10/27/2010,215,1329.24,Revenue,DYNAMIQ CLEANING LIMITED
Central Services,Fully rechargeable Overheads,Civic Centre,Premises Related Expenditure,Cleaning and Domestic Supplies,Cleaning Services,10/1/2010,216,1320.29,Revenue,DYNAMIQ CLEANING LIMITED
Central Services,Fully rechargeable Overheads,Civic Centre,Premises Related Expenditure,Cleaning and Domestic Supplies,Cleaning Services,10/27/2010,217,1320.29,Revenue,DYNAMIQ CLEANING LIMITED
Central Services,Fully rechargeable Overheads,Civic Centre,Premises Related Expenditure,Cleaning and Domestic Supplies,Cleaning Services,10/1/2010,218,502.3,Revenue,DYNAMIQ CLEANING LIMITED
Central Services,Fully rechargeable Overheads,Civic Centre,Premises Related Expenditure,Cleaning and Domestic Supplies,Cleaning Services,10/27/2010,219,502.3,Revenue,DYNAMIQ CLEANING LIMITED
Highways & Transport Services,Parking Services,Civil Enforcement Officers,Premises Related Expenditure,Rents,Miscellaneous Rents,10/6/2010,220,4377.5,Revenue,WOODCOCK BROTHERS (WIMBLEDON)
Highways & Transport Services,Parking Services,Civil Enforcement Officers,Employees,Indirect Employee Expenses,Courses-creditors,10/21/2010,221,2000,Revenue,LONDON BOROUGH OF CAMDEN
Highways & Transport Services,Parking Services,Civil Enforcement Officers,Employees,Indirect Employee Expenses,Courses-creditors,10/25/2010,222,895,Revenue,TIC SAFETY
Highways & Transport Services,Parking Services,Civil Enforcement Officers,Employees,Indirect Employee Expenses,Courses-creditors,10/20/2010,223,610,Revenue,LONDON BOROUGH OF CAMDEN
Childrens & Education Services,Other Ch's & Family Services,CL Adoption Allowances,Transfer Payments,Social Services clients,Adoption Allowances,10/20/2010,224,21328.77,Revenue,PEMBROKESHIRE COUNTY COUNCIL
Childrens & Education Services,Other Ch's & Family Services,CL Adoption Allowances,Transfer Payments,Social Services clients,Adoption Allowances,10/28/2010,225,1889.94,Revenue,REDACTED
Childrens & Education Services,Other Ch's & Family Services,CL Adoption Allowances,Transfer Payments,Social Services clients,Adoption Allowances,10/7/2010,226,1368.6,Revenue,REDACTED
Childrens & Education Services,Other Ch's & Family Services,CL Adoption Allowances,Transfer Payments,Social Services clients,Adoption Allowances,10/22/2010,227,1368.6,Revenue,REDACTED
Childrens & Education Services,Other Ch's & Family Services,CL Adoption Allowances,Transfer Payments,Social Services clients,Adoption Allowances,10/28/2010,228,915.2,Revenue,REDACTED
Childrens & Education Services,Other Ch's & Family Services,CL Adoption Allowances,Transfer Payments,Social Services clients,Adoption Allowances,10/7/2010,229,607.08,Revenue,REDACTED
Childrens & Education Services,Other Ch's & Family Services,CL Adoption Allowances,Transfer Payments,Social Services clients,Adoption Allowances,10/22/2010,230,607.08,Revenue,REDACTED
Childrens & Education Services,Other Ch's & Family Services,CL Adoption Allowances,Transfer Payments,Social Services clients,Adoption Allowances,10/7/2010,231,562.88,Revenue,REDACTED
Childrens & Education Services,Other Ch's & Family Services,CL Adoption Allowances,Transfer Payments,Social Services clients,Adoption Allowances,10/22/2010,232,562.88,Revenue,REDACTED
Childrens & Education Services,Other Ch's & Family Services,CL Adoption Allowances,Transfer Payments,Social Services clients,Adoption Allowances,10/7/2010,233,553.84,Revenue,REDACTED
Childrens & Education Services,Other Ch's & Family Services,CL Adoption Allowances,Transfer Payments,Social Services clients,Adoption Allowances,10/22/2010,234,553.84,Revenue,REDACTED
Childrens & Education Services,Other Ch's & Family Services,CL Childr Act 1989 - Section17,Transfer Payments,Social Services clients,Childr Act 1989 S17,10/4/2010,235,600,Revenue,SAINSBURY'S BUSINESS DIRECT
Childrens & Education Services,Children Looked After (24hrs+),CL Fostering Services,Supplies & Services,Services,Task Based Fostering,10/19/2010,236,3041.67,Revenue,REDACTED
Childrens & Education Services,Children Looked After (24hrs+),CL Fostering Services,Supplies & Services,Services,Task Based Fostering,10/12/2010,237,2285.57,Revenue,REDACTED
Childrens & Education Services,Children Looked After (24hrs+),CL Fostering Services,Supplies & Services,Services,Task Based Fostering,10/12/2010,238,1963.17,Revenue,REDACTED
Childrens & Education Services,Children Looked After (24hrs+),CL Fostering Services,Supplies & Services,Services,Task Based Fostering,10/12/2010,239,1371.81,Revenue,REDACTED
Childrens & Education Services,Children Looked After (24hrs+),CL Fostering Services,Supplies & Services,Services,Task Based Fostering,10/12/2010,240,1293.79,Revenue,REDACTED
Childrens & Education Services,Children Looked After (24hrs+),CL Fostering Services,Supplies & Services,Services,Task Based Fostering,10/19/2010,241,1291.16,Revenue,REDACTED
Childrens & Education Services,Children Looked After (24hrs+),CL Fostering Services,Supplies & Services,Services,Task Based Fostering,10/5/2010,242,1153.68,Revenue,REDACTED
Childrens & Education Services,Children Looked After (24hrs+),CL Fostering Services,Supplies & Services,Services,Task Based Fostering,10/12/2010,243,1153.68,Revenue,REDACTED
Childrens & Education Services,Children Looked After (24hrs+),CL Fostering Services,Supplies & Services,Services,Task Based Fostering,10/19/2010,244,1153.68,Revenue,REDACTED
Childrens & Education Services,Children Looked After (24hrs+),CL Fostering Services,Supplies & Services,Services,Task Based Fostering,10/26/2010,245,1153.68,Revenue,REDACTED
Childrens & Education Services,Children Looked After (24hrs+),CL Fostering Services,Supplies & Services,Services,Task Based Fostering,10/5/2010,246,1150.04,Revenue,REDACTED
Childrens & Education Services,Children Looked After (24hrs+),CL Fostering Services,Supplies & Services,Services,Task Based Fostering,10/12/2010,247,1150.04,Revenue,REDACTED
Childrens & Education Services,Children Looked After (24hrs+),CL Fostering Services,Supplies & Services,Services,Task Based Fostering,10/19/2010,248,1150.04,Revenue,REDACTED
Childrens & Education Services,Children Looked After (24hrs+),CL Fostering Services,Supplies & Services,Services,Task Based Fostering,10/26/2010,249,1150.04,Revenue,REDACTED
Childrens & Education Services,Children Looked After (24hrs+),CL Fostering Services,Supplies & Services,Services,Task Based Fostering,10/5/2010,250,1145.19,Revenue,REDACTED
Childrens & Education Services,Children Looked After (24hrs+),CL Fostering Services,Supplies & Services,Services,Task Based Fostering,10/19/2010,251,1145.19,Revenue,REDACTED
Childrens & Education Services,Children Looked After (24hrs+),CL Fostering Services,Supplies & Services,Services,Task Based Fostering,10/26/2010,252,1145.19,Revenue,REDACTED
Childrens & Education Services,Children Looked After (24hrs+),CL Fostering Services,Supplies & Services,Services,Task Based Fostering,10/5/2010,253,1136.65,Revenue,REDACTED
Childrens & Education Services,Children Looked After (24hrs+),CL Fostering Services,Supplies & Services,Services,Task Based Fostering,10/5/2010,254,1133.06,Revenue,REDACTED
Childrens & Education Services,Children Looked After (24hrs+),CL Fostering Services,Supplies & Services,Services,Task Based Fostering,10/12/2010,255,1133.06,Revenue,REDACTED
Childrens & Education Services,Children Looked After (24hrs+),CL Fostering Services,Supplies & Services,Services,Task Based Fostering,10/19/2010,256,1133.06,Revenue,REDACTED
Childrens & Education Services,Children Looked After (24hrs+),CL Fostering Services,Supplies & Services,Services,Task Based Fostering,10/26/2010,257,1133.06,Revenue,REDACTED
Childrens & Education Services,Children Looked After (24hrs+),CL Fostering Services,Supplies & Services,Services,Task Based Fostering,10/5/2010,258,1108.8,Revenue,REDACTED
Childrens & Education Services,Children Looked After (24hrs+),CL Fostering Services,Supplies & Services,Services,Task Based Fostering,10/12/2010,259,1108.8,Revenue,REDACTED
Childrens & Education Services,Children Looked After (24hrs+),CL Fostering Services,Supplies & Services,Services,Task Based Fostering,10/19/2010,260,1108.8,Revenue,REDACTED
Childrens & Education Services,Children Looked After (24hrs+),CL Fostering Services,Supplies & Services,Services,Task Based Fostering,10/26/2010,261,1108.8,Revenue,REDACTED
Childrens & Education Services,Children Looked After (24hrs+),CL Fostering Services,Supplies & Services,Services,Task Based Fostering,10/26/2010,262,966,Revenue,REDACTED
Childrens & Education Services,Children Looked After (24hrs+),CL Fostering Services,Supplies & Services,Services,Task Based Fostering,10/26/2010,263,947.68,Revenue,REDACTED
Childrens & Education Services,Children Looked After (24hrs+),CL Fostering Services,Supplies & Services,Services,Task Based Fostering,10/5/2010,264,853.46,Revenue,REDACTED
Childrens & Education Services,Children Looked After (24hrs+),CL Fostering Services,Supplies & Services,Services,Task Based Fostering,10/19/2010,265,792,Revenue,REDACTED
Childrens & Education Services,Children Looked After (24hrs+),CL Fostering Services,Supplies & Services,Services,Task Based Fostering,10/19/2010,266,780.44,Revenue,REDACTED
Childrens & Education Services,Children Looked After (24hrs+),CL Fostering Services,Supplies & Services,Services,Task Based Fostering,10/26/2010,267,780.44,Revenue,REDACTED
Childrens & Education Services,Children Looked After (24hrs+),CL Fostering Services,Supplies & Services,Services,Task Based Fostering,10/5/2010,268,780.44,Revenue,REDACTED
Childrens & Education Services,Children Looked After (24hrs+),CL Fostering Services,Supplies & Services,Services,Task Based Fostering,10/12/2010,269,780.44,Revenue,REDACTED
Childrens & Education Services,Children Looked After (24hrs+),CL Fostering Services,Supplies & Services,Services,Task Based Fostering,10/19/2010,270,780.44,Revenue,REDACTED
Childrens & Education Services,Children Looked After (24hrs+),CL Fostering Services,Supplies & Services,Services,Task Based Fostering,10/26/2010,271,780.44,Revenue,REDACTED
Childrens & Education Services,Children Looked After (24hrs+),CL Fostering Services,Supplies & Services,Services,Task Based Fostering,10/26/2010,272,780.44,Revenue,REDACTED
Childrens & Education Services,Children Looked After (24hrs+),CL Fostering Services,Supplies & Services,Services,Task Based Fostering,10/5/2010,273,780.44,Revenue,REDACTED
Childrens & Education Services,Children Looked After (24hrs+),CL Fostering Services,Supplies & Services,Services,Task Based Fostering,10/12/2010,274,780.44,Revenue,REDACTED
Childrens & Education Services,Children Looked After (24hrs+),CL Fostering Services,Supplies & Services,Services,Task Based Fostering,10/19/2010,275,780.44,Revenue,REDACTED
Childrens & Education Services,Children Looked After (24hrs+),CL Fostering Services,Supplies & Services,Services,Task Based Fostering,10/5/2010,276,780.44,Revenue,REDACTED
Childrens & Education Services,Children Looked After (24hrs+),CL Fostering Services,Supplies & Services,Services,Task Based Fostering,10/19/2010,277,771.95,Revenue,REDACTED
Childrens & Education Services,Children Looked After (24hrs+),CL Fostering Services,Supplies & Services,Services,Task Based Fostering,10/5/2010,278,771.95,Revenue,REDACTED
Childrens & Education Services,Children Looked After (24hrs+),CL Fostering Services,Supplies & Services,Services,Task Based Fostering,10/12/2010,279,771.95,Revenue,REDACTED
Childrens & Education Services,Children Looked After (24hrs+),CL Fostering Services,Supplies & Services,Services,Task Based Fostering,10/19/2010,280,771.95,Revenue,REDACTED
Childrens & Education Services,Children Looked After (24hrs+),CL Fostering Services,Supplies & Services,Services,Task Based Fostering,10/5/2010,281,759.82,Revenue,REDACTED
Childrens & Education Services,Children Looked After (24hrs+),CL Fostering Services,Supplies & Services,Services,Task Based Fostering,10/12/2010,282,759.82,Revenue,REDACTED
Childrens & Education Services,Children Looked After (24hrs+),CL Fostering Services,Supplies & Services,Services,Task Based Fostering,10/19/2010,283,759.82,Revenue,REDACTED
Childrens & Education Services,Children Looked After (24hrs+),CL Fostering Services,Supplies & Services,Services,Task Based Fostering,10/26/2010,284,759.82,Revenue,REDACTED
Childrens & Education Services,Children Looked After (24hrs+),CL Fostering Services,Supplies & Services,Services,Task Based Fostering,10/12/2010,285,751.33,Revenue,REDACTED
Childrens & Education Services,Children Looked After (24hrs+),CL Fostering Services,Supplies & Services,Services,Task Based Fostering,10/19/2010,286,751.33,Revenue,REDACTED
Childrens & Education Services,Children Looked After (24hrs+),CL Fostering Services,Supplies & Services,Services,Task Based Fostering,10/5/2010,287,751.33,Revenue,REDACTED
Childrens & Education Services,Children Looked After (24hrs+),CL Fostering Services,Supplies & Services,Services,Task Based Fostering,10/12/2010,288,751.33,Revenue,REDACTED
Childrens & Education Services,Children Looked After (24hrs+),CL Fostering Services,Supplies & Services,Services,Task Based Fostering,10/19/2010,289,751.33,Revenue,REDACTED
Childrens & Education Services,Children Looked After (24hrs+),CL Fostering Services,Supplies & Services,Services,Task Based Fostering,10/26/2010,290,751.33,Revenue,REDACTED
Childrens & Education Services,Children Looked After (24hrs+),CL Fostering Services,Supplies & Services,Services,Task Based Fostering,10/5/2010,291,751.33,Revenue,REDACTED
Childrens & Education Services,Children Looked After (24hrs+),CL Fostering Services,Supplies & Services,Services,Task Based Fostering,10/12/2010,292,751.33,Revenue,REDACTED
Childrens & Education Services,Children Looked After (24hrs+),CL Fostering Services,Supplies & Services,Services,Task Based Fostering,10/19/2010,293,751.33,Revenue,REDACTED
Childrens & Education Services,Children Looked After (24hrs+),CL Fostering Services,Supplies & Services,Services,Task Based Fostering,10/26/2010,294,751.33,Revenue,REDACTED
Childrens & Education Services,Children Looked After (24hrs+),CL Fostering Services,Supplies & Services,Services,Task Based Fostering,10/5/2010,295,739.2,Revenue,REDACTED
Childrens & Education Services,Children Looked After (24hrs+),CL Fostering Services,Supplies & Services,Services,Task Based Fostering,10/12/2010,296,739.2,Revenue,REDACTED
Childrens & Education Services,Children Looked After (24hrs+),CL Fostering Services,Supplies & Services,Services,Task Based Fostering,10/19/2010,297,739.2,Revenue,REDACTED
Childrens & Education Services,Children Looked After (24hrs+),CL Fostering Services,Supplies & Services,Services,Task Based Fostering,10/26/2010,298,739.2,Revenue,REDACTED
Childrens & Education Services,Children Looked After (24hrs+),CL Fostering Services,Supplies & Services,Services,Task Based Fostering,10/26/2010,299,739.2,Revenue,REDACTED
Childrens & Education Services,Children Looked After (24hrs+),CL Fostering Services,Supplies & Services,Services,Task Based Fostering,10/5/2010,300,739.2,Revenue,REDACTED
Childrens & Education Services,Children Looked After (24hrs+),CL Fostering Services,Supplies & Services,Services,Task Based Fostering,10/12/2010,301,739.2,Revenue,REDACTED
Childrens & Education Services,Children Looked After (24hrs+),CL Fostering Services,Supplies & Services,Services,Task Based Fostering,10/19/2010,302,739.2,Revenue,REDACTED
Childrens & Education Services,Children Looked After (24hrs+),CL Fostering Services,Supplies & Services,Services,Task Based Fostering,10/26/2010,303,739.2,Revenue,REDACTED
Childrens & Education Services,Children Looked After (24hrs+),CL Fostering Services,Supplies & Services,Services,Task Based Fostering,10/19/2010,304,665.22,Revenue,REDACTED
Childrens & Education Services,Children Looked After (24hrs+),CL Fostering Services,Supplies & Services,Services,Task Based Fostering,10/12/2010,305,613.2,Revenue,REDACTED
Childrens & Education Services,Children Looked After (24hrs+),CL Fostering Services,Supplies & Services,Services,Panel Member Expenses,10/13/2010,306,600,Revenue,REDACTED
Childrens & Education Services,Children Looked After (24hrs+),CL Fostering Services,Supplies & Services,Services,Task Based Fostering,10/5/2010,307,544.58,Revenue,REDACTED
Childrens & Education Services,Children Looked After (24hrs+),CL Fostering Services,Supplies & Services,Services,Respite Fostering Allowance,10/27/2010,308,504.84,Revenue,REDACTED
Childrens & Education Services,Children Looked After (24hrs+),CL Fostering Services,Supplies & Services,Services,Task Based Fostering,10/5/2010,309,501.71,Revenue,REDACTED
Childrens & Education Services,Children Looked After (24hrs+),CL Fostering Services,Supplies & Services,Services,Panel Member Expenses,10/14/2010,310,500,Revenue,REDACTED
Childrens & Education Services,Children Looked After (24hrs+),CL Fostering Services,Supplies & Services,Services,Panel Member Expenses,10/13/2010,311,500,Revenue,REDACTED
Childrens & Education Services,Children Looked After (24hrs+),CL Independent Fostering,Supplies & Services,Services,Task Based Fostering,10/12/2010,312,5558.57,Revenue,CARE UK CHILDRENS SERVICES
Childrens & Education Services,Children Looked After (24hrs+),CL Independent Fostering,Supplies & Services,Services,Task Based Fostering,10/27/2010,313,4800,Revenue,NEXT STEP FOSTERING SERV'S LTD
Childrens & Education Services,Children Looked After (24hrs+),CL Independent Fostering,Supplies & Services,Services,Task Based Fostering,10/26/2010,314,4645.76,Revenue,FOSTERING OUTCOMES LTD
Childrens & Education Services,Children Looked After (24hrs+),CL Independent Fostering,Supplies & Services,Services,Task Based Fostering,10/26/2010,315,3930,Revenue,ST CHRISTOPHERS FELLOWSHIP
Childrens & Education Services,Children Looked After (24hrs+),CL Independent Fostering,Supplies & Services,Services,Long Term Fostering,10/26/2010,316,3769.56,Revenue,FAMILIES FOR CHILDREN
Childrens & Education Services,Children Looked After (24hrs+),CL Independent Fostering,Supplies & Services,Services,Task Based Fostering,10/26/2010,317,3478.44,Revenue,THE FOSTER CARE AGENCY
Childrens & Education Services,Children Looked After (24hrs+),CL Independent Fostering,Supplies & Services,Services,Task Based Fostering,10/26/2010,318,3437,Revenue,LLOYDS TSB COMMERCIAL FINANCE
Childrens & Education Services,Children Looked After (24hrs+),CL Independent Fostering,Supplies & Services,Services,Task Based Fostering,10/26/2010,319,3245.2,Revenue,HILLCREST CARE LTD
Childrens & Education Services,Children Looked After (24hrs+),CL Independent Fostering,Supplies & Services,Services,Task Based Fostering,10/26/2010,320,3200,Revenue,CHILDREN OF COLOUR
Childrens & Education Services,Children Looked After (24hrs+),CL Independent Fostering,Supplies & Services,Services,Task Based Fostering,10/26/2010,321,3200,Revenue,CHILDREN OF COLOUR
Childrens & Education Services,Children Looked After (24hrs+),CL Independent Fostering,Supplies & Services,Services,Task Based Fostering,10/26/2010,322,3199.84,Revenue,ORCHIDS FOSTERING FOR CHILDREN
Childrens & Education Services,Children Looked After (24hrs+),CL Independent Fostering,Supplies & Services,Services,Long Term Fostering,10/26/2010,323,3137.12,Revenue,LLOYDS TSB COMMERCIAL FINANCE
Childrens & Education Services,Children Looked After (24hrs+),CL Independent Fostering,Supplies & Services,Services,Task Based Fostering,10/26/2010,324,3136.56,Revenue,FOSTERING OUTCOMES LTD
Childrens & Education Services,Children Looked After (24hrs+),CL Independent Fostering,Supplies & Services,Services,Task Based Fostering,10/26/2010,325,3122.28,Revenue,HILLCREST CARE LTD
Childrens & Education Services,Children Looked After (24hrs+),CL Independent Fostering,Supplies & Services,Services,Task Based Fostering,10/26/2010,326,3122.28,Revenue,HILLCREST CARE LTD
Childrens & Education Services,Children Looked After (24hrs+),CL Independent Fostering,Supplies & Services,Services,Task Based Fostering,10/26/2010,327,3034.4,Revenue,SAFEHOUSES
Childrens & Education Services,Children Looked After (24hrs+),CL Independent Fostering,Supplies & Services,Services,Task Based Fostering,10/12/2010,328,2924.36,Revenue,LLOYDS TSB COMMERCIAL FINANCE
Childrens & Education Services,Children Looked After (24hrs+),CL Independent Fostering,Supplies & Services,Services,Task Based Fostering,10/26/2010,329,2924.36,Revenue,LLOYDS TSB COMMERCIAL FINANCE
Childrens & Education Services,Children Looked After (24hrs+),CL Independent Fostering,Supplies & Services,Services,Long Term Fostering,10/26/2010,330,2823.52,Revenue,LLOYDS TSB COMMERCIAL FINANCE
Childrens & Education Services,Children Looked After (24hrs+),CL Independent Fostering,Supplies & Services,Services,Task Based Fostering,10/26/2010,331,2760,Revenue,CHILDREN OF COLOUR
Childrens & Education Services,Children Looked After (24hrs+),CL Independent Fostering,Supplies & Services,Services,Long Term Fostering,10/27/2010,332,2685.76,Revenue,FOSTERPLUS LTD
Childrens & Education Services,Children Looked After (24hrs+),CL Independent Fostering,Supplies & Services,Services,Task Based Fostering,10/27/2010,333,2684.36,Revenue,RAINBOW FOSTERING SERVICES LTD
Childrens & Education Services,Children Looked After (24hrs+),CL Independent Fostering,Supplies & Services,Services,Task Based Fostering,10/27/2010,334,2684.36,Revenue,RAINBOW FOSTERING SERVICES LTD
Childrens & Education Services,Children Looked After (24hrs+),CL Independent Fostering,Supplies & Services,Services,Task Based Fostering,10/27/2010,335,2684.36,Revenue,RAINBOW FOSTERING SERVICES LTD
Childrens & Education Services,Children Looked After (24hrs+),CL Independent Fostering,Supplies & Services,Services,Task Based Fostering,10/27/2010,336,2684.36,Revenue,RAINBOW FOSTERING SERVICES LTD
Childrens & Education Services,Children Looked After (24hrs+),CL Independent Fostering,Supplies & Services,Services,Task Based Fostering,10/26/2010,337,1980,Revenue,HILLCREST CARE LTD
Childrens & Education Services,Children Looked After (24hrs+),CL Independent Fostering,Supplies & Services,Services,Task Based Fostering,10/26/2010,338,1980,Revenue,HILLCREST CARE LTD
Childrens & Education Services,Children Looked After (24hrs+),CL Independent Fostering,Supplies & Services,Services,Task Based Fostering,10/12/2010,339,1648.32,Revenue,CROHAM SERV.FOR CHILDREN LTD
Childrens & Education Services,Children Looked After (24hrs+),CL Independent Fostering,Supplies & Services,Services,Task Based Fostering,10/26/2010,340,1648.32,Revenue,CROHAM SERV.FOR CHILDREN LTD
Childrens & Education Services,Children Looked After (24hrs+),CL Independent Fostering,Supplies & Services,Services,Task Based Fostering,10/26/2010,341,1607.1,Revenue,ORCHIDS FOSTERING FOR CHILDREN
Childrens & Education Services,Children Looked After (24hrs+),CL Independent Fostering,Supplies & Services,Services,Task Based Fostering,10/12/2010,342,1522.86,Revenue,CHILDREN OF COLOUR
Childrens & Education Services,Children Looked After (24hrs+),CL Independent Fostering,Supplies & Services,Services,Task Based Fostering,10/8/2010,343,1456.52,Revenue,LLOYDS TSB COMMERCIAL FINANCE
Childrens & Education Services,Children Looked After (24hrs+),CL Independent Fostering,Supplies & Services,Services,Task Based Fostering,10/8/2010,344,1344.48,Revenue,LLOYDS TSB COMMERCIAL FINANCE
Childrens & Education Services,Children Looked After (24hrs+),CL Independent Fostering,Supplies & Services,Services,Task Based Fostering,10/12/2010,345,1120.4,Revenue,LLOYDS TSB COMMERCIAL FINANCE
Childrens & Education Services,Children Looked After (24hrs+),CL Independent Fostering,Supplies & Services,Services,Task Based Fostering,10/12/2010,346,784.63,Revenue,CORNERWAYS FOSTERING SERV.LTD
Childrens & Education Services,Children Looked After (24hrs+),CL Independent Fostering,Supplies & Services,Services,Task Based Fostering,10/12/2010,347,784.63,Revenue,CORNERWAYS FOSTERING SERV.LTD
Childrens & Education Services,Children Looked After (24hrs+),CL Independent Fostering,Supplies & Services,Services,Task Based Fostering,10/26/2010,348,784.63,Revenue,CORNERWAYS FOSTERING SERV.LTD
Childrens & Education Services,Other Ch's & Family Services,CL Leaving Care/Supp Lodgings,Third Party Payments,Private Contractors,Supported Lodgings,10/25/2010,349,3200,Revenue,ENHANCED FOSTER CARE
Childrens & Education Services,Other Ch's & Family Services,CL Leaving Care/Supp Lodgings,Third Party Payments,Private Contractors,Supported Lodgings,10/25/2010,350,3200,Revenue,ENHANCED FOSTER CARE
Childrens & Education Services,Other Ch's & Family Services,CL Leaving Care/Supp Lodgings,Third Party Payments,Private Contractors,Supported Lodgings,10/25/2010,351,3200,Revenue,ENHANCED FOSTER CARE
Childrens & Education Services,Other Ch's & Family Services,CL Leaving Care/Supp Lodgings,Third Party Payments,Private Contractors,Supported Lodgings,10/25/2010,352,3200,Revenue,ENHANCED FOSTER CARE
Childrens & Education Services,Other Ch's & Family Services,CL Leaving Care/Supp Lodgings,Third Party Payments,Private Contractors,Miscellaneous Agency Services,10/26/2010,353,1500,Revenue,LIVINGSTONE SUPPORTED HOUSING
Childrens & Education Services,Other Ch's & Family Services,CL Leaving Care/Supp Lodgings,Third Party Payments,Private Contractors,Miscellaneous Agency Services,10/21/2010,354,1280,Revenue,KEYA SUPPORT LTD
Childrens & Education Services,Other Ch's & Family Services,CL Leaving Care/Supp Lodgings,Third Party Payments,Private Contractors,Miscellaneous Agency Services,10/26/2010,355,1280,Revenue,KEYA SUPPORT LTD
Childrens & Education Services,Other Ch's & Family Services,CL Leaving Care/Supp Lodgings,Third Party Payments,Private Contractors,Miscellaneous Agency Services,10/20/2010,356,1199.8,Revenue,ON BEHALF SP HOMES LTD NO2 ACC
Childrens & Education Services,Other Ch's & Family Services,CL Leaving Care/Supp Lodgings,Third Party Payments,Private Contractors,Miscellaneous Agency Services,10/20/2010,357,1199.8,Revenue,ON BEHALF SP HOMES LTD NO2 ACC
Childrens & Education Services,Other Ch's & Family Services,CL Leaving Care/Supp Lodgings,Third Party Payments,Private Contractors,Miscellaneous Agency Services,10/20/2010,358,1199.8,Revenue,ON BEHALF SP HOMES LTD NO2 ACC
Childrens & Education Services,Other Ch's & Family Services,CL Leaving Care/Supp Lodgings,Third Party Payments,Private Contractors,Miscellaneous Agency Services,10/20/2010,359,1199.8,Revenue,ON BEHALF SP HOMES LTD NO2 ACC
Childrens & Education Services,Other Ch's & Family Services,CL Leaving Care/Supp Lodgings,Third Party Payments,Private Contractors,Miscellaneous Agency Services,10/20/2010,360,1199.8,Revenue,ON BEHALF SP HOMES LTD NO2 ACC
Childrens & Education Services,Other Ch's & Family Services,CL Leaving Care/Supp Lodgings,Third Party Payments,Private Contractors,Miscellaneous Agency Services,10/20/2010,361,1199.8,Revenue,ON BEHALF SP HOMES LTD NO2 ACC
Childrens & Education Services,Other Ch's & Family Services,CL Leaving Care/Supp Lodgings,Third Party Payments,Private Contractors,Supported Lodgings,10/25/2010,362,1142.86,Revenue,ENHANCED FOSTER CARE
Childrens & Education Services,Other Ch's & Family Services,CL Leaving Care/Supp Lodgings,Third Party Payments,Private Contractors,Miscellaneous Agency Services,10/12/2010,363,1071.25,Revenue,ON BEHALF SP HOMES LTD NO2 ACC
Childrens & Education Services,Other Ch's & Family Services,CL Leaving Care/Supp Lodgings,Third Party Payments,Private Contractors,Private Tenant/Landlord,10/28/2010,364,1050,Revenue,CJM PROPERTY INVESTMENT LTD
Childrens & Education Services,Other Ch's & Family Services,CL Leaving Care/Supp Lodgings,Third Party Payments,Private Contractors,Miscellaneous Agency Services,10/26/2010,365,1028.57,Revenue,LIVINGSTONE SUPPORTED HOUSING
Childrens & Education Services,Other Ch's & Family Services,CL Leaving Care/Supp Lodgings,Third Party Payments,Private Contractors,Supported Lodgings,10/12/2010,366,950,Revenue,REDACTED
Childrens & Education Services,Other Ch's & Family Services,CL Leaving Care/Supp Lodgings,Third Party Payments,Private Contractors,Supported Lodgings,10/7/2010,367,857.14,Revenue,REDACTED
Childrens & Education Services,Other Ch's & Family Services,CL Leaving Care/Supp Lodgings,Third Party Payments,Private Contractors,Supported Lodgings,10/26/2010,368,836.64,Revenue,REDACTED
Childrens & Education Services,Other Ch's & Family Services,CL Leaving Care/Supp Lodgings,Third Party Payments,Private Contractors,Supported Lodgings,10/27/2010,369,800,Revenue,REDACTED
Childrens & Education Services,Other Ch's & Family Services,CL Leaving Care/Supp Lodgings,Third Party Payments,Private Contractors,Supported Lodgings,10/26/2010,370,707.14,Revenue,REDACTED
Childrens & Education Services,Other Ch's & Family Services,CL Leaving Care/Supp Lodgings,Third Party Payments,Private Contractors,Supported Lodgings,10/21/2010,371,700,Revenue,REDACTED
Childrens & Education Services,Other Ch's & Family Services,CL Leaving Care/Supp Lodgings,Third Party Payments,Private Contractors,Supported Lodgings,10/21/2010,372,700,Revenue,REDACTED
Childrens & Education Services,Other Ch's & Family Services,CL Leaving Care/Supp Lodgings,Third Party Payments,Private Contractors,Supported Lodgings,10/21/2010,373,700,Revenue,REDACTED
Childrens & Education Services,Other Ch's & Family Services,CL Leaving Care/Supp Lodgings,Third Party Payments,Private Contractors,Supported Lodgings,10/12/2010,374,600,Revenue,REDACTED
Childrens & Education Services,Other Ch's & Family Services,CL Leaving Care/Supp Lodgings,Third Party Payments,Private Contractors,Supported Lodgings,10/21/2010,375,600,Revenue,REDACTED
Childrens & Education Services,Other Ch's & Family Services,CL Leaving Care/Supp Lodgings,Third Party Payments,Private Contractors,Supported Lodgings,10/21/2010,376,600,Revenue,REDACTED
Childrens & Education Services,Other Ch's & Family Services,CL Leaving Care/Supp Lodgings,Third Party Payments,Private Contractors,Supported Lodgings,10/21/2010,377,600,Revenue,REDACTED
Childrens & Education Services,Other Ch's & Family Services,CL Leaving Care/Supp Lodgings,Third Party Payments,Private Contractors,Supported Lodgings,10/21/2010,378,600,Revenue,REDACTED
Childrens & Education Services,Other Ch's & Family Services,CL Leaving Care/Supp Lodgings,Third Party Payments,Private Contractors,Supported Lodgings,10/21/2010,379,600,Revenue,REDACTED
Childrens & Education Services,Other Ch's & Family Services,CL Leaving Care/Supp Lodgings,Third Party Payments,Private Contractors,Supported Lodgings,10/21/2010,380,600,Revenue,REDACTED
Childrens & Education Services,Other Ch's & Family Services,CL Leaving Care/Supp Lodgings,Third Party Payments,Private Contractors,Miscellaneous Agency Services,10/18/2010,381,521.8,Revenue,CROYDON CHURCHES HOUSING ASSOC
Childrens & Education Services,Other Ch's & Family Services,CL Leaving Care/Supp Lodgings,Third Party Payments,Private Contractors,Miscellaneous Agency Services,10/18/2010,382,521.8,Revenue,CROYDON CHURCHES HOUSING ASSOC
Childrens & Education Services,Other Ch's & Family Services,CL Leaving Care/Supp Lodgings,Third Party Payments,Private Contractors,Miscellaneous Agency Services,10/18/2010,383,521.8,Revenue,CROYDON CHURCHES HOUSING ASSOC
Childrens & Education Services,Other Ch's & Family Services,CL Leaving Care/Supp Lodgings,Third Party Payments,Private Contractors,Miscellaneous Agency Services,10/27/2010,384,521.8,Revenue,CROYDON CHURCHES HOUSING ASSOC
Childrens & Education Services,Other Ch's & Family Services,CL Permanency,Supplies & Services,Services,Panel Member Expenses,10/4/2010,385,1272.8,Revenue,REDACTED
Childrens & Education Services,Other Ch's & Family Services,CL Permanency,Supplies & Services,Services,Misc Advertising/Publicity,10/21/2010,386,650.88,Revenue,ADOPTION UK
Childrens & Education Services,Other Ch's & Family Services,CL Permanency,Supplies & Services,Services,Misc Advertising/Publicity,10/21/2010,387,503.75,Revenue,ADOPTION UK
Childrens & Education Services,Other Ch's & Family Services,CL Permanency,Supplies & Services,Services,Misc Advertising/Publicity,10/21/2010,388,503.75,Revenue,ADOPTION UK
Childrens & Education Services,Other Ch's & Family Services,CL Permanency,Supplies & Services,Services,Misc Advertising/Publicity,10/21/2010,389,503.75,Revenue,ADOPTION UK
Childrens & Education Services,Other Ch's & Family Services,CL Permanency,Supplies & Services,Services,Panel Member Expenses,10/8/2010,390,500,Revenue,THE CHANGE AGENCY
Childrens & Education Services,Family Support Services,CL QP - Advocacy,Supplies & Services,Services,Advocacy & Mentoring Service,10/19/2010,391,8000,Revenue,RECONSTRUCT LIMITED
Childrens & Education Services,Other Ch's & Family Services,CL QP Post Adoption Supp Wker,Employees,Direct Employee Expenses,Agency Staff & Casual Paymts,10/5/2010,392,1038.5,Revenue,CONSEQUENCE LTD
Childrens & Education Services,Other Ch's & Family Services,CL QP Post Adoption Supp Wker,Employees,Direct Employee Expenses,Agency Staff & Casual Paymts,10/13/2010,393,806,Revenue,CONSEQUENCE LTD
Childrens & Education Services,Other Ch's & Family Services,CL QP Post Adoption Supp Wker,Employees,Direct Employee Expenses,Agency Staff & Casual Paymts,10/18/2010,394,806,Revenue,CONSEQUENCE LTD
Childrens & Education Services,Other Ch's & Family Services,CL QP Post Adoption Supp Wker,Employees,Direct Employee Expenses,Agency Staff & Casual Paymts,10/28/2010,395,806,Revenue,CONSEQUENCE LTD
Childrens & Education Services,Other Ch's & Family Services,CL QP Post Adoption Supp Wker,Employees,Direct Employee Expenses,Agency Staff & Casual Paymts,10/28/2010,396,806,Revenue,CONSEQUENCE LTD
Childrens & Education Services,Other Ch's & Family Services,CL QP Post Adoption Supp Wker,Employees,Direct Employee Expenses,Agency Staff & Casual Paymts,10/18/2010,397,713,Revenue,REDACTED
Childrens & Education Services,Other Ch's & Family Services,CL QP Post Adoption Supp Wker,Employees,Direct Employee Expenses,Agency Staff & Casual Paymts,10/20/2010,398,713,Revenue,REDACTED
Childrens & Education Services,Other Ch's & Family Services,CL QP Post Adoption Supp Wker,Third Party Payments,Private Contractors,Miscellaneous Agency Services,10/13/2010,399,500,Revenue,REDACTED
Childrens & Education Services,Family Support Services,CL Residence Orders,Supplies & Services,Grants and Subscriptions,Residence Orders,10/7/2010,400,879.02,Revenue,REDACTED
Childrens & Education Services,Family Support Services,CL Residence Orders,Supplies & Services,Grants and Subscriptions,Residence Orders,10/22/2010,401,879.02,Revenue,REDACTED
Childrens & Education Services,Family Support Services,CL Residence Orders,Supplies & Services,Grants and Subscriptions,Residence Orders,10/4/2010,402,750,Revenue,REDACTED
Childrens & Education Services,Family Support Services,CL Residence Orders,Supplies & Services,Grants and Subscriptions,Residence Orders,10/7/2010,403,622.94,Revenue,REDACTED
Childrens & Education Services,Family Support Services,CL Residence Orders,Supplies & Services,Grants and Subscriptions,Residence Orders,10/7/2010,404,606.9,Revenue,REDACTED
Childrens & Education Services,Family Support Services,CL Residence Orders,Supplies & Services,Grants and Subscriptions,Residence Orders,10/22/2010,405,606.9,Revenue,REDACTED
Childrens & Education Services,Children Looked After (24hrs+),CL Residential Care Homes CLA,Third Party Payments,Private Contractors,Miscellaneous Agency Services,10/6/2010,406,45747,Revenue,REDACTED
Childrens & Education Services,Children Looked After (24hrs+),CL Residential Care Homes CLA,Third Party Payments,Private Contractors,Miscellaneous Agency Services,10/12/2010,407,15600,Revenue,REDACTED
Childrens & Education Services,Children Looked After (24hrs+),CL Residential Care Homes CLA,Third Party Payments,Private Contractors,Miscellaneous Agency Services,10/12/2010,408,13673.6,Revenue,REDACTED
Childrens & Education Services,Children Looked After (24hrs+),CL Residential Care Homes CLA,Third Party Payments,Private Contractors,Miscellaneous Agency Services,10/22/2010,409,13273.6,Revenue,REDACTED
Childrens & Education Services,Children Looked After (24hrs+),CL Residential Care Homes CLA,Third Party Payments,Private Contractors,Miscellaneous Agency Services,10/26/2010,410,12000,Revenue,REDACTED
Childrens & Education Services,Children Looked After (24hrs+),CL Residential Care Homes CLA,Third Party Payments,Private Contractors,Miscellaneous Agency Services,10/26/2010,411,11001.76,Revenue,REDACTED
Childrens & Education Services,Children Looked After (24hrs+),CL Residential Care Homes CLA,Third Party Payments,Private Contractors,Miscellaneous Agency Services,10/22/2010,412,9055.2,Revenue,REDACTED
Childrens & Education Services,Children Looked After (24hrs+),CL Residential Care Homes CLA,Third Party Payments,Private Contractors,Miscellaneous Agency Services,10/12/2010,413,8841.04,Revenue,REDACTED
Childrens & Education Services,Children Looked After (24hrs+),CL Residential Care Homes CLA,Third Party Payments,Private Contractors,Miscellaneous Agency Services,10/26/2010,414,7336,Revenue,REDACTED
Childrens & Education Services,Children Looked After (24hrs+),CL Residential Care Homes CLA,Third Party Payments,Private Contractors,Miscellaneous Agency Services,10/12/2010,415,1960,Revenue,REDACTED
Childrens & Education Services,Children Looked After (24hrs+),CL Residential Care Homes CLA,Third Party Payments,Private Contractors,Miscellaneous Agency Services,10/26/2010,416,1120,Revenue,REDACTED
Childrens & Education Services,Children Looked After (24hrs+),CL Residential Care Homes CLA,Third Party Payments,Private Contractors,Miscellaneous Agency Services,10/6/2010,417,1059.96,Revenue,REDACTED
Childrens & Education Services,Children Looked After (24hrs+),CL Residential Care Homes CLA,Third Party Payments,Private Contractors,Miscellaneous Agency Services,10/12/2010,418,882.09,Revenue,REDACTED
Childrens & Education Services,Children Looked After (24hrs+),CL Secure Accommodation,Third Party Payments,Private Contractors,Miscellaneous Agency Services,10/8/2010,419,21555.54,Revenue,ESSEX COUNTY COUNCIL
Childrens & Education Services,Children Looked After (24hrs+),CL Secure Accommodation,Third Party Payments,Private Contractors,Miscellaneous Agency Services,10/26/2010,420,21000,Revenue,DEVON COUNTY COUNCIL
Childrens & Education Services,Children Looked After (24hrs+),CL Secure Accommodation,Third Party Payments,Private Contractors,Miscellaneous Agency Services,10/12/2010,421,7671.6,Revenue,THE YOUTH JUSTICE BOARD
Childrens & Education Services,Children Looked After (24hrs+),CL Secure Accommodation,Third Party Payments,Private Contractors,Miscellaneous Agency Services,10/12/2010,422,6393,Revenue,THE YOUTH JUSTICE BOARD
Childrens & Education Services,Other Ch's & Family Services,CL Setting Up Home Allowance,Third Party Payments,Private Contractors,Miscellaneous Agency Services,10/12/2010,423,2000,Revenue,REDACTED
Childrens & Education Services,Other Ch's & Family Services,CL Setting Up Home Allowance,Third Party Payments,Private Contractors,Miscellaneous Agency Services,10/25/2010,424,1156.56,Revenue,REDACTED
Childrens & Education Services,Other Ch's & Family Services,CL Setting Up Home Allowance,Third Party Payments,Private Contractors,Miscellaneous Agency Services,10/4/2010,425,1134.79,Revenue,REDACTED
Childrens & Education Services,Other Ch's & Family Services,CL Setting Up Home Allowance,Third Party Payments,Private Contractors,Miscellaneous Agency Services,10/11/2010,426,1028.36,Revenue,REDACTED
Childrens & Education Services,Other Ch's & Family Services,CL Setting Up Home Allowance,Third Party Payments,Private Contractors,Miscellaneous Agency Services,10/12/2010,427,1000,Revenue,REDACTED
Childrens & Education Services,Other Ch's & Family Services,CL Setting Up Home Allowance,Third Party Payments,Private Contractors,Miscellaneous Agency Services,10/28/2010,428,1000,Revenue,REDACTED
Childrens & Education Services,Other Ch's & Family Services,CL Setting Up Home Allowance,Third Party Payments,Private Contractors,Miscellaneous Agency Services,10/25/2010,429,1000,Revenue,REDACTED
Childrens & Education Services,Other Ch's & Family Services,CL Setting Up Home Allowance,Third Party Payments,Private Contractors,Miscellaneous Agency Services,10/18/2010,430,949,Revenue,REDACTED
Childrens & Education Services,Other Ch's & Family Services,CL Setting Up Home Allowance,Third Party Payments,Private Contractors,Miscellaneous Agency Services,10/25/2010,431,670.5,Revenue,RECONSTRUCT LIMITED
Childrens & Education Services,Other Ch's & Family Services,CL Setting Up Home Allowance,Third Party Payments,Private Contractors,Miscellaneous Agency Services,10/29/2010,432,562.4,Revenue,ON BEHALF SP HOMES LTD NO2 ACC
Childrens & Education Services,Family Support Services,CL Travel E-Parent Visiting T1,Third Party Payments,Private Contractors,Miscellaneous Agency Services,10/20/2010,433,1153.5,Revenue,REDACTED
Childrens & Education Services,Family Support Services,CL Travel E-Parent Visiting T1,Third Party Payments,Private Contractors,Miscellaneous Agency Services,10/6/2010,434,1100,Revenue,REDACTED
Childrens & Education Services,Family Support Services,CL Travel E-Parent Visiting T1,Third Party Payments,Private Contractors,Miscellaneous Agency Services,10/25/2010,435,1000,Revenue,REDACTED
,,Climate Change Initiatives,"New Const, Conv & Renvtion",Dsgn/Sprvsn-Ext Cnsltcy Fees,Dsgn/Sprvsn-Ext Cnsltcy Fees,10/20/2010,436,4710,Capital,REDACTED
Cultural Env Reg&Plan Services,Recreation & Sport,Clnt Offrs-CivicCntr,Supplies & Services,Services,Consultants,10/13/2010,437,4457.19,Revenue,FMG CONSULTING LTD
Cultural Env Reg&Plan Services,Open Spaces,Collier's Wd Rec Grd,Premises Related Expenditure,Energy Costs,Electricity,10/1/2010,438,893.1,Revenue,EDF ENERGY 1 LIMITED
Cultural Env Reg&Plan Services,Community Development (Plg),Colliers Wood Community Asso,Supplies & Services,Grants and Subscriptions,Grants - Running Expenses,10/5/2010,439,5960,Revenue,COLLIERS WOOD COMMUNITY ASSOC
Cultural Env Reg&Plan Services,Waste Collection,Commercial Waste,Supplies & Services,Equip Furniture/Materials,Equip-Purchases,10/7/2010,440,892.8,Revenue,GRANGEWOOD PLASTIC PACKAGING
Cultural Env Reg&Plan Services,Waste Collection,Commercial Waste Collection,Supplies & Services,Equip Furniture/Materials,Waste Sacks & Bags,10/5/2010,441,1471.25,Revenue,IMPERIAL POLYTHENE PRODUCTS LT
Cultural Env Reg&Plan Services,Open Spaces,Commons Extension,Premises Related Expenditure,Energy Costs,Gas (incl. Butane),10/7/2010,442,688.29,Revenue,KENT COUNTY COUNCIL COMM SVCS
Central Services,Fully rechargeable Overheads,Community Cohesion,Supplies & Services,Services,Misc Advertising/Publicity,10/15/2010,443,990,Revenue,REDACTED
Central Services,Fully rechargeable Overheads,Community Cohesion,Supplies & Services,Services,Miscellaneous Expenses,10/18/2010,444,500,Revenue,GOALDEN EVENTS
Cultural Env Reg&Plan Services,Community Development (Plg),Community Development Fund,Supplies & Services,Grants and Subscriptions,Grants - Running Expenses,10/15/2010,445,3800,Revenue,COMMONSIDE COMMUNITY DEV TRUST
Childrens & Education Services,Assuring Access To Schools,CONX - TEENAGE PREGNANCY,Supplies & Services,Equip Furniture/Materials,Teenage,10/7/2010,446,19000,Revenue,SUTTON & MERTON PCT
Central Services,Fully rechargeable Overheads,Coroners Courts,Third Party Payments,Joint Authorities,SW Inner London Coroners Crt C,10/15/2010,447,47931.97,Revenue,CITY OF WESTMINSTER
Central Services,Fully rechargeable Overheads,Corp Saving-Print Strategy,Supplies & Services,Prntng Stnry Gen Off Exp,Internal Printing,10/13/2010,448,83180.69,Revenue,ALTODIGITAL UK LIMITED
Central Services,Fully rechargeable Overheads,Corporate Accountancy,Supplies & Services,Services,Audit fee,10/15/2010,449,45064,Revenue,AUDIT COMMISSION
Central Services,Fully rechargeable Overheads,Corporate Accountancy,Supplies & Services,Services,Audit fee,10/18/2010,450,2852,Revenue,AUDIT COMMISSION
Central Services,Fully rechargeable Overheads,Corporate Services Buildings,Premises Related Expenditure,Energy Costs,Electricity,10/19/2010,451,17255.92,Revenue,KENT COUNTY COUNCIL COMM SVCS
Central Services,Fully rechargeable Overheads,Corporate Services Buildings,Premises Related Expenditure,RepairsAlterations&MtceOfBldgs,DDM - Mechanical,10/18/2010,452,5035.57,Revenue,COFELY LIMITED
Central Services,Fully rechargeable Overheads,Corporate Services Buildings,Premises Related Expenditure,RepairsAlterations&MtceOfBldgs,DDM - Mechanical,10/27/2010,453,4549.32,Revenue,ADT FIRE AND SECURITY PLC
Central Services,Fully rechargeable Overheads,Corporate Services Buildings,Premises Related Expenditure,RepairsAlterations&MtceOfBldgs,DDM - General Building,10/13/2010,454,1550,Revenue,R.J.H.WELDING
Central Services,Fully rechargeable Overheads,Corporate Services Buildings,Premises Related Expenditure,Water Services,Use of Water (Metered),10/28/2010,455,1072.25,Revenue,SUTTON & EAST SURREY WATER PLC
Central Services,Fully rechargeable Overheads,Corporate Services Buildings,Premises Related Expenditure,Energy Costs,Gas (incl. Butane),10/18/2010,456,934.17,Revenue,KENT COUNTY COUNCIL COMM SVCS
Central Services,Fully rechargeable Overheads,Corporate Services Buildings,Premises Related Expenditure,RepairsAlterations&MtceOfBldgs,DDM - General Building,10/21/2010,457,750,Revenue,REDACTED
Central Services,Fully rechargeable Overheads,Corporate Services Buildings,Premises Related Expenditure,RepairsAlterations&MtceOfBldgs,DDM - Mechanical,10/27/2010,458,563.66,Revenue,ADT FIRE AND SECURITY PLC
Central Services,Fully rechargeable Overheads,Corporate Services Buildings,Premises Related Expenditure,RepairsAlterations&MtceOfBldgs,DDM - Mechanical,10/27/2010,459,550.43,Revenue,ADT FIRE AND SECURITY PLC
Central Services,Fully rechargeable Overheads,Corporate Services Buildings,Premises Related Expenditure,RepairsAlterations&MtceOfBldgs,DDM - Mechanical,10/13/2010,460,534.17,Revenue,COFELY LIMITED
Central Services,Fully rechargeable Overheads,Corporate Services Buildings,Premises Related Expenditure,Energy Costs,Gas (incl. Butane),10/28/2010,461,516.96,Revenue,KENT COUNTY COUNCIL COMM SVCS
Cultural Env Reg&Plan Services,Open Spaces,Cottenham Park - CO,Premises Related Expenditure,Water Services,Use of Water (Metered),10/27/2010,462,1651.14,Revenue,THAMES WATER UTILITIES LTD
Childrens & Education Services,Children's Services - C & S W,Court Required Contact,Employees,Direct Employee Expenses,Agency Staff & Casual Paymts,10/7/2010,463,1029,Revenue,NURSE & CARER SERVICES
Childrens & Education Services,Children's Services - C & S W,Court Required Contact,Employees,Direct Employee Expenses,Agency Staff & Casual Paymts,10/14/2010,464,735,Revenue,NURSE & CARER SERVICES
,,Cranmer expansion,"New Const, Conv & Renvtion",Ste Wrks-Nw Bld-Main Cntrct,Ste Wrks-Nw Bld-Main Cntrct,10/13/2010,465,86524.47,Capital,PORTAKABIN LIMITED
,,Cranmer expansion,"New Const, Conv & Renvtion",Ste Wrks-Nw Bld-Sub cntrct,Ste Wrks-Nw Bld-Sub cntrct,10/11/2010,466,2037,Capital,CHUBB FIRE LIMITED
,,Crime Strategy SSCF Allocation,Plnt Mch & Equip(signs etc),Equipment,Equipment,10/7/2010,467,3995,Capital,RUTLISH SCHOOL
,,Crossrail BRS,Fund Balances,,Payments X,10/22/2010,468,206410,Revenue,GREATER LONDON AUTHORITY
,,Croydon Road Roundabout,"New Const, Conv & Renvtion",Ste Wrk-Rn & Mt-Main Contractr,Ste Wrk-Rn & Mt-Main Contractr,10/12/2010,469,94710.69,Capital,FM CONWAY LTD
Childrens & Education Services,Family Support Services,CS Bond Road,Premises Related Expenditure,Cleaning and Domestic Supplies,Cleaning Services,10/1/2010,470,511.42,Revenue,JULIUS RUTHERFOORD & CO LTD
Childrens & Education Services,Children Looked After (24hrs+),CS Brightwell,Employees,Direct Employee Expenses,Agency Staff & Casual Paymts,10/7/2010,471,1143.36,Revenue,SOCIAL WORKLINE LTD
Childrens & Education Services,Children Looked After (24hrs+),CS Brightwell,Employees,Direct Employee Expenses,Agency Staff & Casual Paymts,10/28/2010,472,826.02,Revenue,INT MARK EDUCATION
Childrens & Education Services,Children Looked After (24hrs+),CS Brightwell,Employees,Indirect Employee Expenses,Misc Training Expenses (AP),10/13/2010,473,756,Revenue,ST JOHN AMBULANCE
Childrens & Education Services,Children Looked After (24hrs+),CS Brightwell,Employees,Direct Employee Expenses,Agency Staff & Casual Paymts,10/20/2010,474,642.22,Revenue,INT MARK EDUCATION
Childrens & Education Services,Children Looked After (24hrs+),CS Brightwell,Employees,Direct Employee Expenses,Agency Staff & Casual Paymts,10/28/2010,475,599.9,Revenue,INT MARK EDUCATION
Childrens & Education Services,Children Looked After (24hrs+),CS Brightwell,Employees,Direct Employee Expenses,Agency Staff & Casual Paymts,10/5/2010,476,547.86,Revenue,SOCIAL WORKLINE LTD
Childrens & Education Services,Family Support Services,CS Children in Need Section 17,Transfer Payments,Social Services clients,Childr Act 1989 S17,10/4/2010,477,550,Revenue,SAINSBURY'S BUSINESS DIRECT
Childrens & Education Services,Family Support Services,CS Day Care CWD,Third Party Payments,Private Contractors,Playscheme,10/6/2010,478,1682.5,Revenue,LITTLE CATERPILLARS PLAYGROUP
Childrens & Education Services,Family Support Services,CS Day Care CWD,Third Party Payments,Private Contractors,Miscellaneous Agency Services,10/26/2010,479,679.34,Revenue,CORE CONNEXIONS
Childrens & Education Services,Family Support Services,CS Day Care CWD,Third Party Payments,Private Contractors,After School Care Group,10/6/2010,480,562.5,Revenue,LITTLE CATERPILLARS PLAYGROUP
Childrens & Education Services,Family Support Services,CS Day Care CWD,Third Party Payments,Private Contractors,Miscellaneous Agency Services,10/6/2010,481,542.85,Revenue,CHRYSALIS HOME CARE
Childrens & Education Services,Family Support Services,CS DayCare Facilities Children,Third Party Payments,Private Contractors,Daily Childminding,10/12/2010,482,975,Revenue,REDACTED
Childrens & Education Services,Family Support Services,CS DayCare Facilities Children,Third Party Payments,Private Contractors,Daily Childminding,10/18/2010,483,900,Revenue,REDACTED
Childrens & Education Services,Family Support Services,CS Direct Payments,Third Party Payments,Private Contractors,Direct Payments,10/6/2010,484,1278,Revenue,REDACTED
Childrens & Education Services,Family Support Services,CS Direct Payments,Third Party Payments,Private Contractors,Direct Payments,10/6/2010,485,639,Revenue,REDACTED
Childrens & Education Services,Family Support Services,CS Leyton Road,Third Party Payments,Private Contractors,Miscellaneous Agency Services,10/18/2010,486,2822.14,Revenue,ACTION FOR CHILDREN SERV.LTD
Childrens & Education Services,Children's Services - C & S W,CS R&A Team,Employees,Direct Employee Expenses,Agency Staff & Casual Paymts,10/7/2010,487,1517.25,Revenue,AIR SOCIAL CARE
Childrens & Education Services,Children's Services - C & S W,CS R&A Team,Employees,Direct Employee Expenses,Agency Staff & Casual Paymts,10/7/2010,488,1517.25,Revenue,VENTURE FINANCE PLC
Childrens & Education Services,Children's Services - C & S W,CS R&A Team,Employees,Direct Employee Expenses,Agency Staff & Casual Paymts,10/7/2010,489,1213.8,Revenue,AIR SOCIAL CARE
Childrens & Education Services,Children's Services - C & S W,CS R&A Team,Employees,Direct Employee Expenses,Agency Staff & Casual Paymts,10/13/2010,490,1213.8,Revenue,AIR SOCIAL CARE
Childrens & Education Services,Family Support Services,CS Referral & Assessment Sec17,Transfer Payments,Social Services clients,Childr Act 1989 S17,10/4/2010,491,550,Revenue,SAINSBURY'S BUSINESS DIRECT
Childrens & Education Services,Service Strategy,CSF Buildings,Premises Related Expenditure,RepairsAlterations&MtceOfBldgs,DDM - Mechanical,10/25/2010,492,1322.59,Revenue,COFELY LIMITED
Childrens & Education Services,Service Strategy,CSF Buildings,Premises Related Expenditure,RepairsAlterations&MtceOfBldgs,DDM - General Building,10/25/2010,493,1280,Revenue,REDACTED
Childrens & Education Services,Service Strategy,CSF Buildings,Premises Related Expenditure,RepairsAlterations&MtceOfBldgs,DDM - Electrical,10/28/2010,494,532.8,Revenue,ADT FIRE & SECURITY PLC
Childrens & Education Services,Service Strategy,CSF Buildings,Premises Related Expenditure,RepairsAlterations&MtceOfBldgs,DDM - General Building,10/25/2010,495,530,Revenue,LOVELL LTD
Cultural Env Reg&Plan Services,Culture & Heritage,Cultural Diversity Fund,Supplies & Services,Grants and Subscriptions,Grants to Vol Bodies,10/19/2010,496,1069.98,Revenue,QBS SOFTWARE LIMITED
Highways & Transport Services,Structural Maintenance,C'way & F'way Mtce,Supplies & Services,Grants and Subscriptions,Subscriptions,10/13/2010,497,750,Revenue,INSTITUTE OF PUBLIC FINANCE
Central Services,Fully rechargeable Overheads,Data protection,Supplies & Services,Services,General Office Expenses,10/11/2010,498,500,Revenue,INFORMATION COMMISSIONER
,,Decommission Natural Gas Site,"New Const, Conv & Renvtion",Ste Wrk-Rn & Mt-Main Contractr,Ste Wrk-Rn & Mt-Main Contractr,10/13/2010,499,4100,Capital,LOVELL LTD
Cultural Env Reg&Plan Services,Open Spaces,Deen City Farm,Supplies & Services,Grants and Subscriptions,Grants - Running Expenses,10/14/2010,500,32893.75,Revenue,DEEN CITY FARM
Childrens & Education Services,Youth Service,Detached Projects,Transport Related Expenditure,Direct Transport Costs,R & M of Veh - General,10/6/2010,501,1032.7,Revenue,ZURICH INSURANCE COMPANY
Childrens & Education Services,Youth Service,Detached Projects,Employees,Indirect Employee Expenses,Post Entry training-creditors,10/22/2010,502,700,Revenue,FED FOR DETACHED YOUTH WORK
Childrens & Education Services,Youth Service,Detached Projects,Supplies & Services,Prntng Stnry Gen Off Exp,External Printing,10/11/2010,503,552,Revenue,GPEX
Cultural Env Reg&Plan Services,Development Control,Development Control,Supplies & Services,Comms and Computing,Computer Purchases - Misc,10/1/2010,504,2000,Revenue,NORTHGATE INFORMATION SOLUTION
Cultural Env Reg&Plan Services,Development Control,Development Control,Customer and client receipts,Fees,Application Fees X,10/27/2010,505,1150,Revenue,REGIS UK LTD
Cultural Env Reg&Plan Services,Development Control,Development Control,Supplies & Services,Services,Misc Advertising/Publicity,10/28/2010,506,588,Revenue,NEWSQUEST (LONDON)LTD
,,DFG Mandatory  05/06,Other Capital Expenditure,Grants,Grants,10/13/2010,507,17907,Capital,MFB PROPERTY SERVICES LTD
,,DFG Mandatory  05/06,Other Capital Expenditure,Grants,Grants,10/13/2010,508,14780,Capital,FREEWAY LIFT SERVICES LTD
,,DFG Mandatory  05/06,Other Capital Expenditure,Grants,Grants,10/13/2010,509,7166.25,Capital,GNT BUILDING SERVICES
,,DFG Mandatory  05/06,Other Capital Expenditure,Grants,Grants,10/7/2010,510,5481,Capital,T.BROWN SERVICES LIMITED
,,DFG Mandatory  05/06,Other Capital Expenditure,Grants,Grants,10/1/2010,511,2953.4,Capital,ABLE 2 OCCUP.THERAPY SERV.LTD
,,DFG Mandatory  05/06,Other Capital Expenditure,Grants,Grants,10/13/2010,512,2577.95,Capital,CBS ADAPTATION
,,DFG Mandatory  05/06,Other Capital Expenditure,Grants,Grants,10/20/2010,513,2290.8,Capital,ABLE 2 OCCUP.THERAPY SERV.LTD
,,DFG Mandatory  05/06,Other Capital Expenditure,Grants,Grants,10/22/2010,514,2190.46,Capital,ABLE 2 OCCUP.THERAPY SERV.LTD
,,DFG Mandatory  05/06,Other Capital Expenditure,Grants,Grants,10/1/2010,515,1598.25,Capital,ABLE 2 OCCUP.THERAPY SERV.LTD
,,DFG Mandatory  05/06,Other Capital Expenditure,Grants,Grants,10/13/2010,516,777.75,Capital,ABLE 2 OCCUP.THERAPY SERV.LTD
Housing Services,Supervision and Management,Directorate Costs,Supplies & Services,Services,Miscellaneous Expenses,10/27/2010,517,6000,Revenue,DLA PIPER UK
Housing Services,Supervision and Management,Directorate Costs,Supplies & Services,Services,General Office Expenses,10/18/2010,518,528.75,Revenue,ISAAC CONSULTING LTD
,,Disaster recovery,"New Const, Conv & Renvtion",Ste Wrk-Rn & Mt-Main Contractr,Ste Wrk-Rn & Mt-Main Contractr,10/13/2010,519,1984,Capital,SUSCRAFT LTD(T/A OAKMEAD ELEC)
Housing Services,Repairs and Maintenance,Disrepair cases (non repairs),Supplies & Services,Miscellaneous Expenses,Compensation Payments,10/4/2010,520,19500,Revenue,BATTERSEA LAW CENTRE
Cultural Env Reg&Plan Services,Environmental Health,Dog Control.,Third Party Payments,Private Contractors,Miscellaneous Hired Services,10/21/2010,521,2507.5,Revenue,SDK ENVIROMENTAL LTD
Cultural Env Reg&Plan Services,Environmental Health,Dog Control.,Employees,Direct Employee Expenses,Agency Staff & Casual Paymts,10/14/2010,522,1664,Revenue,SDK ENVIROMENTAL LTD
Cultural Env Reg&Plan Services,Environmental Health,Dog Control.,Third Party Payments,Private Contractors,Contract Payments,10/20/2010,523,835,Revenue,SDK ENVIROMENTAL LTD
Cultural Env Reg&Plan Services,Environmental Health,Dog Control.,Third Party Payments,Private Contractors,Term Contract,10/19/2010,524,540,Revenue,TEASDALE GROUP LTD
Childrens & Education Services,Service Strategy,DS Director SSR Costs,Employees,Indirect Employee Expenses,Health Staff in PCT Pool,10/13/2010,525,2647.27,Revenue,SW LONDON ST GEORGES NHS TRUST
Childrens & Education Services,Service Strategy,DS Director SSR Costs,Employees,Indirect Employee Expenses,Health Staff in PCT Pool,10/5/2010,526,902.7,Revenue,SW LONDON ST GEORGES NHS TRUST
Childrens & Education Services,Service Strategy,DS Director SSR Costs,Supplies & Services,Expenses,Conferences,10/27/2010,527,624,Revenue,JURY HOTEL MANAGEMENT
Adult Social Care,Support Serv & Mgmt Costs (SS),DS Directorate SSM Costs,Employees,Direct Employee Expenses,Emergency Social Workers (AP),10/29/2010,528,103092,Revenue,L.B.RICHMOND UPON THAMES
Adult Social Care,Support Serv & Mgmt Costs (SS),DS Directorate SSM Costs,Employees,Direct Employee Expenses,M&SJCB Employees,10/29/2010,529,103092,Revenue,L.B.RICHMOND UPON THAMES
Adult Social Care,Support Serv & Mgmt Costs (SS),DS Directorate SSM Costs,Employees,Indirect Employee Expenses,Health Staff in PCT Pool,10/27/2010,530,6766.54,Revenue,SUTTON & MERTON PCT
Adult Social Care,Support Serv & Mgmt Costs (SS),DS Directorate SSM Costs,Employees,Indirect Employee Expenses,Health Staff in PCT Pool,10/27/2010,531,6649.61,Revenue,SUTTON & MERTON PCT
Highways & Transport Services,Traffic Mgt & Road Safety,DTL Sch Travel Plan Bursary,Supplies & Services,Services,Consultants,10/20/2010,532,2764.5,Revenue,CLAVERTON MAN.SERVICES LTD
Cultural Env Reg&Plan Services,Economic Development,Durnsford Rd Budget,Premises Related Expenditure,RepairsAlterations&MtceOfBldgs,Security of Premises,10/28/2010,533,538.79,Revenue,FIDELIS (LONDON) LTD
Cultural Env Reg&Plan Services,Open Spaces,E & R Buildings,Premises Related Expenditure,RepairsAlterations&MtceOfBldgs,DDM - Mechanical,10/18/2010,534,1013.73,Revenue,COFELY LIMITED
Childrens & Education Services,Pre-School Ed (inc Nursery),E.Years-Intergenerational Cntr,Premises Related Expenditure,Cleaning and Domestic Supplies,Cleaning Services,10/11/2010,535,822.08,Revenue,JULIUS RUTHERFOORD & CO LTD
Childrens & Education Services,Pre-School Ed (inc Nursery),E.Years-Intergenerational Cntr,Premises Related Expenditure,Cleaning and Domestic Supplies,Cleaning Services,10/18/2010,536,822.08,Revenue,JULIUS RUTHERFOORD & CO LTD
Childrens & Education Services,Pre-School Ed (inc Nursery),E.Years-Intergenerational Cntr,Premises Related Expenditure,Energy Costs,Electricity,10/28/2010,537,512.73,Revenue,KENT COUNTY COUNCIL COMM SVCS
,,Eastfields Station,"New Const, Conv & Renvtion",Ste Wrk-Rn & Mt-Main Contractr,Ste Wrk-Rn & Mt-Main Contractr,10/7/2010,538,14521.41,Capital,FM CONWAY LTD
Central Services,Fully rechargeable Overheads,Efficiency Review Project,Supplies & Services,Services,Consultants,10/4/2010,539,23350,Revenue,METHODS CONSULTING LTD
Central Services,Fully rechargeable Overheads,Efficiency Review Project,Supplies & Services,Services,Consultants,10/28/2010,540,19900,Revenue,METHODS CONSULTING LTD
Central Services,Fully rechargeable Overheads,Efficiency Review Project,Supplies & Services,Services,Consultants,10/13/2010,541,9800,Revenue,REDACTED
Central Services,Fully rechargeable Overheads,Efficiency Review Project,Supplies & Services,Services,Consultants,10/28/2010,542,4200,Revenue,DMANOLAS LTD
Central Services,Elections,Electoral Registration,Supplies & Services,Comms and Computing,Postage - General,10/11/2010,543,6249.99,Revenue,ROYAL MAIL GROUP PLC
Central Services,Elections,Electoral Registration,Employees,Indirect Employee Expenses,Post Entry training-creditors,10/18/2010,544,1250,Revenue,AEA (BOOKINGS)
Childrens & Education Services,Other Ch's & Family Services,Emergency SW - Children,Employees,Direct Employee Expenses,Emergency Social Workers (AP),10/7/2010,545,36052.71,Revenue,LONDON BOROUGH OF SUTTON
Childrens & Education Services,Other Ch's & Family Services,Emergency SW - Children,Employees,Direct Employee Expenses,M&SJCB Employees,10/7/2010,546,36052.71,Revenue,LONDON BOROUGH OF SUTTON
,,e-procurement,Other Capital Expenditure,Misc Cap Expenditure,Misc Cap Expenditure,10/28/2010,547,2062.5,Capital,UNISERVE CONSULTING LIMITED
Cultural Env Reg&Plan Services,SMSS (Env),ES Business Systems,Supplies & Services,Comms and Computing,Software Licences,10/28/2010,548,13401.4,Revenue,ORDNANCE SURVEY
Cultural Env Reg&Plan Services,SMSS (Env),ES Business Systems,Supplies & Services,Equip Furniture/Materials,Computer Servs Special,10/19/2010,549,2511,Revenue,PITNEY BOWES SOFTWARE LTD
Cultural Env Reg&Plan Services,SMSS (Env),ES Support & Development,Supplies & Services,Equip Furniture/Materials,Equipment - R & M,10/21/2010,550,3960,Revenue,SPEECHWRITE SUPPORT LTD
Cultural Env Reg&Plan Services,SMSS (Env),ES Support & Development,Supplies & Services,Expenses,Conferences,10/28/2010,551,1195,Revenue,CIPFA BUSINESS LIMITED
Cultural Env Reg&Plan Services,SMSS (Env),ES Support & Development,Supplies & Services,Expenses,Conferences,10/18/2010,552,540,Revenue,CHARTERED INST.OF ENVIR.HEALTH
Central Services,Fully rechargeable Overheads,Establishments' Cash Collect'n,Third Party Payments,Private Contractors,Miscellaneous Hired Services,10/13/2010,553,4768.24,Revenue,LOOMIS UK LTD
Central Services,Fully rechargeable Overheads,Establishments' Cash Collect'n,Third Party Payments,Private Contractors,Miscellaneous Hired Services,10/22/2010,554,989.63,Revenue,LOOMIS UK LTD
Cultural Env Reg&Plan Services,Open Spaces,Events & Entertainments - Gen,Supplies & Services,Miscellaneous Expenses,Entertainment Licences,10/14/2010,555,1833.94,Revenue,PERFORMING RIGHTS SOCIETY
Cultural Env Reg&Plan Services,Economic Development,Eversham Green Morden,Premises Related Expenditure,RepairsAlterations&MtceOfBldgs,DDM - Mechanical,10/1/2010,556,2622.78,Revenue,SMITH & BYFORD LTD
Childrens & Education Services,Supporting SEN,Expanded Pupil Referral Unit,Third Party Payments,Private Contractors,Miscellaneous Agency Services,10/20/2010,557,5144.23,Revenue,SW LONDON ST GEORGES NHS TRUST
Childrens & Education Services,Supporting SEN,Expanded Pupil Referral Unit,Third Party Payments,Private Contractors,Miscellaneous Agency Services,10/19/2010,558,4985.69,Revenue,SW LONDON ST GEORGES NHS TRUST
Central Services,Fully rechargeable Overheads,Facilities,Third Party Payments,Private Contractors,Miscellaneous Hired Services,10/19/2010,559,3500,Revenue,HYDRO-X WATER TREATMENT LTD
,,Feasibility,"New Const, Conv & Renvtion",Dsgn/Sprvsn-Ext Cnsltcy Fees,Dsgn/Sprvsn-Ext Cnsltcy Fees,10/28/2010,560,15500,Capital,THE HOCA PRACTISE
,,Feasibility,"New Const, Conv & Renvtion",Dsgn/Sprvsn-Other Expenses,Dsgn/Sprvsn-Other Expenses,10/18/2010,561,3960,Capital,SITECHNICS LTD
,,Feasibility,"New Const, Conv & Renvtion",Dsgn/Sprvsn-Other Expenses,Dsgn/Sprvsn-Other Expenses,10/5/2010,562,3620,Capital,EDE'S (U.K.) LTD
,,Feasibility,"New Const, Conv & Renvtion",Dsgn/Sprvsn-Ext Cnsltcy Fees,Dsgn/Sprvsn-Ext Cnsltcy Fees,10/14/2010,563,3603.85,Capital,REDACTED
,,Feasibility,"New Const, Conv & Renvtion",Dsgn/Sprvsn-Ext Cnsltcy Fees,Dsgn/Sprvsn-Ext Cnsltcy Fees,10/13/2010,564,3391.46,Capital,EC HARRIS LLP
,,Feasibility,"New Const, Conv & Renvtion",Dsgn/Sprvsn-Other Expenses,Dsgn/Sprvsn-Other Expenses,10/18/2010,565,2000,Capital,EDE'S (U.K.) LTD
Adult Social Care,Other Adult Services,Fixed & Variable Client Paymen,Third Party Payments,Private Contractors,Miscellaneous Agency Services,10/4/2010,566,39749.19,Revenue,WIMBLEDON & DISTRICT YMCA
Adult Social Care,Other Adult Services,Fixed & Variable Client Paymen,Third Party Payments,Private Contractors,Miscellaneous Agency Services,10/4/2010,567,39666.25,Revenue,ABILITY HOUSING ASSOCIATION
Adult Social Care,Other Adult Services,Fixed & Variable Client Paymen,Third Party Payments,Private Contractors,Miscellaneous Agency Services,10/4/2010,568,27435,Revenue,COMFORT CARE SERVICES (UK) LTD
Adult Social Care,Other Adult Services,Fixed & Variable Client Paymen,Third Party Payments,Private Contractors,Miscellaneous Agency Services,10/4/2010,569,22844.13,Revenue,GRENFELL HOUSING ASSOCIATION
Adult Social Care,Other Adult Services,Fixed & Variable Client Paymen,Third Party Payments,Private Contractors,Miscellaneous Agency Services,10/4/2010,570,19895.2,Revenue,WANDLE HOUSING ASSOCIATION LTD
Adult Social Care,Other Adult Services,Fixed & Variable Client Paymen,Third Party Payments,Private Contractors,Miscellaneous Agency Services,10/4/2010,571,13842.59,Revenue,FAMILY HOUSING ASSOCIATION
Adult Social Care,Other Adult Services,Fixed & Variable Client Paymen,Third Party Payments,Private Contractors,Miscellaneous Agency Services,10/4/2010,572,13256.54,Revenue,MERTON ACT.FOR SINGLE HOMELESS
Adult Social Care,Other Adult Services,Fixed & Variable Client Paymen,Third Party Payments,Private Contractors,Miscellaneous Agency Services,10/4/2010,573,12073.1,Revenue,HESTIA HOUSING AND SUPPORT
Adult Social Care,Other Adult Services,Fixed & Variable Client Paymen,Third Party Payments,Private Contractors,Miscellaneous Agency Services,10/4/2010,574,11278.43,Revenue,EQUINOX
Adult Social Care,Other Adult Services,Fixed & Variable Client Paymen,Third Party Payments,Private Contractors,Miscellaneous Agency Services,10/4/2010,575,9757.75,Revenue,SERVITE HOUSES
Adult Social Care,Other Adult Services,Fixed & Variable Client Paymen,Third Party Payments,Private Contractors,Miscellaneous Agency Services,10/4/2010,576,9544.01,Revenue,MERTON REFUGE
Adult Social Care,Other Adult Services,Fixed & Variable Client Paymen,Third Party Payments,Private Contractors,Miscellaneous Agency Services,10/4/2010,577,8913.95,Revenue,METROPOLITAN SUPPORT TRUST
Adult Social Care,Other Adult Services,Fixed & Variable Client Paymen,Third Party Payments,Private Contractors,Miscellaneous Agency Services,10/4/2010,578,7734,Revenue,NOTTING HILL HOUSING
Adult Social Care,Other Adult Services,Fixed & Variable Client Paymen,Third Party Payments,Private Contractors,Miscellaneous Agency Services,10/4/2010,579,7074.64,Revenue,MERTON PRIORY HOMES
Adult Social Care,Other Adult Services,Fixed & Variable Client Paymen,Third Party Payments,Private Contractors,Miscellaneous Agency Services,10/4/2010,580,5833.33,Revenue,AGE CONCERN (MERTON)
Adult Social Care,Other Adult Services,Fixed & Variable Client Paymen,Third Party Payments,Private Contractors,Miscellaneous Agency Services,10/4/2010,581,3429.22,Revenue,ANCHOR SP PAYMENT FROM SEP'03
Adult Social Care,Other Adult Services,Fixed & Variable Client Paymen,Third Party Payments,Private Contractors,Miscellaneous Agency Services,10/4/2010,582,2785.67,Revenue,CROYDON CHURCHES HOUSING ASSOC
Adult Social Care,Other Adult Services,Fixed & Variable Client Paymen,Third Party Payments,Private Contractors,Miscellaneous Agency Services,10/4/2010,583,2568.34,Revenue,SANCTUARY CARE
Adult Social Care,Other Adult Services,Fixed & Variable Client Paymen,Third Party Payments,Private Contractors,Miscellaneous Agency Services,10/4/2010,584,1791.61,Revenue,CENTRAL & CECIL HOUSING TRUST
Adult Social Care,Other Adult Services,Fixed & Variable Client Paymen,Third Party Payments,Private Contractors,Miscellaneous Agency Services,10/4/2010,585,1711.36,Revenue,MERTON PRIORY HOMES
Adult Social Care,Other Adult Services,Fixed & Variable Client Paymen,Third Party Payments,Private Contractors,Miscellaneous Agency Services,10/4/2010,586,1691.66,Revenue,ASIAN ELDERLY GROUP OF MERTON
Adult Social Care,Other Adult Services,Fixed & Variable Client Paymen,Third Party Payments,Private Contractors,Miscellaneous Agency Services,10/4/2010,587,1676.32,Revenue,REDACTED
Adult Social Care,Other Adult Services,Fixed & Variable Client Paymen,Third Party Payments,Private Contractors,Miscellaneous Agency Services,10/4/2010,588,1462.35,Revenue,HANOVER HOUSING ASSOCIATION
Adult Social Care,Other Adult Services,Fixed & Variable Client Paymen,Third Party Payments,Private Contractors,Miscellaneous Agency Services,10/4/2010,589,885.15,Revenue,HOUSING21
Adult Social Care,Other Adult Services,Fixed & Variable Client Paymen,Third Party Payments,Private Contractors,Miscellaneous Agency Services,10/4/2010,590,842.36,Revenue,HORIZON HOUSING GROUP LIMITED
Adult Social Care,Other Adult Services,Fixed & Variable Client Paymen,Third Party Payments,Private Contractors,Miscellaneous Agency Services,10/4/2010,591,709.45,Revenue,THRESHOLD CENTRE LTD
Adult Social Care,Other Adult Services,Fixed & Variable Client Paymen,Third Party Payments,Private Contractors,Miscellaneous Agency Services,10/4/2010,592,671.6,Revenue,SHAFTESBURY HOUSING ASSOC.
Adult Social Care,Other Adult Services,Fixed & Variable Client Paymen,Third Party Payments,Private Contractors,Miscellaneous Agency Services,10/4/2010,593,600.42,Revenue,KINGSTON CHURCHES ACTION ON HO
,,Fixed Electrical Ins. Testing,"New Const, Conv & Renvtion",Ste Wrk-Rn & Mt-Main Contractr,Ste Wrk-Rn & Mt-Main Contractr,10/14/2010,594,511.28,Capital,COFELY LIMITED
Cultural Env Reg&Plan Services,Street Cleaning - Not highways,Fly Tippng Clearance,Supplies & Services,Services,Misc Advertising/Publicity,10/21/2010,595,900,Revenue,METEORA LTD
Cultural Env Reg&Plan Services,Street Cleaning - Not highways,Fly Tippng Clearance,Supplies & Services,Services,Misc Advertising/Publicity,10/28/2010,596,750,Revenue,LONDON LETTERBOX MARKETING
Central Services,Fully rechargeable Overheads,FM External Fees,Premises Related Expenditure,RepairsAlterations&MtceOfBldgs,Build Maint Mgt Fees,10/18/2010,597,695,Revenue,KOSTYRKA ARCHITECTURAL SERVICE
Central Services,Fully rechargeable Overheads,FM External Fees,Premises Related Expenditure,RepairsAlterations&MtceOfBldgs,Build Maint Mgt Fees,10/18/2010,598,570,Revenue,KOSTYRKA ARCHITECTURAL SERVICE
,,FMIS Version Upgrade,Other Capital Expenditure,Misc Cap Expenditure,Misc Cap Expenditure,10/18/2010,599,5849.33,Capital,INFOR GLOBAL SOLUTIONS-FRIMLEY
Highways & Transport Services,Structural Maintenance,Footpath Crossings.,Third Party Payments,Private Contractors,Carriageway/Fway Maint,10/12/2010,600,4739.37,Revenue,FM CONWAY LTD
Highways & Transport Services,Structural Maintenance,Footway maintenance,Third Party Payments,Private Contractors,Carriageway/Fway Maint,10/4/2010,601,1500,Revenue,ALAD LTD H/WAYS MAG EX AWARDS
Childrens & Education Services,Assuring Access To Schools,Free School Meals,Supplies & Services,Grants and Subscriptions,Free School Meals-Paid Meals,10/13/2010,602,110499.48,Revenue,ISS COLLECTIONS LTD
Childrens & Education Services,Assuring Access To Schools,Free School Meals,Supplies & Services,Grants and Subscriptions,Free School Meals-Paid Meals,10/13/2010,603,102287.14,Revenue,ISS COLLECTIONS LTD
Childrens & Education Services,Assuring Access To Schools,Free School Meals,Supplies & Services,Grants and Subscriptions,Free School Meals,10/13/2010,604,67588.6,Revenue,ISS COLLECTIONS LTD
Childrens & Education Services,Assuring Access To Schools,Free School Meals,Supplies & Services,Grants and Subscriptions,Free School Meals,10/13/2010,605,66171.32,Revenue,ISS COLLECTIONS LTD
Adult Social Care,Support Serv & Mgmt Costs (SS),FS Carefirst annual sys costs,Supplies & Services,Comms and Computing,Computer Software,10/18/2010,606,7371.43,Revenue,CM2000 CARE MONITORING LTD
,,Gap Road Cemetery Railings,"New Const, Conv & Renvtion",Ste Wrk-Rn & Mt-Main Contractr,Ste Wrk-Rn & Mt-Main Contractr,10/20/2010,607,14917,Capital,REDACTED
,,Gap Road Cemetery Railings,"New Const, Conv & Renvtion",Ste Wrk-Rn & Mt-Main Contractr,Ste Wrk-Rn & Mt-Main Contractr,10/18/2010,608,3614,Capital,REDACTED
Cultural Env Reg&Plan Services,Waste Collection,Garth Road Site,Third Party Payments,Private Contractors,Paper Haulage,10/5/2010,609,8068.22,Revenue,KINGSTON CORPORATION
Cultural Env Reg&Plan Services,Waste Collection,Garth Road Site,Supplies & Services,Equip Furniture/Materials,Equipment - R & M,10/14/2010,610,5478,Revenue,R.J.H.WELDING
Adult Social Care,Support Serv & Mgmt Costs (SS),General Training,Employees,Indirect Employee Expenses,Training Courses (In House),10/25/2010,611,1800,Revenue,SOUTH THAMES COLLEGE
Adult Social Care,Support Serv & Mgmt Costs (SS),General Training,Employees,Indirect Employee Expenses,Training Courses (In House),10/28/2010,612,850,Revenue,REDACTED
Adult Social Care,Support Serv & Mgmt Costs (SS),General Training,Employees,Indirect Employee Expenses,Training Courses (In House),10/21/2010,613,600,Revenue,REDACTED
Central Services,Fully rechargeable Overheads,Gifford House,Premises Related Expenditure,Cleaning and Domestic Supplies,Cleaning Services,10/1/2010,614,754.95,Revenue,DYNAMIQ CLEANING LIMITED
Central Services,Fully rechargeable Overheads,Gifford House,Premises Related Expenditure,Cleaning and Domestic Supplies,Cleaning Services,10/27/2010,615,754.95,Revenue,DYNAMIQ CLEANING LIMITED
Cultural Env Reg&Plan Services,Planning Policy,GLA WANDLE VALLEY LCZ,Supplies & Services,Services,Activities Programme,10/1/2010,616,729.51,Revenue,SUSTAINABLE MERTON
Cultural Env Reg&Plan Services,Planning Policy,GLA WANDLE VALLEY LCZ,Supplies & Services,Services,Activities Programme,10/13/2010,617,548.58,Revenue,SUSTAINABLE MERTON
Cultural Env Reg&Plan Services,Street Cleaning - Not highways,Graffiti,Supplies & Services,Equip Furniture/Materials,Materials,10/7/2010,618,599.5,Revenue,TENSID UK PLC
CS -Oth Operating Inc & Expend,Trading A/c Surpluses/Deficits,Graphic Designer,Supplies & Services,Equip Furniture/Materials,Materials,10/20/2010,619,675,Revenue,MEDIATRAINING LTD
CS -Oth Operating Inc & Expend,Trading A/c Surpluses/Deficits,Graphic Designer,Supplies & Services,Equip Furniture/Materials,Materials,10/20/2010,620,675,Revenue,MEDIATRAINING LTD
Central Services,Fully rechargeable Overheads,Grass Cut/Tr Mtce,Third Party Payments,Private Contractors,Grounds Maintenance Contract,10/11/2010,621,18074.59,Revenue,VEOLIA ES (UK) LIMITED
Central Services,Fully rechargeable Overheads,Grass Cut/Tr Mtce,Third Party Payments,Private Contractors,Grounds Maintenance Contract,10/11/2010,622,18074.58,Revenue,VEOLIA ES (UK) LIMITED
Central Services,Fully rechargeable Overheads,Grass Cut/Tr Mtce,Third Party Payments,Private Contractors,Grounds Maintenance Contract,10/7/2010,623,2230.64,Revenue,VEOLIA ES (UK) LIMITED
Central Services,Fully rechargeable Overheads,Grass Cut/Tr Mtce,Third Party Payments,Private Contractors,Grounds Maintenance Contract,10/7/2010,624,1591.51,Revenue,VEOLIA ES (UK) LIMITED
Central Services,Fully rechargeable Overheads,Grass Cut/Tr Mtce,Third Party Payments,Private Contractors,Grounds Maintenance Contract,10/27/2010,625,1506.97,Revenue,VEOLIA ES (UK) LIMITED
Central Services,Fully rechargeable Overheads,Grass Cut/Tr Mtce,Third Party Payments,Private Contractors,Grounds Maintenance Contract,10/27/2010,626,1423.5,Revenue,VEOLIA ES (UK) LIMITED
Central Services,Fully rechargeable Overheads,Grass Cut/Tr Mtce,Third Party Payments,Private Contractors,Grounds Maintenance Contract,10/18/2010,627,1251.22,Revenue,VEOLIA ES (UK) LIMITED
Central Services,Fully rechargeable Overheads,Grass Cut/Tr Mtce,Third Party Payments,Private Contractors,Grounds Maintenance Contract,10/25/2010,628,892.64,Revenue,VEOLIA ES (UK) LIMITED
Central Services,Fully rechargeable Overheads,Grass Cut/Tr Mtce,Third Party Payments,Private Contractors,Grounds Maintenance Contract,10/18/2010,629,850.18,Revenue,VEOLIA ES (UK) LIMITED
Central Services,Fully rechargeable Overheads,Grass Cut/Tr Mtce,Third Party Payments,Private Contractors,Grounds Maintenance Contract,10/25/2010,630,831.18,Revenue,VEOLIA ES (UK) LIMITED
Central Services,Fully rechargeable Overheads,Grass Cut/Tr Mtce,Third Party Payments,Private Contractors,Grounds Maintenance Contract,10/7/2010,631,779.54,Revenue,VEOLIA ES (UK) LIMITED
Central Services,Fully rechargeable Overheads,Grass Cut/Tr Mtce,Third Party Payments,Private Contractors,Grounds Maintenance Contract,10/7/2010,632,565.07,Revenue,VEOLIA ES (UK) LIMITED
Central Services,Fully rechargeable Overheads,Grass Cut/Tr Mtce,Third Party Payments,Private Contractors,Grounds Maintenance Contract,10/7/2010,633,507.36,Revenue,VEOLIA ES (UK) LIMITED
,,Green Flag works for Parks,"New Const, Conv & Renvtion",Ste Wrk-Rn & Mt-Main Contractr,Ste Wrk-Rn & Mt-Main Contractr,10/1/2010,634,4064,Capital,TIDEY & WEBB LTD
Cultural Env Reg&Plan Services,SMSS (Cult),Greenspaces Team (General),Employees,Direct Employee Expenses,Employee savings,10/7/2010,635,1276.6,Revenue,F.W.EVANS CYCLES (UK) LTD.
Central Services,Gen Grants Bequest & Donations,Grenfell Housing & Training,Supplies & Services,Grants and Subscriptions,Grants,10/19/2010,636,5250,Revenue,GRENFELL HOUSING & TRAINING
,,GROUNDS MAINTENANCE CONTRACT,Fund Balances,,Rechble Works - Exp,10/11/2010,637,15438.15,Revenue,VEOLIA ES (UK) LIMITED
Childrens & Education Services,Pre-School Ed (inc Nursery),GSSG Workforce Development,Employees,Direct Employee Expenses,Shared Services Salaries,10/29/2010,638,11427.93,Revenue,LONDON BOROUGH OF SUTTON
Childrens & Education Services,Pre-School Ed (inc Nursery),GSSG Workforce Development,Supplies & Services,Grants and Subscriptions,Grants,10/27/2010,639,2620,Revenue,KINGSTON UNIVERSITY
Childrens & Education Services,Pre-School Ed (inc Nursery),GSSG Workforce Development,Employees,Indirect Employee Expenses,Post Entry training-creditors,10/20/2010,640,1375,Revenue,SURREY FIRST AID TRAINING LTD
Childrens & Education Services,Pre-School Ed (inc Nursery),GSSG Workforce Development,Employees,Indirect Employee Expenses,Post Entry training-creditors,10/20/2010,641,1375,Revenue,SURREY FIRST AID TRAINING LTD
Childrens & Education Services,Pre-School Ed (inc Nursery),GSSG Workforce Development,Employees,Indirect Employee Expenses,Post Entry training-creditors,10/25/2010,642,1050,Revenue,EARLY YEARS TRAINING AND CONS.
Childrens & Education Services,Pre-School Ed (inc Nursery),GSSG Workforce Development,Employees,Indirect Employee Expenses,Post Entry training-creditors,10/13/2010,643,1050,Revenue,REDACTED
Childrens & Education Services,Pre-School Ed (inc Nursery),GSSG Workforce Development,Employees,Indirect Employee Expenses,Post Entry training-creditors,10/20/2010,644,575,Revenue,REDACTED
,,Hatfeild playground works,"New Const, Conv & Renvtion",Ste Wrk-Rn & Mt-Main Contractr,Ste Wrk-Rn & Mt-Main Contractr,10/21/2010,645,25351.95,Capital,HOBART PAVING CO LTD
Adult Social Care,Older People 65&Over inc OP-MH,HC Central Homecare Costs,Supplies & Services,Grants and Subscriptions,Subscriptions,10/28/2010,646,1242,Revenue,CARE QUALITY COMMISSION
Adult Social Care,Older People 65&Over inc OP-MH,HC Central Homecare Costs,Supplies & Services,Comms and Computing,Telephones - Gen-Creditors,10/13/2010,647,1159.79,Revenue,VIRGIN MEDIA PAYMENTS LTD
Adult Social Care,Older People 65&Over inc OP-MH,HC Meals-in-the-Home,Third Party Payments,Private Contractors,Contract Payments,10/27/2010,648,33005.14,Revenue,SODEXO HEALTHCARE SERVICES LT
Adult Social Care,Older People 65&Over inc OP-MH,HC Meals-in-the-Home,Third Party Payments,Private Contractors,Contract Payments,10/27/2010,649,5969.91,Revenue,SODEXO HEALTHCARE SERVICES LT
Adult Social Care,Older People 65&Over inc OP-MH,HC-Direct Payments Scheme,Third Party Payments,Private Contractors,Direct Payments,10/6/2010,650,937.2,Revenue,REDACTED
Adult Social Care,Older People 65&Over inc OP-MH,HC-Direct Payments Scheme,Third Party Payments,Private Contractors,Direct Payments,10/6/2010,651,593.6,Revenue,REDACTED
Central Services,Fully rechargeable Overheads,Head of Audit and Support,Employees,Indirect Employee Expenses,Post Entry training-creditors,10/5/2010,652,2542,Revenue,NESCOT
Central Services,Fully rechargeable Overheads,Head of Audit and Support,Employees,Indirect Employee Expenses,Post Entry training-creditors,10/13/2010,653,1520,Revenue,CIPFA
Central Services,Fully rechargeable Overheads,Head of Audit and Support,Employees,Indirect Employee Expenses,Post Entry training-creditors,10/13/2010,654,1520,Revenue,CIPFA
Central Services,Fully rechargeable Overheads,Head of Audit and Support,Employees,Indirect Employee Expenses,Post Entry training-creditors,10/13/2010,655,1515,Revenue,CIPFA
Central Services,Fully rechargeable Overheads,Head of Audit and Support,Employees,Indirect Employee Expenses,Post Entry training-creditors,10/13/2010,656,1410,Revenue,CIPFA
Central Services,Fully rechargeable Overheads,Head of Audit and Support,Employees,Indirect Employee Expenses,Post Entry training-creditors,10/4/2010,657,1347,Revenue,CARSHALTON COLLEGE
Central Services,Fully rechargeable Overheads,Head of Audit and Support,Employees,Indirect Employee Expenses,Post Entry training-creditors,10/4/2010,658,1347,Revenue,CARSHALTON COLLEGE
Central Services,Fully rechargeable Overheads,Head of Audit and Support,Employees,Indirect Employee Expenses,Management & Staff Development,10/4/2010,659,1180,Revenue,THE COLLEGE OF LAW
Central Services,Fully rechargeable Overheads,Head of Audit and Support,Employees,Indirect Employee Expenses,Post Entry training-creditors,10/13/2010,660,1110,Revenue,CIPFA
Central Services,Fully rechargeable Overheads,Head of Audit and Support,Employees,Indirect Employee Expenses,Post Entry training-creditors,10/13/2010,661,1080,Revenue,CIPFA
Central Services,Fully rechargeable Overheads,Head of Audit and Support,Employees,Indirect Employee Expenses,Post Entry training-creditors,10/1/2010,662,520,Revenue,CIPFA
Central Services,Fully rechargeable Overheads,Head of Audit and Support,Employees,Indirect Employee Expenses,Post Entry training-creditors,10/19/2010,663,520,Revenue,CIPFA
Central Services,Fully rechargeable Overheads,Head of Finance,Supplies & Services,Services,Consultants,10/15/2010,664,9430,Revenue,PUBLIC SECTOR CONSULTANTS
Central Services,Fully rechargeable Overheads,Head of Finance,Supplies & Services,Services,Consultants,10/25/2010,665,4125,Revenue,UNISERVE CONSULTING LIMITED
Central Services,Fully rechargeable Overheads,Head of Finance,Supplies & Services,Services,Consultants,10/28/2010,666,2812.5,Revenue,UNISERVE CONSULTING LIMITED
Central Services,Fully rechargeable Overheads,Head of Finance,Supplies & Services,Services,Consultants,10/5/2010,667,1875,Revenue,UNISERVE CONSULTING LIMITED
Central Services,Fully rechargeable Overheads,Head of Finance,Supplies & Services,Services,Consultants,10/25/2010,668,1312.5,Revenue,UNISERVE CONSULTING LIMITED
Central Services,Fully rechargeable Overheads,Head of Finance,Supplies & Services,Services,Consultants,10/5/2010,669,1125,Revenue,UNISERVE CONSULTING LIMITED
Central Services,Fully rechargeable Overheads,Head of Finance,Supplies & Services,Services,Consultants,10/28/2010,670,854.5,Revenue,NORTHGATE ARINSO
Cultural Env Reg&Plan Services,Environmental Health,Health & Safety,Supplies & Services,Equip Furniture/Materials,Equip-Purchases,10/7/2010,671,1258.8,Revenue,CHARTERED INST.OF ENVIR.HEALTH
Cultural Env Reg&Plan Services,Environmental Health,Health & Safety,Third Party Payments,Private Contractors,Blind Home Wrkrs Capitn Grant/,10/27/2010,672,1028,Revenue,EUROFINS LABORATORIES LTD
Cultural Env Reg&Plan Services,Environmental Health,Health & Safety,Third Party Payments,Private Contractors,Blind Home Wrkrs Capitn Grant/,10/27/2010,673,880,Revenue,EUROFINS LABORATORIES LTD
,,Highways Bridges & Structures,Other Capital Expenditure,Misc Cap Expenditure,Misc Cap Expenditure,10/28/2010,674,18259.79,Capital,FM CONWAY LTD
,,Highways Maint - Borough Roads,"New Const, Conv & Renvtion",Ste Wrk-Rn & Mt-Main Contractr,Ste Wrk-Rn & Mt-Main Contractr,10/12/2010,675,181635.31,Capital,FM CONWAY LTD
,,Hillcross boiler renewal,"New Const, Conv & Renvtion",Ste Wrks-Nw Bld-Main Cntrct,Ste Wrks-Nw Bld-Main Cntrct,10/20/2010,676,21852.93,Capital,S & S BURNER SERVICES LTD
,,Holy Trinity Expansion,"New Const, Conv & Renvtion",Ste Wrks-Nw Bld-Main Cntrct,Ste Wrks-Nw Bld-Main Cntrct,10/11/2010,677,711540.23,Capital,R DURTNELL & SONS LTD
,,Holy Trinity Expansion,"New Const, Conv & Renvtion",Dsgn/Sprvsn-Ext Cnsltcy Fees,Dsgn/Sprvsn-Ext Cnsltcy Fees,10/21/2010,678,3974,Capital,SYNERGY CPC LLP
,,Holy Trinity Expansion,"New Const, Conv & Renvtion",Dsgn/Sprvsn-Other Expenses,Dsgn/Sprvsn-Other Expenses,10/7/2010,679,1871,Capital,GEOTECHNICAL & ENVIRO ASSOC
,,Holy Trinity Expansion,"New Const, Conv & Renvtion",Dsgn/Sprvsn-Ext Cnsltcy Fees,Dsgn/Sprvsn-Ext Cnsltcy Fees,10/7/2010,680,1106.8,Capital,FORUM LANDSCAPE LIMITED
,,Holy Trinity Expansion,"New Const, Conv & Renvtion",Dsgn/Sprvsn-Ext Cnsltcy Fees,Dsgn/Sprvsn-Ext Cnsltcy Fees,10/21/2010,681,609,Capital,FORUM LANDSCAPE LIMITED
Childrens & Education Services,Pre-School Ed (inc Nursery),Home Grown Graduate Incentive,Supplies & Services,Grants and Subscriptions,Grants,10/18/2010,682,7000,Revenue,THE GARDEN ROOM
Childrens & Education Services,Pre-School Ed (inc Nursery),Home Grown Graduate Incentive,Supplies & Services,Grants and Subscriptions,Grants,10/18/2010,683,7000,Revenue,THE GARDENS CHILDCARE LTD
Childrens & Education Services,Pre-School Ed (inc Nursery),Home Grown Graduate Incentive,Supplies & Services,Grants and Subscriptions,Grants,10/27/2010,684,5240,Revenue,KINGSTON UNIVERSITY
Childrens & Education Services,Pre-School Ed (inc Nursery),Home Grown Graduate Incentive,Supplies & Services,Grants and Subscriptions,Grants,10/21/2010,685,5000,Revenue,RAYNES PARK DAY NURSERY
Childrens & Education Services,Pre-School Ed (inc Nursery),Home Grown Graduate Incentive,Supplies & Services,Grants and Subscriptions,Grants,10/18/2010,686,5000,Revenue,WIMBLEDON DAY NURSERY
Housing Services,Homelessness,Homelessness Prevention,Transfer Payments,Housing Benefits,Sanctuary Scheme Rent Rescue,10/7/2010,687,1700,Revenue,REDACTED
Housing Services,Homelessness,Homelessness Prevention,Transfer Payments,Housing Benefits,Rent Deposits,10/27/2010,688,850,Revenue,AOB LIMITED
Childrens & Education Services,Supporting SEN,Hospital Tuition,Third Party Payments,Other Local Authorities,Hospital Tuition,10/18/2010,689,19967.85,Revenue,LONDON BOROUGH OF SUTTON
Housing Services,Homelessness,Housing Needs & Enablg-central,Supplies & Services,Services,Doctors and other fees,10/7/2010,690,1119.39,Revenue,REDACTED
Housing Services,Repairs and Maintenance,Housing Repairs Budget,Premises Related Expenditure,RepairsAlterations&MtceOfBldgs,Gas Servicing,10/11/2010,691,5101.3,Revenue,SMITH & BYFORD LTD.
Housing Services,Repairs and Maintenance,Housing Repairs Budget,Premises Related Expenditure,RepairsAlterations&MtceOfBldgs,Gas Servicing,10/11/2010,692,3075,Revenue,SMITH & BYFORD LTD
Cultural Env Reg&Plan Services,Environmental Health,Housing/Env,Employees,Indirect Employee Expenses,Recruitment Adverts,10/5/2010,693,2620.3,Revenue,PENNA BARKERS
Adult Social Care,Adult u65 Mental Health Needs,HS Adult Placements,Third Party Payments,Private Contractors,Accommodation Based Support,10/13/2010,694,3004.76,Revenue,REDACTED
Adult Social Care,Adult u65 Mental Health Needs,HS Adult Placements,Third Party Payments,Private Contractors,Accommodation Based Support,10/15/2010,695,1804.32,Revenue,REDACTED
Adult Social Care,Adult u65 Mental Health Needs,HS Adult Placements,Third Party Payments,Private Contractors,Accommodation Based Support,10/8/2010,696,1665.84,Revenue,TRISWIT LIMITED
Adult Social Care,Adult u65 Mental Health Needs,HS Adult Placements,Third Party Payments,Private Contractors,Accommodation Based Support,10/12/2010,697,1432.76,Revenue,REDACTED
Adult Social Care,Adult u65 Mental Health Needs,HS Adult Placements,Third Party Payments,Private Contractors,Accommodation Based Support,10/12/2010,698,1167.6,Revenue,REDACTED
Adult Social Care,Adult u65 Mental Health Needs,HS Adult Placements,Third Party Payments,Private Contractors,Accommodation Based Support,10/18/2010,699,1167.6,Revenue,REDACTED
Adult Social Care,Adult u65 Mental Health Needs,HS Adult Placements,Third Party Payments,Private Contractors,Accommodation Based Support,10/6/2010,700,973,Revenue,REDACTED
Adult Social Care,Adult u65 Mental Health Needs,HS Adult Placements,Third Party Payments,Private Contractors,Accommodation Based Support,10/6/2010,701,848.96,Revenue,REDACTED
Adult Social Care,Adult u65 Mental Health Needs,HS Adult Placements,Third Party Payments,Private Contractors,Accommodation Based Support,10/6/2010,702,806.2,Revenue,REDACTED
,,ICT Harnessing Technology,Other Capital Expenditure,Misc Cap Expenditure,Misc Cap Expenditure,10/28/2010,703,2250,Capital,LONDON GRID FOR LEARNING TRUST
,,ICT Harnessing Technology,Other Capital Expenditure,Misc Cap Expenditure,Misc Cap Expenditure,10/28/2010,704,2250,Capital,LONDON GRID FOR LEARNING TRUST
,,ICT Harnessing Technology,Other Capital Expenditure,Misc Cap Expenditure,Misc Cap Expenditure,10/28/2010,705,2250,Capital,LONDON GRID FOR LEARNING TRUST
,,ICT Harnessing Technology,Other Capital Expenditure,Misc Cap Expenditure,Misc Cap Expenditure,10/28/2010,706,2250,Capital,LONDON GRID FOR LEARNING TRUST
,,ICT Harnessing Technology,Other Capital Expenditure,Misc Cap Expenditure,Misc Cap Expenditure,10/28/2010,707,2250,Capital,LONDON GRID FOR LEARNING TRUST
,,ICT Harnessing Technology,Other Capital Expenditure,Misc Cap Expenditure,Misc Cap Expenditure,10/28/2010,708,2250,Capital,LONDON GRID FOR LEARNING TRUST
,,ICT Harnessing Technology,Other Capital Expenditure,Misc Cap Expenditure,Misc Cap Expenditure,10/28/2010,709,2250,Capital,LONDON GRID FOR LEARNING TRUST
,,ICT Harnessing Technology,Other Capital Expenditure,Misc Cap Expenditure,Misc Cap Expenditure,10/28/2010,710,2250,Capital,LONDON GRID FOR LEARNING TRUST
,,ICT Harnessing Technology,Other Capital Expenditure,Misc Cap Expenditure,Misc Cap Expenditure,10/28/2010,711,2000,Capital,LONDON GRID FOR LEARNING TRUST
,,ICT Harnessing Technology,Other Capital Expenditure,Misc Cap Expenditure,Misc Cap Expenditure,10/28/2010,712,1750,Capital,LONDON GRID FOR LEARNING TRUST
,,ICT Harnessing Technology,Other Capital Expenditure,Misc Cap Expenditure,Misc Cap Expenditure,10/28/2010,713,1750,Capital,LONDON GRID FOR LEARNING TRUST
,,ICT Harnessing Technology,Other Capital Expenditure,Misc Cap Expenditure,Misc Cap Expenditure,10/28/2010,714,1250,Capital,LONDON GRID FOR LEARNING TRUST
,,Improvement To/Better Use Of,Plnt Mch & Equip(signs etc),Furniture,Furniture,10/25/2010,715,38551.53,Capital,UNIQUE OFFICE SOLUTIONS LTD
,,Improvement To/Better Use Of,"New Const, Conv & Renvtion",Ste Wrk-Rn & Mt-Main Contractr,Ste Wrk-Rn & Mt-Main Contractr,10/18/2010,716,36540.22,Capital,DATA TECHNIQUES
,,Improvement To/Better Use Of,"New Const, Conv & Renvtion",Ste Wrk-Rn & Mt-Main Contractr,Ste Wrk-Rn & Mt-Main Contractr,10/13/2010,717,1795,Capital,SUSCRAFT LTD(T/A OAKMEAD ELEC)
,,Improvement To/Better Use Of,"New Const, Conv & Renvtion",Ste Wrk-Rn & Mt-Main Contractr,Ste Wrk-Rn & Mt-Main Contractr,10/13/2010,718,1225,Capital,KH FLOORING LTD
,,Improvement To/Better Use Of,"New Const, Conv & Renvtion",Ste Wrk-Rn & Mt-Main Contractr,Ste Wrk-Rn & Mt-Main Contractr,10/13/2010,719,990.43,Capital,FIRST CHOICE FACILITIES PLC
,,Improvement To/Better Use Of,"New Const, Conv & Renvtion",Ste Wrk-Rn & Mt-Main Contractr,Ste Wrk-Rn & Mt-Main Contractr,10/7/2010,720,560,Capital,EDE'S (U.K.) LTD
Cultural Env Reg&Plan Services,Library Service,Inactive cost centre,Employees,Indirect Employee Expenses,Recruitment Adverts,10/13/2010,721,3204.9,Revenue,PENNA BARKERS
,,Incentives Monitoring & review,Other Capital Expenditure,Misc Cap Expenditure,Misc Cap Expenditure,10/29/2010,722,17000,Capital,CYCLEPODS LTD
,,Inclusion,Other Capital Expenditure,Misc Cap Expenditure,Misc Cap Expenditure,10/18/2010,723,5458,Capital,HILL-ROM LTD
,,Insurance Fund,Fund Balances,,Payment of Claims,10/1/2010,724,100000,Revenue,HSBC INSURANCE PCC LIMITED
,,Insurance Fund,Fund Balances,,Payment of Claims,10/13/2010,725,50000,Revenue,HSBC INSURANCE PCC LIMITED
,,Insurance Fund,Fund Balances,,Payment of Claims,10/1/2010,726,9782,Revenue,COBSEN-DAVIES ROOFING (LOND)LT
,,Insurance Fund,Fund Balances,,Payment of Claims,10/7/2010,727,9500,Revenue,HSBC INSURANCE PCC LIMITED
,,Insurance Fund,Fund Balances,,Payment of Claims,10/20/2010,728,4180,Revenue,A.COLEBROOK ARBORICULTURE CON.
,,Insurance Fund,Fund Balances,,Payment of Claims,10/28/2010,729,1763.6,Revenue,BERRYMANS LACE MAWER
,,Insurance Fund,Fund Balances,,Payment of Claims,10/21/2010,730,1653,Revenue,KENNEDYS
,,Insurance Fund,Fund Balances,,Payment of Claims,10/21/2010,731,1614.7,Revenue,KENNEDYS
,,Insurance Fund,Fund Balances,,Payment of Claims,10/21/2010,732,1131,Revenue,KENNEDYS
,,Insurance Fund,Fund Balances,,Payment of Claims,10/7/2010,733,988.5,Revenue,THE GRAHAM HIGH GROUP LTD
,,Insurance Fund,Fund Balances,,Payment of Claims,10/20/2010,734,966,Revenue,BARLOW LYDE & GILBERT
,,Insurance Fund,Fund Balances,,Payment of Claims,10/20/2010,735,883.41,Revenue,THE GRAHAM HIGH GROUP LTD
,,Insurance Fund,Fund Balances,,Payment of Claims,10/21/2010,736,875.2,Revenue,KENNEDYS
,,Insurance Fund,Fund Balances,,Payment of Claims,10/15/2010,737,786.33,Revenue,THE GRAHAM HIGH GROUP LTD
Central Services,Fully rechargeable Overheads,Internal Audit&Service Review,Third Party Payments,Private Contractors,Miscellaneous Hired Services,10/4/2010,738,5200,Revenue,KPMG LLP FEES ACCOUNT
,,Invest to Save,"New Const, Conv & Renvtion",Ste Wrk-Rn & Mt-Main Contractr,Ste Wrk-Rn & Mt-Main Contractr,10/14/2010,739,20216.36,Capital,THORLUX LIGHTING
,,IT Equipment Budget,Other Capital Expenditure,Misc Cap Expenditure,Misc Cap Expenditure,10/21/2010,740,39654.33,Capital,CIVICA SERVICES LTD
,,IT Equipment Budget,Other Capital Expenditure,Misc Cap Expenditure,Misc Cap Expenditure,10/25/2010,741,16965.21,Capital,EUROPEAN ELECTRONIQUE
,,IT Equipment Budget,Other Capital Expenditure,Misc Cap Expenditure,Misc Cap Expenditure,10/26/2010,742,5655.07,Capital,EUROPEAN ELECTRONIQUE
,,IT Equipment Budget,Other Capital Expenditure,Misc Cap Expenditure,Misc Cap Expenditure,10/25/2010,743,3944.73,Capital,EUROPEAN ELECTRONIQUE
,,IT Equipment Budget,Other Capital Expenditure,Misc Cap Expenditure,Misc Cap Expenditure,10/25/2010,744,2975.95,Capital,EUROPEAN ELECTRONIQUE
,,IT Equipment Budget,Other Capital Expenditure,Misc Cap Expenditure,Misc Cap Expenditure,10/25/2010,745,987.8,Capital,MISCO
,,IT Equipment Budget,Other Capital Expenditure,Misc Cap Expenditure,Misc Cap Expenditure,10/29/2010,746,614,Capital,HEWLETT PACKARD LTD
,,J H S G Refurb S Changing Area,"New Const, Conv & Renvtion",Ste Wrk-Rn & Mt-Main Contractr,Ste Wrk-Rn & Mt-Main Contractr,10/28/2010,747,2306.8,Capital,BLAKEDOWN SPORT & PLAY LTD
,,Joseph Hood Permanent Expansn,"New Const, Conv & Renvtion",Dsgn/Sprvsn-Ext Cnsltcy Fees,Dsgn/Sprvsn-Ext Cnsltcy Fees,10/21/2010,748,33398,Capital,HAVERSTOCK ASSOCIATES LLP
,,Joseph Hood Permanent Expansn,"New Const, Conv & Renvtion",Dsgn/Sprvsn-Other Expenses,Dsgn/Sprvsn-Other Expenses,10/21/2010,749,3270.74,Capital,FULCRUM INFRASTRUCTURE SERVICE
,,Kitchen Waste WRAP,Plnt Mch & Equip(signs etc),Equipment,Equipment,10/13/2010,750,14212.8,Capital,STRAIGHT PLC
Central Services,Local Land Charges,Land Charges,Employees,Indirect Employee Expenses,Post Entry training-creditors,10/11/2010,751,765,Revenue,THE PACS GROUP LTD
Childrens & Education Services,Supporting SEN,Language & Learning Service,Employees,Direct Employee Expenses,Agency Staff & Casual Paymts,10/6/2010,752,2200,Revenue,REDACTED
Childrens & Education Services,Pre-School Ed (inc Nursery),Lavender CC Non Childcare,Premises Related Expenditure,Energy Costs,Gas (incl. Butane),10/18/2010,753,774.65,Revenue,KENT COUNTY COUNCIL COMM SVCS
Childrens & Education Services,Pre-School Ed (inc Nursery),Lavender CC Non Childcare,Premises Related Expenditure,Cleaning and Domestic Supplies,Cleaning Services,10/18/2010,754,574.2,Revenue,LLOYDS TSB COMMERCIAL FIN LTD
Childrens & Education Services,Pre-School Ed (inc Nursery),Lavender Children's Centre,Premises Related Expenditure,Energy Costs,Gas (incl. Butane),10/18/2010,755,1807.51,Revenue,KENT COUNTY COUNCIL COMM SVCS
Childrens & Education Services,Pre-School Ed (inc Nursery),Lavender Children's Centre,Premises Related Expenditure,Cleaning and Domestic Supplies,Cleaning Services,10/18/2010,756,574.2,Revenue,LLOYDS TSB COMMERCIAL FIN LTD
Adult Social Care,Adlt u65 Learning Disabilities,LD 112 Riverside Drive,Premises Related Expenditure,Water Services,Water Rates (Unmetered),10/20/2010,757,547.11,Revenue,THAMES WATER UTILITIES LTD
Adult Social Care,Adlt u65 Learning Disabilities,LD Adult Placements - HST,Third Party Payments,Private Contractors,Accommodation Based Support,10/4/2010,758,1121.84,Revenue,REDACTED
Adult Social Care,Adlt u65 Learning Disabilities,LD Adult Placements - HST,Third Party Payments,Private Contractors,Accommodation Based Support,10/28/2010,759,1121.84,Revenue,REDACTED
Adult Social Care,Adlt u65 Learning Disabilities,LD Adult Placements - HST,Third Party Payments,Private Contractors,Accommodation Based Support,10/6/2010,760,946.26,Revenue,REDACTED
Adult Social Care,Adlt u65 Learning Disabilities,LD Adult Placements - HST,Third Party Payments,Private Contractors,Accommodation Based Support,10/6/2010,761,636.72,Revenue,REDACTED
Adult Social Care,Adlt u65 Learning Disabilities,LD AdultPlacementCont,Third Party Payments,Private Contractors,Accommodation Based Support,10/15/2010,762,10062.76,Revenue,REDACTED
Adult Social Care,Adlt u65 Learning Disabilities,LD AdultPlacementCont,Third Party Payments,Private Contractors,Accommodation Based Support,10/28/2010,763,5850,Revenue,PROVIDENCE CARE UK LTD
Adult Social Care,Adlt u65 Learning Disabilities,LD AdultPlacementCont,Third Party Payments,Private Contractors,Accommodation Based Support,10/26/2010,764,4680,Revenue,PROVIDENCE CARE UK LTD
Adult Social Care,Adlt u65 Learning Disabilities,LD AdultPlacementCont,Third Party Payments,Private Contractors,Accommodation Based Support,10/15/2010,765,606.4,Revenue,REDACTED
Adult Social Care,Adlt u65 Learning Disabilities,LD Business Support,Supplies & Services,Comms and Computing,SRF Work,10/4/2010,766,750,Revenue,OLM SYSTEMS
Adult Social Care,Adlt u65 Learning Disabilities,LD Carer Services,Third Party Payments,Private Contractors,Miscellaneous Agency Services,10/29/2010,767,835.85,Revenue,SUPREME CARE SERVICES LIMITED
Adult Social Care,Adlt u65 Learning Disabilities,LD Comm -Day Care-Surrey Oak,Third Party Payments,Private Contractors,Miscellaneous Agency Services,10/25/2010,768,554.76,Revenue,SURREY & BORDERS PARTNERSHIP
Adult Social Care,Adlt u65 Learning Disabilities,LD Comm -Home Care-Campus Hm,Third Party Payments,Private Contractors,Miscellaneous Agency Services,10/18/2010,769,78847.35,Revenue,CHOICE SUPPORT
Adult Social Care,Adlt u65 Learning Disabilities,LD Comm -Home Care-Campus Hm,Third Party Payments,Private Contractors,Miscellaneous Agency Services,10/29/2010,770,77189.85,Revenue,CHOICE SUPPORT
Adult Social Care,Adlt u65 Learning Disabilities,LD Comm -Home Care-Campus Hm,Third Party Payments,Private Contractors,Miscellaneous Agency Services,10/12/2010,771,77181.44,Revenue,CHOICE SUPPORT
Adult Social Care,Adlt u65 Learning Disabilities,LD Comm -Home Care-Campus Hm,Third Party Payments,Private Contractors,Miscellaneous Agency Services,10/19/2010,772,10498.08,Revenue,THE AVENUES TRUST GROUP
Adult Social Care,Adlt u65 Learning Disabilities,LD Comm -Home Care-Campus Hm,Third Party Payments,Private Contractors,Miscellaneous Agency Services,10/19/2010,773,10498.08,Revenue,THE AVENUES TRUST GROUP
Adult Social Care,Adlt u65 Learning Disabilities,LD Comm -Home Care-Orch Hill,Third Party Payments,Private Contractors,Miscellaneous Agency Services,10/18/2010,774,219924.57,Revenue,SUTTON & MERTON PCT
Adult Social Care,Adlt u65 Learning Disabilities,LD Comm -Home Care-Orch Hill,Third Party Payments,Private Contractors,Miscellaneous Agency Services,10/12/2010,775,27713.37,Revenue,CHOICE SUPPORT
Adult Social Care,Adlt u65 Learning Disabilities,LD Comm -Home Care-Orch Hill,Third Party Payments,Private Contractors,Miscellaneous Agency Services,10/29/2010,776,27704.96,Revenue,CHOICE SUPPORT
Adult Social Care,Adlt u65 Learning Disabilities,LD Comm -Home Care-Orch Hill,Third Party Payments,Private Contractors,Miscellaneous Agency Services,10/14/2010,777,16507.44,Revenue,THE AVENUES TRUST GROUP
Adult Social Care,Adlt u65 Learning Disabilities,LD Comm -Home Care-Orch Hill,Third Party Payments,Private Contractors,Miscellaneous Agency Services,10/12/2010,778,848.05,Revenue,UNITED RESPONSE
Adult Social Care,Adlt u65 Learning Disabilities,LD Comm -Home Care-Orch Hill,Third Party Payments,Private Contractors,Miscellaneous Agency Services,10/29/2010,779,848.05,Revenue,UNITED RESPONSE
Adult Social Care,Adlt u65 Learning Disabilities,LD Comm -Other-Campus Hm,Third Party Payments,Private Contractors,Miscellaneous Agency Services,10/26/2010,780,7144.56,Revenue,CHOICE SUPPORT
Adult Social Care,Adlt u65 Learning Disabilities,LD Comm -Residential-Orch Hill,Third Party Payments,Private Contractors,Miscellaneous Agency Services,10/12/2010,781,8718.88,Revenue,UNITED RESPONSE
Adult Social Care,Adlt u65 Learning Disabilities,LD Comm -Residential-Orch Hill,Third Party Payments,Private Contractors,Miscellaneous Agency Services,10/18/2010,782,5277.72,Revenue,REDACTED
Adult Social Care,Adlt u65 Learning Disabilities,LD Comm -Residential-Orch Hill,Third Party Payments,Private Contractors,Miscellaneous Agency Services,10/29/2010,783,4359.44,Revenue,UNITED RESPONSE
Adult Social Care,Adlt u65 Learning Disabilities,LD Comm -Residential-Orch Hill,Third Party Payments,Private Contractors,Miscellaneous Agency Services,10/18/2010,784,851.7,Revenue,REDACTED
Adult Social Care,Adlt u65 Learning Disabilities,LD Commissioning Team,Premises Related Expenditure,Rents,Miscellaneous Rents,10/28/2010,785,4960,Revenue,CALLAGHAN DEMOLITION LTD
Adult Social Care,Adlt u65 Learning Disabilities,LD Commissioning Team,Premises Related Expenditure,Rents,Miscellaneous Rents,10/7/2010,786,1653.33,Revenue,CALLAGHAN DEMOLITION LTD
Adult Social Care,Adlt u65 Learning Disabilities,LD Commissioning Team,Premises Related Expenditure,Rents,Miscellaneous Rents,10/11/2010,787,1653.33,Revenue,CALLAGHAN DEMOLITION LTD
Adult Social Care,Adlt u65 Learning Disabilities,LD Commissioning Team,Supplies & Services,Expenses,Special Projects,10/5/2010,788,890,Revenue,LOVELL LTD
Adult Social Care,Adlt u65 Learning Disabilities,LD Comm-Residential-Surrey Oak,Third Party Payments,Private Contractors,Miscellaneous Agency Services,10/28/2010,789,595.51,Revenue,SURREY & BORDERS PARTNERSHIP
Adult Social Care,Adlt u65 Learning Disabilities,LD Day Care Agency,Third Party Payments,Private Contractors,Miscellaneous Agency Services,10/13/2010,790,986.2,Revenue,THE SHEILING TRUST
Adult Social Care,Adlt u65 Learning Disabilities,LD Day Care Agency,Third Party Payments,Private Contractors,Miscellaneous Agency Services,10/20/2010,791,954.1,Revenue,GRACE EYRE FOUNDATION
Adult Social Care,Adlt u65 Learning Disabilities,LD Day Care Agency,Third Party Payments,Private Contractors,Miscellaneous Agency Services,10/25/2010,792,954.1,Revenue,GRACE EYRE FOUNDATION
Adult Social Care,Adlt u65 Learning Disabilities,LD Day Care Agency,Third Party Payments,Private Contractors,Miscellaneous Agency Services,10/12/2010,793,954.08,Revenue,BRIGSTOCK ACTIVITY CENTRE
Adult Social Care,Adlt u65 Learning Disabilities,LD Day Care Agency,Third Party Payments,Private Contractors,Miscellaneous Agency Services,10/14/2010,794,772.75,Revenue,HIGH HURLANDS HOMES
Adult Social Care,Adlt u65 Learning Disabilities,LD Day Care Agency,Third Party Payments,Private Contractors,Miscellaneous Agency Services,10/12/2010,795,696.28,Revenue,UNITED RESPONSE
Adult Social Care,Adlt u65 Learning Disabilities,LD Day Care Agency,Third Party Payments,Private Contractors,Miscellaneous Agency Services,10/29/2010,796,696.28,Revenue,UNITED RESPONSE
Adult Social Care,Adlt u65 Learning Disabilities,LD Day Care Agency,Third Party Payments,Private Contractors,Miscellaneous Agency Services,10/13/2010,797,646.56,Revenue,UNITED RESPONSE
Adult Social Care,Adlt u65 Learning Disabilities,LD Day Care Agency,Third Party Payments,Private Contractors,Miscellaneous Agency Services,10/29/2010,798,646.56,Revenue,UNITED RESPONSE
Adult Social Care,Adlt u65 Learning Disabilities,LD Direct Payment Scheme,Third Party Payments,Private Contractors,Direct Payments,10/6/2010,799,5352.52,Revenue,REDACTED
Adult Social Care,Adlt u65 Learning Disabilities,LD Direct Payment Scheme,Third Party Payments,Private Contractors,Direct Payments,10/6/2010,800,2419.88,Revenue,REDACTED
Adult Social Care,Adlt u65 Learning Disabilities,LD Direct Payment Scheme,Third Party Payments,Private Contractors,Direct Payments,10/22/2010,801,1917,Revenue,REDACTED
Adult Social Care,Adlt u65 Learning Disabilities,LD Direct Payment Scheme,Third Party Payments,Private Contractors,Direct Payments,10/6/2010,802,957.2,Revenue,REDACTED
Adult Social Care,Adlt u65 Learning Disabilities,LD Direct Payment Scheme,Third Party Payments,Private Contractors,Direct Payments,10/6/2010,803,894.6,Revenue,REDACTED
Adult Social Care,Adlt u65 Learning Disabilities,LD Direct Payment Scheme,Third Party Payments,Private Contractors,Direct Payments,10/6/2010,804,891.44,Revenue,REDACTED
Adult Social Care,Adlt u65 Learning Disabilities,LD Direct Payment Scheme,Third Party Payments,Private Contractors,Direct Payments,10/6/2010,805,724.2,Revenue,REDACTED
Adult Social Care,Adlt u65 Learning Disabilities,LD Direct Payment Scheme,Third Party Payments,Private Contractors,Direct Payments,10/6/2010,806,646.88,Revenue,REDACTED
Adult Social Care,Adlt u65 Learning Disabilities,LD Direct Payment Scheme,Third Party Payments,Private Contractors,Direct Payments,10/6/2010,807,611.36,Revenue,REDACTED
Adult Social Care,Adlt u65 Learning Disabilities,LD Direct Payment Scheme,Third Party Payments,Private Contractors,Direct Payments,10/6/2010,808,596.8,Revenue,REDACTED
Adult Social Care,Adlt u65 Learning Disabilities,LD Direct Payment Scheme,Third Party Payments,Private Contractors,Direct Payments,10/6/2010,809,511.2,Revenue,REDACTED
Adult Social Care,Adlt u65 Learning Disabilities,LD Direct Payment Scheme,Third Party Payments,Private Contractors,Direct Payments,10/6/2010,810,504,Revenue,REDACTED
,,LD High Path DC,Premises Related Expenditure,Cleaning and Domestic Supplies,Cleaning Services,10/5/2010,811,1141.69,Revenue,JULIUS RUTHERFOORD & CO LTD
,,LD High Path DC,Premises Related Expenditure,Cleaning and Domestic Supplies,Cleaning Services,10/5/2010,812,1141.69,Revenue,JULIUS RUTHERFOORD & CO LTD
Adult Social Care,Adlt u65 Learning Disabilities,LD Home Care External,Third Party Payments,Private Contractors,Miscellaneous Agency Services,10/29/2010,813,56954.12,Revenue,WANDLE HOUSING ASSOCIATION LTD
Adult Social Care,Adlt u65 Learning Disabilities,LD Home Care External,Third Party Payments,Private Contractors,Miscellaneous Agency Services,10/20/2010,814,9581.76,Revenue,METROPOLITAN SUPPORT TRUST
Adult Social Care,Adlt u65 Learning Disabilities,LD Home Care External,Third Party Payments,Private Contractors,Miscellaneous Agency Services,10/21/2010,815,4186.88,Revenue,THE REGARD PARTNERSHIP LTD
Adult Social Care,Adlt u65 Learning Disabilities,LD Home Care External,Third Party Payments,Private Contractors,Miscellaneous Agency Services,10/27/2010,816,3535.24,Revenue,THE REGARD PARTNERSHIP LTD
Adult Social Care,Adlt u65 Learning Disabilities,LD Home Care External,Third Party Payments,Private Contractors,Miscellaneous Agency Services,10/20/2010,817,3519.96,Revenue,PLAN PERSONNEL
Adult Social Care,Adlt u65 Learning Disabilities,LD Home Care External,Third Party Payments,Private Contractors,Miscellaneous Agency Services,10/29/2010,818,3487.68,Revenue,THE REGARD PARTNERSHIP LTD
Adult Social Care,Adlt u65 Learning Disabilities,LD Home Care External,Third Party Payments,Private Contractors,Miscellaneous Agency Services,10/28/2010,819,2970.8,Revenue,ODYSSEY CARE SOLUTIONS
Adult Social Care,Adlt u65 Learning Disabilities,LD Home Care External,Third Party Payments,Private Contractors,Miscellaneous Agency Services,10/14/2010,820,2865,Revenue,ABLE COMMUNITY CARE
Adult Social Care,Adlt u65 Learning Disabilities,LD Home Care External,Third Party Payments,Private Contractors,Miscellaneous Agency Services,10/14/2010,821,2825,Revenue,ABLE COMMUNITY CARE
Adult Social Care,Adlt u65 Learning Disabilities,LD Home Care External,Third Party Payments,Private Contractors,Miscellaneous Agency Services,10/25/2010,822,2800,Revenue,ABLE COMMUNITY CARE
Adult Social Care,Adlt u65 Learning Disabilities,LD Home Care External,Third Party Payments,Private Contractors,Miscellaneous Agency Services,10/25/2010,823,2760,Revenue,ABLE COMMUNITY CARE
Adult Social Care,Adlt u65 Learning Disabilities,LD Home Care External,Third Party Payments,Private Contractors,Miscellaneous Agency Services,10/5/2010,824,2752,Revenue,ABLE COMMUNITY CARE
Adult Social Care,Adlt u65 Learning Disabilities,LD Home Care External,Third Party Payments,Private Contractors,Miscellaneous Agency Services,10/25/2010,825,2752,Revenue,ABLE COMMUNITY CARE
Adult Social Care,Adlt u65 Learning Disabilities,LD Home Care External,Third Party Payments,Private Contractors,Miscellaneous Agency Services,10/29/2010,826,702.94,Revenue,SUPREME CARE SERVICES LIMITED
Adult Social Care,Adlt u65 Learning Disabilities,LD Home Care External,Third Party Payments,Private Contractors,Miscellaneous Agency Services,10/5/2010,827,655.3,Revenue,BEECH HOME CARE SERVICES
Adult Social Care,Adlt u65 Learning Disabilities,LD Home Care External,Third Party Payments,Private Contractors,Miscellaneous Agency Services,10/22/2010,828,655.3,Revenue,BEECH HOME CARE SERVICES
Adult Social Care,Adlt u65 Learning Disabilities,LD Home Care External,Third Party Payments,Private Contractors,Miscellaneous Agency Services,10/25/2010,829,655.3,Revenue,BEECH HOME CARE SERVICES
,,LD JMC,Premises Related Expenditure,Cleaning and Domestic Supplies,Cleaning Services,10/5/2010,830,1850.89,Revenue,JULIUS RUTHERFOORD & CO LTD
,,LD JMC,Premises Related Expenditure,Cleaning and Domestic Supplies,Cleaning Services,10/5/2010,831,1850.89,Revenue,JULIUS RUTHERFOORD & CO LTD
,,LD JMC,Supplies & Services,Services,Miscellaneous Expenses,10/6/2010,832,1146.25,Revenue,REDACTED
Adult Social Care,Adlt u65 Learning Disabilities,LD Meadow Sweet Close,Premises Related Expenditure,Rents,Miscellaneous Rents,10/27/2010,833,1222.3,Revenue,LONDON & QUADRANT HOUS. TRUST
Adult Social Care,Adlt u65 Learning Disabilities,LD Nursing Care,Third Party Payments,Private Contractors,Miscellaneous Agency Services,10/14/2010,834,6757.1,Revenue,HIGH HURLANDS HOMES
Adult Social Care,Adlt u65 Learning Disabilities,LD Nursing Care,Third Party Payments,Private Contractors,Miscellaneous Agency Services,10/14/2010,835,5121.84,Revenue,WINGREACH LIMITED
Adult Social Care,Adlt u65 Learning Disabilities,LD Nursing Care,Third Party Payments,Private Contractors,Miscellaneous Agency Services,10/25/2010,836,2461.71,Revenue,LINK HOUSE
Adult Social Care,Adlt u65 Learning Disabilities,LD Nursing Care,Third Party Payments,Private Contractors,Miscellaneous Agency Services,10/14/2010,837,2152,Revenue,SUTTON NURSING HOMES LTD
Adult Social Care,Adlt u65 Learning Disabilities,LD Other Services,Third Party Payments,Private Contractors,Miscellaneous Agency Services,10/28/2010,838,1751.7,Revenue,REDACTED
Adult Social Care,Adlt u65 Learning Disabilities,LD Other Services,Third Party Payments,Private Contractors,Miscellaneous Agency Services,10/29/2010,839,850,Revenue,CARSHALTON COLLEGE
,,LD Register,Third Party Payments,Private Contractors,Contract Payments,10/19/2010,840,6277,Revenue,SUTTON & MERTON PCT
Adult Social Care,Adlt u65 Learning Disabilities,LD Residential Care External,Third Party Payments,Private Contractors,Miscellaneous Agency Services,10/6/2010,841,29881.6,Revenue,ST LUKE'S HOSPITAL- OLD LEIGH
Adult Social Care,Adlt u65 Learning Disabilities,LD Residential Care External,Third Party Payments,Private Contractors,Miscellaneous Agency Services,10/12/2010,842,26279.04,Revenue,UNITED RESPONSE
Adult Social Care,Adlt u65 Learning Disabilities,LD Residential Care External,Third Party Payments,Private Contractors,Miscellaneous Agency Services,10/29/2010,843,26279.04,Revenue,UNITED RESPONSE
Adult Social Care,Adlt u65 Learning Disabilities,LD Residential Care External,Third Party Payments,Private Contractors,Miscellaneous Agency Services,10/29/2010,844,21791.48,Revenue,UNITED RESPONSE
Adult Social Care,Adlt u65 Learning Disabilities,LD Residential Care External,Third Party Payments,Private Contractors,Miscellaneous Agency Services,10/5/2010,845,18250,Revenue,ST LUKE'S HOSPITAL- OLD LEIGH
Adult Social Care,Adlt u65 Learning Disabilities,LD Residential Care External,Third Party Payments,Private Contractors,Miscellaneous Agency Services,10/12/2010,846,17432.04,Revenue,UNITED RESPONSE
Adult Social Care,Adlt u65 Learning Disabilities,LD Residential Care External,Third Party Payments,Private Contractors,Miscellaneous Agency Services,10/19/2010,847,10995.68,Revenue,AIMS CARE PARTNERSHIP
Adult Social Care,Adlt u65 Learning Disabilities,LD Residential Care External,Third Party Payments,Private Contractors,Miscellaneous Agency Services,10/5/2010,848,9350.12,Revenue,TRACESCENT LIMITED
Adult Social Care,Adlt u65 Learning Disabilities,LD Residential Care External,Third Party Payments,Private Contractors,Miscellaneous Agency Services,10/13/2010,849,8500,Revenue,CARRICKS BROOK
Adult Social Care,Adlt u65 Learning Disabilities,LD Residential Care External,Third Party Payments,Private Contractors,Miscellaneous Agency Services,10/13/2010,850,8010,Revenue,CARRICKS BROOK
Adult Social Care,Adlt u65 Learning Disabilities,LD Residential Care External,Third Party Payments,Private Contractors,Miscellaneous Agency Services,10/5/2010,851,7840,Revenue,SOLAR CARE GROUP LTD - ROBINIA
Adult Social Care,Adlt u65 Learning Disabilities,LD Residential Care External,Third Party Payments,Private Contractors,Miscellaneous Agency Services,10/21/2010,852,7699.76,Revenue,HEALTHLINC INDIVIDUAL CARE LTD
Adult Social Care,Adlt u65 Learning Disabilities,LD Residential Care External,Third Party Payments,Private Contractors,Miscellaneous Agency Services,10/14/2010,853,7505.56,Revenue,SOLAR CARE GROUP LTD - ROBINIA
Adult Social Care,Adlt u65 Learning Disabilities,LD Residential Care External,Third Party Payments,Private Contractors,Miscellaneous Agency Services,10/5/2010,854,7368,Revenue,CHATSWORTH CARE
Adult Social Care,Adlt u65 Learning Disabilities,LD Residential Care External,Third Party Payments,Private Contractors,Miscellaneous Agency Services,10/14/2010,855,6657.12,Revenue,SOLAR CARE GROUP LTD - ROBINIA
Adult Social Care,Adlt u65 Learning Disabilities,LD Residential Care External,Third Party Payments,Private Contractors,Miscellaneous Agency Services,10/14/2010,856,6408,Revenue,CARRICKS BROOK
Adult Social Care,Adlt u65 Learning Disabilities,LD Residential Care External,Third Party Payments,Private Contractors,Miscellaneous Agency Services,10/7/2010,857,5981.2,Revenue,CARE MANAGEMENT GROUP
Adult Social Care,Adlt u65 Learning Disabilities,LD Residential Care External,Third Party Payments,Private Contractors,Miscellaneous Agency Services,10/14/2010,858,5931.68,Revenue,THE LEO TRUST
Adult Social Care,Adlt u65 Learning Disabilities,LD Residential Care External,Third Party Payments,Private Contractors,Miscellaneous Agency Services,10/7/2010,859,5500,Revenue,CARE MANAGEMENT GROUP
Adult Social Care,Adlt u65 Learning Disabilities,LD Residential Care External,Third Party Payments,Private Contractors,Miscellaneous Agency Services,10/25/2010,860,5394.08,Revenue,REDACTED
Adult Social Care,Adlt u65 Learning Disabilities,LD Residential Care External,Third Party Payments,Private Contractors,Miscellaneous Agency Services,10/7/2010,861,5380,Revenue,CARE MANAGEMENT GROUP
Adult Social Care,Adlt u65 Learning Disabilities,LD Residential Care External,Third Party Payments,Private Contractors,Miscellaneous Agency Services,10/15/2010,862,5374.92,Revenue,ASHCROFT CARE SERVICES
Adult Social Care,Adlt u65 Learning Disabilities,LD Residential Care External,Third Party Payments,Private Contractors,Miscellaneous Agency Services,10/12/2010,863,5288.04,Revenue,REDACTED
Adult Social Care,Adlt u65 Learning Disabilities,LD Residential Care External,Third Party Payments,Private Contractors,Miscellaneous Agency Services,10/4/2010,864,5200,Revenue,ST GEORGES RES. CARE HOME
Adult Social Care,Adlt u65 Learning Disabilities,LD Residential Care External,Third Party Payments,Private Contractors,Miscellaneous Agency Services,10/14/2010,865,5192,Revenue,SOLAR CARE GROUP LTD - ROBINIA
Adult Social Care,Adlt u65 Learning Disabilities,LD Residential Care External,Third Party Payments,Private Contractors,Miscellaneous Agency Services,10/7/2010,866,5044,Revenue,CARE MANAGEMENT GROUP
Adult Social Care,Adlt u65 Learning Disabilities,LD Residential Care External,Third Party Payments,Private Contractors,Miscellaneous Agency Services,10/22/2010,867,4992.52,Revenue,ASHBROOK HOUSE
Adult Social Care,Adlt u65 Learning Disabilities,LD Residential Care External,Third Party Payments,Private Contractors,Miscellaneous Agency Services,10/5/2010,868,4984.6,Revenue,ODYSSEY CARE SOLUTIONS
Adult Social Care,Adlt u65 Learning Disabilities,LD Residential Care External,Third Party Payments,Private Contractors,Miscellaneous Agency Services,10/29/2010,869,4984.6,Revenue,ODYSSEY CARE SOLUTIONS
Adult Social Care,Adlt u65 Learning Disabilities,LD Residential Care External,Third Party Payments,Private Contractors,Miscellaneous Agency Services,10/22/2010,870,4939.16,Revenue,ASHTEAD HOUSE LIMITED
Adult Social Care,Adlt u65 Learning Disabilities,LD Residential Care External,Third Party Payments,Private Contractors,Miscellaneous Agency Services,10/18/2010,871,4868,Revenue,GREENFIELD CARE HOMES LTD
Adult Social Care,Adlt u65 Learning Disabilities,LD Residential Care External,Third Party Payments,Private Contractors,Miscellaneous Agency Services,10/8/2010,872,4832,Revenue,THE REGARD PARTNERSHIP LTD
Adult Social Care,Adlt u65 Learning Disabilities,LD Residential Care External,Third Party Payments,Private Contractors,Miscellaneous Agency Services,10/28/2010,873,4811.63,Revenue,MACINTYRE
Adult Social Care,Adlt u65 Learning Disabilities,LD Residential Care External,Third Party Payments,Private Contractors,Miscellaneous Agency Services,10/28/2010,874,4811.63,Revenue,MACINTYRE
Adult Social Care,Adlt u65 Learning Disabilities,LD Residential Care External,Third Party Payments,Private Contractors,Miscellaneous Agency Services,10/28/2010,875,4811.63,Revenue,MACINTYRE
Adult Social Care,Adlt u65 Learning Disabilities,LD Residential Care External,Third Party Payments,Private Contractors,Miscellaneous Agency Services,10/18/2010,876,4780,Revenue,GREENFIELD CARE HOMES LTD
Adult Social Care,Adlt u65 Learning Disabilities,LD Residential Care External,Third Party Payments,Private Contractors,Miscellaneous Agency Services,10/18/2010,877,4780,Revenue,GREENFIELD CARE HOMES LTD
Adult Social Care,Adlt u65 Learning Disabilities,LD Residential Care External,Third Party Payments,Private Contractors,Miscellaneous Agency Services,10/18/2010,878,4780,Revenue,GREENFIELD CARE HOMES LTD
Adult Social Care,Adlt u65 Learning Disabilities,LD Residential Care External,Third Party Payments,Private Contractors,Miscellaneous Agency Services,10/7/2010,879,4760,Revenue,CARE MANAGEMENT GROUP
Adult Social Care,Adlt u65 Learning Disabilities,LD Residential Care External,Third Party Payments,Private Contractors,Miscellaneous Agency Services,10/18/2010,880,4744,Revenue,GREENFIELD CARE HOMES LTD
Adult Social Care,Adlt u65 Learning Disabilities,LD Residential Care External,Third Party Payments,Private Contractors,Miscellaneous Agency Services,10/18/2010,881,4732,Revenue,GREENFIELD CARE HOMES LTD
Adult Social Care,Adlt u65 Learning Disabilities,LD Residential Care External,Third Party Payments,Private Contractors,Miscellaneous Agency Services,10/25/2010,882,4707.44,Revenue,THE CHESTNUTS LIMITED
Adult Social Care,Adlt u65 Learning Disabilities,LD Residential Care External,Third Party Payments,Private Contractors,Miscellaneous Agency Services,10/5/2010,883,4688.88,Revenue,CRAEGMOOR FACILITIES CO LTD
Adult Social Care,Adlt u65 Learning Disabilities,LD Residential Care External,Third Party Payments,Private Contractors,Miscellaneous Agency Services,10/18/2010,884,4624,Revenue,GREENFIELD CARE HOMES LTD
Adult Social Care,Adlt u65 Learning Disabilities,LD Residential Care External,Third Party Payments,Private Contractors,Miscellaneous Agency Services,10/12/2010,885,4460.92,Revenue,REDACTED
Adult Social Care,Adlt u65 Learning Disabilities,LD Residential Care External,Third Party Payments,Private Contractors,Miscellaneous Agency Services,10/8/2010,886,4417.92,Revenue,THE REGARD PARTNERSHIP LTD
Adult Social Care,Adlt u65 Learning Disabilities,LD Residential Care External,Third Party Payments,Private Contractors,Miscellaneous Agency Services,10/15/2010,887,4299.88,Revenue,ASHCROFT CARE SERVICES
Adult Social Care,Adlt u65 Learning Disabilities,LD Residential Care External,Third Party Payments,Private Contractors,Miscellaneous Agency Services,10/27/2010,888,4160,Revenue,THE REGARD PARTNERSHIP LTD
Adult Social Care,Adlt u65 Learning Disabilities,LD Residential Care External,Third Party Payments,Private Contractors,Miscellaneous Agency Services,10/22/2010,889,4157.24,Revenue,ASHINGTON HOUSE
Adult Social Care,Adlt u65 Learning Disabilities,LD Residential Care External,Third Party Payments,Private Contractors,Miscellaneous Agency Services,10/7/2010,890,4113.72,Revenue,ESTHER CARE HOMES LIMITED
Adult Social Care,Adlt u65 Learning Disabilities,LD Residential Care External,Third Party Payments,Private Contractors,Miscellaneous Agency Services,10/4/2010,891,3800,Revenue,ST GEORGES RES. CARE HOME
Adult Social Care,Adlt u65 Learning Disabilities,LD Residential Care External,Third Party Payments,Private Contractors,Miscellaneous Agency Services,10/4/2010,892,3800,Revenue,ST GEORGES RES. CARE HOME
Adult Social Care,Adlt u65 Learning Disabilities,LD Residential Care External,Third Party Payments,Private Contractors,Miscellaneous Agency Services,10/12/2010,893,3798.04,Revenue,BRIGSTOCK HOUSE
Adult Social Care,Adlt u65 Learning Disabilities,LD Residential Care External,Third Party Payments,Private Contractors,Miscellaneous Agency Services,10/29/2010,894,3532.48,Revenue,HAYDON PARK LODGE
Adult Social Care,Adlt u65 Learning Disabilities,LD Residential Care External,Third Party Payments,Private Contractors,Miscellaneous Agency Services,10/29/2010,895,3521.24,Revenue,HAYDON PARK LODGE
Adult Social Care,Adlt u65 Learning Disabilities,LD Residential Care External,Third Party Payments,Private Contractors,Miscellaneous Agency Services,10/12/2010,896,3487.92,Revenue,SCOPE
Adult Social Care,Adlt u65 Learning Disabilities,LD Residential Care External,Third Party Payments,Private Contractors,Miscellaneous Agency Services,10/27/2010,897,3400,Revenue,BURGH HEATH LODGE
Adult Social Care,Adlt u65 Learning Disabilities,LD Residential Care External,Third Party Payments,Private Contractors,Miscellaneous Agency Services,10/7/2010,898,3336,Revenue,CARE MANAGEMENT GROUP
Adult Social Care,Adlt u65 Learning Disabilities,LD Residential Care External,Third Party Payments,Private Contractors,Miscellaneous Agency Services,10/5/2010,899,3210.36,Revenue,CRAEGMOOR FACILITIES CO LTD
Adult Social Care,Adlt u65 Learning Disabilities,LD Residential Care External,Third Party Payments,Private Contractors,Miscellaneous Agency Services,10/5/2010,900,3175.44,Revenue,ODYSSEY CARE SOLUTIONS
Adult Social Care,Adlt u65 Learning Disabilities,LD Residential Care External,Third Party Payments,Private Contractors,Miscellaneous Agency Services,10/29/2010,901,3175.44,Revenue,ODYSSEY CARE SOLUTIONS
Adult Social Care,Adlt u65 Learning Disabilities,LD Residential Care External,Third Party Payments,Private Contractors,Miscellaneous Agency Services,10/28/2010,902,3045.24,Revenue,MACINTYRE
Adult Social Care,Adlt u65 Learning Disabilities,LD Residential Care External,Third Party Payments,Private Contractors,Miscellaneous Agency Services,10/28/2010,903,3045.24,Revenue,MACINTYRE
Adult Social Care,Adlt u65 Learning Disabilities,LD Residential Care External,Third Party Payments,Private Contractors,Miscellaneous Agency Services,10/28/2010,904,3045.24,Revenue,MACINTYRE
Adult Social Care,Adlt u65 Learning Disabilities,LD Residential Care External,Third Party Payments,Private Contractors,Miscellaneous Agency Services,10/13/2010,905,3021.84,Revenue,L'ARCHE
Adult Social Care,Adlt u65 Learning Disabilities,LD Residential Care External,Third Party Payments,Private Contractors,Miscellaneous Agency Services,10/7/2010,906,2956.42,Revenue,PROVIDENCE CARE UK LTD
Adult Social Care,Adlt u65 Learning Disabilities,LD Residential Care External,Third Party Payments,Private Contractors,Miscellaneous Agency Services,10/11/2010,907,2904.56,Revenue,ST MICHAEL'S ADULT SERVICES
Adult Social Care,Adlt u65 Learning Disabilities,LD Residential Care External,Third Party Payments,Private Contractors,Miscellaneous Agency Services,10/13/2010,908,2853.92,Revenue,THE GRANGE & WALTON COTTAGE
Adult Social Care,Adlt u65 Learning Disabilities,LD Residential Care External,Third Party Payments,Private Contractors,Miscellaneous Agency Services,10/29/2010,909,2816,Revenue,HAYDON PARK LODGE
Adult Social Care,Adlt u65 Learning Disabilities,LD Residential Care External,Third Party Payments,Private Contractors,Miscellaneous Agency Services,10/29/2010,910,2719.32,Revenue,HAYDON PARK LODGE
Adult Social Care,Adlt u65 Learning Disabilities,LD Residential Care External,Third Party Payments,Private Contractors,Miscellaneous Agency Services,10/29/2010,911,2633.52,Revenue,THE NAK CENTRE
Adult Social Care,Adlt u65 Learning Disabilities,LD Residential Care External,Third Party Payments,Private Contractors,Miscellaneous Agency Services,10/21/2010,912,2593.4,Revenue,THE SONS OF DIVINE PROVIDENCE
Adult Social Care,Adlt u65 Learning Disabilities,LD Residential Care External,Third Party Payments,Private Contractors,Miscellaneous Agency Services,10/12/2010,913,2552.84,Revenue,FREEWAYS TRUST LTD
Adult Social Care,Adlt u65 Learning Disabilities,LD Residential Care External,Third Party Payments,Private Contractors,Miscellaneous Agency Services,10/7/2010,914,2471.6,Revenue,CANTERBURY OAST TRUST LTD
Adult Social Care,Adlt u65 Learning Disabilities,LD Residential Care External,Third Party Payments,Private Contractors,Miscellaneous Agency Services,10/29/2010,915,2458.36,Revenue,HAYDON PARK LODGE
Adult Social Care,Adlt u65 Learning Disabilities,LD Residential Care External,Third Party Payments,Private Contractors,Miscellaneous Agency Services,10/7/2010,916,2171.32,Revenue,GREENFIELD CARE HOMES LTD
Adult Social Care,Adlt u65 Learning Disabilities,LD Residential Care External,Third Party Payments,Private Contractors,Miscellaneous Agency Services,10/7/2010,917,2087.64,Revenue,LINKAGE COMMUNITY TR.LONG-STAY
Adult Social Care,Adlt u65 Learning Disabilities,LD Residential Care External,Third Party Payments,Private Contractors,Miscellaneous Agency Services,10/20/2010,918,2074.68,Revenue,EL-SHADDAI
Adult Social Care,Adlt u65 Learning Disabilities,LD Residential Care External,Third Party Payments,Private Contractors,Miscellaneous Agency Services,10/29/2010,919,1975.24,Revenue,HAYDON PARK LODGE
Adult Social Care,Adlt u65 Learning Disabilities,LD Residential Care External,Third Party Payments,Private Contractors,Miscellaneous Agency Services,10/21/2010,920,1863.54,Revenue,ROYAL BOROUGH OF KINGSTON
Adult Social Care,Adlt u65 Learning Disabilities,LD Residential Care External,Third Party Payments,Private Contractors,Miscellaneous Agency Services,10/4/2010,921,1830.8,Revenue,ASRA G.LONDON HOUSING ASS.LTD
Adult Social Care,Adlt u65 Learning Disabilities,LD Residential Care External,Third Party Payments,Private Contractors,Miscellaneous Agency Services,10/27/2010,922,1830.8,Revenue,ASRA G.LONDON HOUSING ASS.LTD
Adult Social Care,Adlt u65 Learning Disabilities,LD Residential Care External,Third Party Payments,Private Contractors,Miscellaneous Agency Services,10/20/2010,923,1438.44,Revenue,EL-SHADDAI
Adult Social Care,Adlt u65 Learning Disabilities,LD Residential Care External,Third Party Payments,Private Contractors,Miscellaneous Agency Services,10/20/2010,924,1438.44,Revenue,EL-SHADDAI
Adult Social Care,Adlt u65 Learning Disabilities,LD Residential Care External,Third Party Payments,Private Contractors,Miscellaneous Agency Services,10/7/2010,925,1372.4,Revenue,KENT AUTISTIC TRUST
Adult Social Care,Adlt u65 Learning Disabilities,LD Supported Housing,Third Party Payments,Private Contractors,Miscellaneous Agency Services,10/6/2010,926,60336,Revenue,WANDLE HOUSING ASSOCIATION LTD
Adult Social Care,Adlt u65 Learning Disabilities,LD Supported Housing,Third Party Payments,Private Contractors,Miscellaneous Agency Services,10/12/2010,927,20112,Revenue,WANDLE HOUSING ASSOCIATION LTD
Adult Social Care,Adlt u65 Learning Disabilities,LD Supported Housing,Third Party Payments,Private Contractors,Miscellaneous Agency Services,10/25/2010,928,3234.96,Revenue,H F TRUST LTD
Adult Social Care,Adlt u65 Learning Disabilities,LD Supported Housing,Third Party Payments,Private Contractors,Miscellaneous Agency Services,10/18/2010,929,1750,Revenue,ROYAL MENCAP SOCIETY
Adult Social Care,Adlt u65 Learning Disabilities,LD Supported Housing,Third Party Payments,Private Contractors,Miscellaneous Agency Services,10/18/2010,930,933.4,Revenue,ROYAL MENCAP SOCIETY
Central Services,Fully rechargeable Overheads,Learning and Development,Supplies & Services,Miscellaneous Expenses,Training Managers Dev Program,10/13/2010,931,1890,Revenue,AND RESOURCING
Central Services,Fully rechargeable Overheads,Learning and Development,Supplies & Services,Miscellaneous Expenses,Training Managers Dev Program,10/7/2010,932,1740.4,Revenue,WAVE PEOPLE CONSULTING
Central Services,Fully rechargeable Overheads,Learning and Development,Supplies & Services,Miscellaneous Expenses,L&D Corporate Programme,10/28/2010,933,1200,Revenue,REDACTED
Central Services,Fully rechargeable Overheads,Learning and Development,Supplies & Services,Miscellaneous Expenses,Training Managers Dev Program,10/7/2010,934,861.2,Revenue,WAVE PEOPLE CONSULTING
CS -Oth Operating Inc & Expend,Precepts and Levies,Lee Valley Regional Park,,,Expenditure,10/18/2010,935,18879.11,Revenue,LEE VALLEY REGIONAL PARK AUTH.
Central Services,Fully rechargeable Overheads,Legal Services,Supplies & Services,Services,Professional Membership,10/21/2010,936,5494,Revenue,THE LAW SOCIETY
Central Services,Fully rechargeable Overheads,Legal Services,Supplies & Services,Services,Counsel's fees,10/4/2010,937,4288.3,Revenue,REDACTED
Central Services,Fully rechargeable Overheads,Legal Services,Supplies & Services,Grants and Subscriptions,Subscriptions,10/27/2010,938,2850,Revenue,PRACTICAL LAW COMPANY
Central Services,Fully rechargeable Overheads,Legal Services,Supplies & Services,Services,Counsel's fees,10/11/2010,939,1470,Revenue,REDACTED
Central Services,Fully rechargeable Overheads,Legal Services,Supplies & Services,Services,Counsel's fees,10/6/2010,940,800,Revenue,REDACTED
Central Services,Fully rechargeable Overheads,Legal Services,Supplies & Services,Services,Counsel's fees,10/5/2010,941,800,Revenue,REDACTED
Central Services,Fully rechargeable Overheads,Legal Services,Supplies & Services,Services,Counsel's fees,10/20/2010,942,560,Revenue,REDACTED
Cultural Env Reg&Plan Services,Open Spaces,Leis Dev - Leases & Licences,Transfer Payments,Housing Benefits,Other Payments,10/6/2010,943,945.02,Revenue,KINGSTON CORPORATION
Cultural Env Reg&Plan Services,Open Spaces,Leisure Buildings,Premises Related Expenditure,RepairsAlterations&MtceOfBldgs,DDM - Mechanical,10/18/2010,944,5116.03,Revenue,COFELY LIMITED
Cultural Env Reg&Plan Services,Open Spaces,Leisure Buildings,Premises Related Expenditure,RepairsAlterations&MtceOfBldgs,DDM - Mechanical,10/19/2010,945,1423.73,Revenue,COFELY LIMITED
Cultural Env Reg&Plan Services,Open Spaces,Leisure Buildings,Premises Related Expenditure,RepairsAlterations&MtceOfBldgs,DDM - General Building,10/19/2010,946,1152,Revenue,LOVELL LTD
Cultural Env Reg&Plan Services,SMSS (Cult),Leisure Dev  Service Support,Supplies & Services,Equip Furniture/Materials,Memorial seats - purchase,10/27/2010,947,1132,Revenue,LISTER LUTYENS CO LTD
Cultural Env Reg&Plan Services,SMSS (Cult),Leisure Dev  Service Support,Supplies & Services,Equip Furniture/Materials,Memorial seats - purchase,10/7/2010,948,1045.9,Revenue,LISTER LUTYENS CO LTD
Cultural Env Reg&Plan Services,SMSS (Cult),Leisure Dev  Service Support,Supplies & Services,Grants and Subscriptions,Subscriptions,10/20/2010,949,600,Revenue,CLEAR ADVANTAGE LTD.
Cultural Env Reg&Plan Services,Library Service,Libraries Service-Civic Centre,Supplies & Services,Comms and Computing,DS Maintenance,10/1/2010,950,10483.61,Revenue,AXIELL
Cultural Env Reg&Plan Services,Library Service,Libraries Service-Civic Centre,Supplies & Services,Comms and Computing,Computer Costs,10/5/2010,951,1000,Revenue,AXIELL
Cultural Env Reg&Plan Services,Library Service,Libraries Service-Civic Centre,Supplies & Services,Prntng Stnry Gen Off Exp,Stationery,10/19/2010,952,968.6,Revenue,SPECTRUM PLASTICS
Cultural Env Reg&Plan Services,Library Service,Libraries Service-Civic Centre,Supplies & Services,Prntng Stnry Gen Off Exp,Stationery,10/18/2010,953,900,Revenue,3M UNITED KINGDOM PLC
Childrens & Education Services,Non-Delegated School Grants,LIDF 14-19 pnership supp (LSC),Supplies & Services,Expenses,Conferences,10/5/2010,954,3750,Revenue,MY VOICE LONDON
Childrens & Education Services,Non-Delegated School Grants,LIDF 14-19 pnership supp (LSC),Supplies & Services,Expenses,Conferences,10/28/2010,955,3750,Revenue,MY VOICE LONDON
Childrens & Education Services,Non-Delegated School Grants,LIDF 14-19 pnership supp (LSC),Supplies & Services,Expenses,Conferences,10/20/2010,956,2008.26,Revenue,L.B.RICHMOND UPON THAMES
,,Links PCP,"New Const, Conv & Renvtion",Ste Wrks-Rn & Mt-Sub Contractr,Ste Wrks-Rn & Mt-Sub Contractr,10/13/2010,957,53770,Capital,RHODAR (SOUTHERN) LTD
,,Links PCP,"New Const, Conv & Renvtion",Ste Wrk-Rn & Mt-Main Contractr,Ste Wrk-Rn & Mt-Main Contractr,10/14/2010,958,39485.32,Capital,THOMAS SINDEN CONSTRUCTION LTD
,,Litter/Dog Bin Replacement,Plnt Mch & Equip(signs etc),Equipment,Equipment,10/29/2010,959,1840,Capital,REDACTED
,,Litter/Dog Bin Replacement,Plnt Mch & Equip(signs etc),Equipment,Equipment,10/13/2010,960,1209.7,Capital,GLAZING & SIGNS LTD
Central Services,Fully rechargeable Overheads,Local Involvement Network,Third Party Payments,Private Contractors,Contract Payments,10/15/2010,961,8342.91,Revenue,MERTON VOLUNTARY SERV COUNCIL
Central Services,Local Tax Collection,Local Taxation Services,Supplies & Services,Comms and Computing,Software Licences,10/28/2010,962,28000,Revenue,CIVICA UK LIMITED
CS -Oth Operating Inc & Expend,Precepts and Levies,London Pens Fund Auth,,,Expenditure,10/12/2010,963,28343.7,Revenue,LONDON PENSIONS FUND AUTHORITY
,,Lonesome IGC,"New Const, Conv & Renvtion",Ste Wrks-Nw Bld-Main Cntrct,Ste Wrks-Nw Bld-Main Cntrct,10/28/2010,964,48265,Capital,MANSELL CONST SERV LTD
Cultural Env Reg&Plan Services,Library Service,Lottery Project,Employees,Indirect Employee Expenses,Recruitment Adverts,10/13/2010,965,3204.9,Revenue,PENNA BARKERS
Childrens & Education Services,Schools Strategic Management,LSC,Supplies & Services,Services,Consultants,10/25/2010,966,7600,Revenue,END USER LTD
Childrens & Education Services,Schools Strategic Management,LSC,Employees,Direct Employee Expenses,Agency Staff & Casual Paymts,10/25/2010,967,4059.3,Revenue,REDACTED
Adult Social Care,Older People 65&Over inc OP-MH,MA Mascot Wardens Alarms,Supplies & Services,Equip Furniture/Materials,Equip Community Alarms,10/28/2010,968,7254.42,Revenue,TUNSTALL RESPONSE
Adult Social Care,Older People 65&Over inc OP-MH,MA Mascot Wardens Alarms,Supplies & Services,Equip Furniture/Materials,Equip Community Alarms,10/22/2010,969,6469.6,Revenue,TUNSTALL TELECOM LIMITED
Adult Social Care,Older People 65&Over inc OP-MH,MA Mascot Wardens Alarms,Employees,Indirect Employee Expenses,Recruitment Adverts,10/11/2010,970,1125.7,Revenue,PENNA BARKERS
Childrens & Education Services,Adult Education,MAE-Bldgs Repairs & Maintenanc,Premises Related Expenditure,RepairsAlterations&MtceOfBldgs,DDM - Mechanical,10/25/2010,971,513.53,Revenue,COFELY LIMITED
Central Services,Fully rechargeable Overheads,Management & Administration,Supplies & Services,Comms and Computing,Licences Microsoft Select,10/7/2010,972,5721.03,Revenue,CIVICA SERVICES LTD
Central Services,Fully rechargeable Overheads,Management & Administration,Employees,Indirect Employee Expenses,Post Entry training-creditors,10/5/2010,973,3156,Revenue,SHIFT F7 LIMITED
Central Services,Democ' Representation & Mgt,Mayors Office,Supplies & Services,Clothing Unfrms Laundry,Regalia,10/26/2010,974,515,Revenue,EDE & RAVENSCROFT LTD.
Cultural Env Reg&Plan Services,Library Service,Media Fund,Supplies & Services,Equip Furniture/Materials,Lending,10/14/2010,975,988.72,Revenue,BERTRAM LIBRARY SERVICES
Cultural Env Reg&Plan Services,Library Service,Media Fund,Supplies & Services,Equip Furniture/Materials,Lending,10/7/2010,976,977.02,Revenue,BERTRAM LIBRARY SERVICES
Cultural Env Reg&Plan Services,Library Service,Media Fund,Supplies & Services,Equip Furniture/Materials,Lending,10/22/2010,977,952.24,Revenue,BERTRAM LIBRARY SERVICES
Cultural Env Reg&Plan Services,Library Service,Media Fund,Supplies & Services,Equip Furniture/Materials,Reference,10/5/2010,978,883.14,Revenue,COUTTS INFORMAT.SERVICES LTD.
Cultural Env Reg&Plan Services,Library Service,Media Fund,Supplies & Services,Equip Furniture/Materials,Lending,10/5/2010,979,837.93,Revenue,REDACTED
Cultural Env Reg&Plan Services,Library Service,Media Fund,Supplies & Services,Equip Furniture/Materials,Lending,10/7/2010,980,829.82,Revenue,REDACTED
Cultural Env Reg&Plan Services,Library Service,Media Fund,Supplies & Services,Equip Furniture/Materials,Ethnic Books,10/28/2010,981,818.6,Revenue,IKC UK LTD
Cultural Env Reg&Plan Services,Library Service,Media Fund,Supplies & Services,Equip Furniture/Materials,Lending,10/22/2010,982,789.42,Revenue,BERTRAM LIBRARY SERVICES
Cultural Env Reg&Plan Services,Library Service,Media Fund,Supplies & Services,Equip Furniture/Materials,Videos,10/6/2010,983,762.99,Revenue,MULTICHANNEL SOLUTIONS LTD
Cultural Env Reg&Plan Services,Library Service,Media Fund,Supplies & Services,Equip Furniture/Materials,Lending,10/5/2010,984,733.98,Revenue,REDACTED
Cultural Env Reg&Plan Services,Library Service,Media Fund,Supplies & Services,Equip Furniture/Materials,Lending,10/22/2010,985,697.61,Revenue,BERTRAM LIBRARY SERVICES
Cultural Env Reg&Plan Services,Library Service,Media Fund,Supplies & Services,Equip Furniture/Materials,Lending,10/5/2010,986,678.98,Revenue,REDACTED
Cultural Env Reg&Plan Services,Library Service,Media Fund,Supplies & Services,Equip Furniture/Materials,Lending,10/5/2010,987,652.18,Revenue,REDACTED
Cultural Env Reg&Plan Services,Library Service,Media Fund,Supplies & Services,Equip Furniture/Materials,Lending,10/22/2010,988,651.89,Revenue,BERTRAM LIBRARY SERVICES
Cultural Env Reg&Plan Services,Library Service,Media Fund,Supplies & Services,Equip Furniture/Materials,Lending,10/27/2010,989,647.49,Revenue,REDACTED
Cultural Env Reg&Plan Services,Library Service,Media Fund,Supplies & Services,Equip Furniture/Materials,Lending,10/27/2010,990,628.04,Revenue,REDACTED
Cultural Env Reg&Plan Services,Library Service,Media Fund,Supplies & Services,Equip Furniture/Materials,Lending,10/5/2010,991,618.49,Revenue,REDACTED
Cultural Env Reg&Plan Services,Library Service,Media Fund,Supplies & Services,Equip Furniture/Materials,Lending,10/27/2010,992,614.63,Revenue,REDACTED
Cultural Env Reg&Plan Services,Library Service,Media Fund,Supplies & Services,Equip Furniture/Materials,Lending,10/27/2010,993,603.23,Revenue,REDACTED
Cultural Env Reg&Plan Services,Library Service,Media Fund,Supplies & Services,Equip Furniture/Materials,Lending,10/5/2010,994,589.12,Revenue,REDACTED
Cultural Env Reg&Plan Services,Library Service,Media Fund,Supplies & Services,Equip Furniture/Materials,Lending,10/27/2010,995,582.79,Revenue,REDACTED
Cultural Env Reg&Plan Services,Library Service,Media Fund,Supplies & Services,Equip Furniture/Materials,Lending,10/7/2010,996,512.68,Revenue,BERTRAM LIBRARY SERVICES
Central Services,Democ' Representation & Mgt,Members Services,Supplies & Services,Expenses,Members training AP creditors,10/29/2010,997,720.6,Revenue,ESSENCE CONSULTANCY LTD.
Childrens & Education Services,Assuring Access To Schools,Memorandum A/c - EIP&PA,Supplies & Services,Grants and Subscriptions,Grants,10/14/2010,998,23750,Revenue,JIGSAW4U
Childrens & Education Services,Assuring Access To Schools,Memorandum A/c - EIP&PA,Supplies & Services,Grants and Subscriptions,Grants,10/5/2010,999,12500,Revenue,MERTON VOLUNTARY SERV COUNCIL
Childrens & Education Services,Assuring Access To Schools,Memorandum A/c - EIP&PA,Supplies & Services,Grants and Subscriptions,Grants,10/14/2010,1000,7500,Revenue,JIGSAW4U
Childrens & Education Services,Assuring Access To Schools,Memorandum A/c - EIP&PA,Supplies & Services,Grants and Subscriptions,Grants,10/5/2010,1001,7267.5,Revenue,SOUTH THAMES CROSSROADS
Childrens & Education Services,Assuring Access To Schools,Memorandum A/c - EIP&PA,Supplies & Services,Grants and Subscriptions,Grants,10/18/2010,1002,7267.5,Revenue,SOUTH THAMES CROSSROADS
Childrens & Education Services,Assuring Access To Schools,Memorandum A/c - EIP&PA,Supplies & Services,Grants and Subscriptions,Grants,10/27/2010,1003,5867.5,Revenue,ENDEAVOUR CLUB
Childrens & Education Services,Assuring Access To Schools,Memorandum A/c - EIP&PA,Supplies & Services,Grants and Subscriptions,Grants,10/5/2010,1004,5650,Revenue,SOUTH THAMES CROSSROADS
Childrens & Education Services,Assuring Access To Schools,Memorandum A/c - EIP&PA,Supplies & Services,Grants and Subscriptions,Grants,10/18/2010,1005,5650,Revenue,SOUTH THAMES CROSSROADS
Childrens & Education Services,Assuring Access To Schools,Memorandum A/c - EIP&PA,Supplies & Services,Grants and Subscriptions,Grants,10/7/2010,1006,5250,Revenue,MERTON VOLUNTARY SERV COUNCIL
Childrens & Education Services,Assuring Access To Schools,Memorandum A/c - EIP&PA,Supplies & Services,Grants and Subscriptions,Grants,10/18/2010,1007,4442,Revenue,KID STOP COMM. INTEREST CO.
Childrens & Education Services,Assuring Access To Schools,Memorandum A/c - EIP&PA,Supplies & Services,Grants and Subscriptions,Grants,10/13/2010,1008,4000,Revenue,ASIAN YOUTH ASSOCIATION
Childrens & Education Services,Assuring Access To Schools,Memorandum A/c - EIP&PA,Supplies & Services,Grants and Subscriptions,Grants,10/18/2010,1009,3712,Revenue,POLKA THEATRE FOR CHILDREN
Childrens & Education Services,Assuring Access To Schools,Memorandum A/c - EIP&PA,Supplies & Services,Grants and Subscriptions,Grants,10/21/2010,1010,3712,Revenue,POLKA THEATRE FOR CHILDREN
Childrens & Education Services,Assuring Access To Schools,Memorandum A/c - EIP&PA,Supplies & Services,Grants and Subscriptions,Grants,10/13/2010,1011,1744,Revenue,MORDEN BAPTIST CHURCH
,,Mencap Cafe,Supplies & Services,Grants and Subscriptions,Grants - Running Expenses,10/6/2010,1012,22217.68,Revenue,MERTON MENCAP
,,Mencap Cafe,Supplies & Services,Grants and Subscriptions,Grants - Running Expenses,10/5/2010,1013,13500,Revenue,DIMENSIONS
,,Mencap GAG,Supplies & Services,Miscellaneous Expenses,Specific projects,10/5/2010,1014,5273.25,Revenue,MERTON MENCAP (PROJECT THE TC)
,,Merton Abbey rewiring,"New Const, Conv & Renvtion",Ste Wrks-Nw Bld-Main Cntrct,Ste Wrks-Nw Bld-Main Cntrct,10/20/2010,1015,38324.13,Capital,METSHAPE LTD
Housing Services,Homelessness,Merton Action Single Homeless,Supplies & Services,Grants and Subscriptions,Grants,10/5/2010,1016,2431.5,Revenue,MERTON ACT.FOR SINGLE HOMELESS
,,Merton Adult Education Centre,"New Const, Conv & Renvtion",Dsgn/Sprvsn-Ext Cnsltcy Fees,Dsgn/Sprvsn-Ext Cnsltcy Fees,10/25/2010,1017,700,Capital,PRIORITY RISK LTD
Cultural Env Reg&Plan Services,Community Development (Plg),Merton Asylum Welcome,Supplies & Services,Grants and Subscriptions,Grants - Running Expenses,10/5/2010,1018,6250,Revenue,SOUTH LONDON REFUGEE ASSOCIATI
,,Merton Community Physiotherapy,Employees,Direct Employee Expenses,Agency Staff & Casual Paymts,10/7/2010,1019,1596,Revenue,PULSE
,,Merton Community Physiotherapy,Employees,Direct Employee Expenses,Agency Staff & Casual Paymts,10/22/2010,1020,1596,Revenue,PULSE
,,Merton Community Physiotherapy,Employees,Direct Employee Expenses,Agency Staff & Casual Paymts,10/21/2010,1021,1532.16,Revenue,PULSE
Cultural Env Reg&Plan Services,Recreation & Sport,Merton Hall,Supplies & Services,Miscellaneous Expenses,Entertainment Licences,10/22/2010,1022,2037.94,Revenue,PERFORMING RIGHTS SOCIETY
Cultural Env Reg&Plan Services,Recreation & Sport,Merton Hall,Supplies & Services,Equip Furniture/Materials,Equip-Purchases,10/27/2010,1023,750,Revenue,REDACTED
Central Services,Fully rechargeable Overheads,Merton Link,Premises Related Expenditure,Cleaning and Domestic Supplies,Cleaning Services,10/1/2010,1024,1801.2,Revenue,DYNAMIQ CLEANING LIMITED
Central Services,Fully rechargeable Overheads,Merton Link,Premises Related Expenditure,Cleaning and Domestic Supplies,Cleaning Services,10/27/2010,1025,1801.2,Revenue,DYNAMIQ CLEANING LIMITED
Central Services,Fully rechargeable Overheads,Merton Link,Premises Related Expenditure,Cleaning and Domestic Supplies,Cleaning Services,10/1/2010,1026,727.68,Revenue,DYNAMIQ CLEANING LIMITED
Central Services,Fully rechargeable Overheads,Merton Link,Premises Related Expenditure,Cleaning and Domestic Supplies,Cleaning Services,10/27/2010,1027,727.68,Revenue,DYNAMIQ CLEANING LIMITED
Central Services,Fully rechargeable Overheads,Merton Link,Supplies & Services,Equip Furniture/Materials,Equipment - R & M,10/27/2010,1028,527.93,Revenue,ADT FIRE AND SECURITY PLC
Adult Social Care,Adult u65 Mental Health Needs,MH Adult Placement Cont- NRTPF,Third Party Payments,Private Contractors,Accommodation Based Support,10/18/2010,1029,1604.04,Revenue,REDACTED
Adult Social Care,Adult u65 Mental Health Needs,MH Adult Placement Cont- NRTPF,Third Party Payments,Private Contractors,Accommodation Based Support,10/28/2010,1030,1271.2,Revenue,REDACTED
Adult Social Care,Adult u65 Mental Health Needs,MH Adult Placement Cont- NRTPF,Third Party Payments,Private Contractors,Accommodation Based Support,10/13/2010,1031,863.48,Revenue,REDACTED
Adult Social Care,Adult u65 Mental Health Needs,MH Adult Placement Cont-Morden,Third Party Payments,Private Contractors,Accommodation Based Support,10/4/2010,1032,848.96,Revenue,EL-SHADDAI
Adult Social Care,Adult u65 Mental Health Needs,MH Adult Placement Cont-Wim,Third Party Payments,Private Contractors,Accommodation Based Support,10/21/2010,1033,2100.97,Revenue,THE CAMPHILL VILLAGE TRUST
Adult Social Care,Adult u65 Mental Health Needs,MH Adult Placement Cont-Wim,Third Party Payments,Private Contractors,Accommodation Based Support,10/8/2010,1034,2000,Revenue,REDACTED
Adult Social Care,Adult u65 Mental Health Needs,MH Adult PlacementCont-MitWest,Third Party Payments,Private Contractors,Accommodation Based Support,10/8/2010,1035,1132.32,Revenue,REDACTED
Adult Social Care,Adult u65 Mental Health Needs,MH Adult PlacementCont-MitWest,Third Party Payments,Private Contractors,Accommodation Based Support,10/4/2010,1036,848.96,Revenue,EL-SHADDAI
Adult Social Care,Adult u65 Mental Health Needs,MH Adult PlacementCont-MitWest,Third Party Payments,Private Contractors,Accommodation Based Support,10/15/2010,1037,620.2,Revenue,REDACTED
Adult Social Care,Adult u65 Mental Health Needs,MH Carers Breaks - Morden,Third Party Payments,Private Contractors,Miscellaneous Agency Services,10/27/2010,1038,728.55,Revenue,REDACTED
Adult Social Care,Adult u65 Mental Health Needs,MH Community Care Manager,Third Party Payments,Private Contractors,MH Clients,10/29/2010,1039,50000,Revenue,SW LONDON ST GEORGES NHS TRUST
Adult Social Care,Adult u65 Mental Health Needs,MH Community Care Manager,Employees,Indirect Employee Expenses,Health Staff in PCT Pool,10/15/2010,1040,39397.57,Revenue,SW LONDON ST GEORGES NHS TRUST
Adult Social Care,Adult u65 Mental Health Needs,MH Community Care Manager,Transport Related Expenditure,Car Allowances,Car/Cycle Allwces-Creditors,10/15/2010,1041,1099.3,Revenue,SW LONDON ST GEORGES NHS TRUST
Adult Social Care,Adult u65 Mental Health Needs,MH Day Care - Mitcham West,Third Party Payments,Private Contractors,Miscellaneous Agency Services,10/4/2010,1042,1305.36,Revenue,NAS SERVICES LIMITED
Adult Social Care,Adult u65 Mental Health Needs,MH Day Care - Morden,Third Party Payments,Private Contractors,Miscellaneous Agency Services,10/12/2010,1043,623.68,Revenue,ENTERPRISE CARE SUPPORT LTD
Adult Social Care,Adult u65 Mental Health Needs,MH Direct Payment Scheme- West,Third Party Payments,Private Contractors,Direct Payments,10/6/2010,1044,986.6,Revenue,REDACTED
Adult Social Care,Adult u65 Mental Health Needs,MH Direct Payment Scheme- West,Third Party Payments,Private Contractors,Direct Payments,10/6/2010,1045,838,Revenue,REDACTED
Adult Social Care,Adult u65 Mental Health Needs,MH Direct Payment Scheme-MSAOR,Third Party Payments,Private Contractors,Direct Payments,10/6/2010,1046,1192.8,Revenue,REDACTED
Adult Social Care,Adult u65 Mental Health Needs,MH Direct Payment Scheme-MSAOR,Third Party Payments,Private Contractors,Direct Payments,10/6/2010,1047,718.48,Revenue,REDACTED
Adult Social Care,Adult u65 Mental Health Needs,MH Home Care External - Wim,Third Party Payments,Private Contractors,Miscellaneous Agency Services,10/20/2010,1048,1004.34,Revenue,PLAN PERSONNEL
Adult Social Care,Adult u65 Mental Health Needs,MH Home Care External - Wim,Third Party Payments,Private Contractors,Miscellaneous Agency Services,10/20/2010,1049,978.07,Revenue,ANCHOR CARE
Adult Social Care,Adult u65 Mental Health Needs,MH Home Care External-MitWest,Third Party Payments,Private Contractors,Miscellaneous Agency Services,10/29/2010,1050,1006.77,Revenue,SUPREME CARE SERVICES LIMITED
Adult Social Care,Adult u65 Mental Health Needs,MH Home Care External-MitWest,Third Party Payments,Private Contractors,Miscellaneous Agency Services,10/13/2010,1051,871.36,Revenue,COMFORT CARE SERVICES (UK) LTD
Adult Social Care,Adult u65 Mental Health Needs,MH Home Care External-MitWest,Third Party Payments,Private Contractors,Miscellaneous Agency Services,10/20/2010,1052,719.65,Revenue,GOLDSBOROUGH HOMECARE
Adult Social Care,Adult u65 Mental Health Needs,MH Home Care External-MitWest,Third Party Payments,Private Contractors,Miscellaneous Agency Services,10/20/2010,1053,590.27,Revenue,ANCHOR CARE
Adult Social Care,Adult u65 Mental Health Needs,MH Hostels/B & B - NRTPF,Third Party Payments,Private Contractors,Miscellaneous Agency Services,10/6/2010,1054,1421,Revenue,LA ROSA LONDON LTD
Adult Social Care,Adult u65 Mental Health Needs,MH Nursing Care - Morden,Third Party Payments,Private Contractors,Miscellaneous Agency Services,10/14/2010,1055,2866.36,Revenue,BROOME PARK NURSING HOME
Adult Social Care,Adult u65 Mental Health Needs,MH Nursing Care - Morden,Third Party Payments,Private Contractors,Miscellaneous Agency Services,10/12/2010,1056,2716.52,Revenue,CARE UNLIMITED
Adult Social Care,Adult u65 Mental Health Needs,MH Nursing Care - Morden,Third Party Payments,Private Contractors,Miscellaneous Agency Services,10/28/2010,1057,2716.52,Revenue,CARE UNLIMITED
Adult Social Care,Adult u65 Mental Health Needs,MH Nursing Care - Wim,Third Party Payments,Private Contractors,Miscellaneous Agency Services,10/20/2010,1058,2175.16,Revenue,JESMUND NURSING HOME
Adult Social Care,Adult u65 Mental Health Needs,MH Res Care Ext- Mitcham West,Third Party Payments,Private Contractors,Miscellaneous Agency Services,10/12/2010,1059,5681.56,Revenue,COMMUNITY CARE SOLUTIONS LTD
Adult Social Care,Adult u65 Mental Health Needs,MH Res Care Ext- Mitcham West,Third Party Payments,Private Contractors,Miscellaneous Agency Services,10/5/2010,1060,3900,Revenue,COMMUNITY HOUSING & THERAPY
Adult Social Care,Adult u65 Mental Health Needs,MH Res Care Ext- Mitcham West,Third Party Payments,Private Contractors,Miscellaneous Agency Services,10/25/2010,1061,3750,Revenue,SUPREME HOMES
Adult Social Care,Adult u65 Mental Health Needs,MH Res Care Ext- Mitcham West,Third Party Payments,Private Contractors,Miscellaneous Agency Services,10/6/2010,1062,1497.04,Revenue,ENNIS REST HOME
Adult Social Care,Adult u65 Mental Health Needs,MH Res Care Ext- Mitcham West,Third Party Payments,Private Contractors,Miscellaneous Agency Services,10/21/2010,1063,1497.04,Revenue,ENNIS REST HOME
Adult Social Care,Adult u65 Mental Health Needs,MH Res Care Ext- Mitcham West,Third Party Payments,Private Contractors,Miscellaneous Agency Services,10/12/2010,1064,1399.96,Revenue,HILLDALE AND NORTHVIEW
Adult Social Care,Adult u65 Mental Health Needs,MH Res Care Ext- Mitcham West,Third Party Payments,Private Contractors,Miscellaneous Agency Services,10/25/2010,1065,1399.96,Revenue,HILLDALE AND NORTHVIEW
Adult Social Care,Adult u65 Mental Health Needs,MH ResidentialCare Ext - Wim,Third Party Payments,Private Contractors,Miscellaneous Agency Services,10/21/2010,1066,6500,Revenue,EALING COUNCIL
Adult Social Care,Adult u65 Mental Health Needs,MH ResidentialCare Ext - Wim,Third Party Payments,Private Contractors,Miscellaneous Agency Services,10/12/2010,1067,6500,Revenue,SIGNHEALTH
Adult Social Care,Adult u65 Mental Health Needs,MH ResidentialCare Ext - Wim,Third Party Payments,Private Contractors,Miscellaneous Agency Services,10/11/2010,1068,6116.69,Revenue,EALING COUNCIL
Adult Social Care,Adult u65 Mental Health Needs,MH ResidentialCare Ext - Wim,Third Party Payments,Private Contractors,Miscellaneous Agency Services,10/7/2010,1069,3632,Revenue,CARE MANAGEMENT GROUP
Adult Social Care,Adult u65 Mental Health Needs,MH ResidentialCare Ext - Wim,Third Party Payments,Private Contractors,Miscellaneous Agency Services,10/5/2010,1070,3552.52,Revenue,COMMUNITY HOUSING & THERAPY
Adult Social Care,Adult u65 Mental Health Needs,MH ResidentialCare Ext - Wim,Third Party Payments,Private Contractors,Miscellaneous Agency Services,10/28/2010,1071,3366.72,Revenue,RNIB REDHILL COLLEGE
Adult Social Care,Adult u65 Mental Health Needs,MH ResidentialCare Ext - Wim,Third Party Payments,Private Contractors,Miscellaneous Agency Services,10/4/2010,1072,3171.08,Revenue,MENTAL HEALTH CARE (UK) LTD
Adult Social Care,Adult u65 Mental Health Needs,MH ResidentialCare Ext - Wim,Third Party Payments,Private Contractors,Miscellaneous Agency Services,10/4/2010,1073,3171.08,Revenue,MENTAL HEALTH CARE (UK) LTD
Adult Social Care,Adult u65 Mental Health Needs,MH ResidentialCare Ext - Wim,Third Party Payments,Private Contractors,Miscellaneous Agency Services,10/4/2010,1074,2756.36,Revenue,ASRA G.LONDON HOUSING ASS.LTD
Adult Social Care,Adult u65 Mental Health Needs,MH ResidentialCare Ext - Wim,Third Party Payments,Private Contractors,Miscellaneous Agency Services,10/27/2010,1075,2756.36,Revenue,ASRA G.LONDON HOUSING ASS.LTD
Adult Social Care,Adult u65 Mental Health Needs,MH ResidentialCare Ext - Wim,Third Party Payments,Private Contractors,Miscellaneous Agency Services,10/4/2010,1076,2247.52,Revenue,QUALITY CARE CHOICE LTD
Adult Social Care,Adult u65 Mental Health Needs,MH ResidentialCare Ext - Wim,Third Party Payments,Private Contractors,Miscellaneous Agency Services,10/22/2010,1077,2247.52,Revenue,QUALITY CARE CHOICE LTD
Adult Social Care,Adult u65 Mental Health Needs,MH ResidentialCare Ext - Wim,Third Party Payments,Private Contractors,Miscellaneous Agency Services,10/4/2010,1078,1524.76,Revenue,ALDWICK RESIDENTIAL CARE HOME
Adult Social Care,Adult u65 Mental Health Needs,MH ResidentialCare Ext-Morden,Third Party Payments,Private Contractors,Miscellaneous Agency Services,10/5/2010,1079,7136.5,Revenue,BROOKDALE HEALTH CARE
Adult Social Care,Adult u65 Mental Health Needs,MH ResidentialCare Ext-Morden,Third Party Payments,Private Contractors,Miscellaneous Agency Services,10/7/2010,1080,2400,Revenue,ABBEY HOUSE RESIDENTIAL HOMES
Adult Social Care,Adult u65 Mental Health Needs,MH ResidentialCare Ext-Morden,Third Party Payments,Private Contractors,Miscellaneous Agency Services,10/27/2010,1081,2400,Revenue,ABBEY HOUSE RESIDENTIAL HOMES
Adult Social Care,Adult u65 Mental Health Needs,MH ResidentialCare Ext-Morden,Third Party Payments,Private Contractors,Miscellaneous Agency Services,10/4/2010,1082,1834.52,Revenue,ROSEDALE REST HOME
Adult Social Care,Adult u65 Mental Health Needs,MH ResidentialCare Ext-Morden,Third Party Payments,Private Contractors,Miscellaneous Agency Services,10/25/2010,1083,1000,Revenue,ABBEY HOUSE RESIDENTIAL HOMES
Adult Social Care,Adult u65 Mental Health Needs,MH Voluntary Organisations,Supplies & Services,Grants and Subscriptions,Grants - Running Expenses,10/5/2010,1084,20372.34,Revenue,MERTON MIND
Adult Social Care,Adult u65 Mental Health Needs,MH Waldemar Road,Employees,Indirect Employee Expenses,Health Staff in PCT Pool,10/15/2010,1085,3564.23,Revenue,SW LONDON ST GEORGES NHS TRUST
Adult Social Care,Adult u65 Mental Health Needs,MH Welfare Benefits Advice,Third Party Payments,Private Contractors,Miscellaneous Agency Services,10/18/2010,1086,14500,Revenue,SW LONDON ST GEORGES NHS TRUST
Childrens & Education Services,Assuring Access To Schools,Milk,Supplies & Services,Equip Furniture/Materials,Milk and Meals,10/25/2010,1087,12045.28,Revenue,COOL MILK LTD.
Childrens & Education Services,Assuring Access To Schools,Milk,Supplies & Services,Equip Furniture/Materials,Milk and Meals,10/27/2010,1088,5962.84,Revenue,COOL MILK AT SCHOOL LTD
Childrens & Education Services,Assuring Access To Schools,Milk,Supplies & Services,Equip Furniture/Materials,Milk and Meals,10/5/2010,1089,3435.64,Revenue,COOL MILK LTD.
,,Mitcham Junction station acces,"New Const, Conv & Renvtion",Dsgn/Sprvsn-Ext Cnsltcy Fees,Dsgn/Sprvsn-Ext Cnsltcy Fees,10/21/2010,1090,37126.6,Capital,REDACTED
,,Mitcham Junction station acces,"New Const, Conv & Renvtion",Ste Wrk-Rn & Mt-Main Contractr,Ste Wrk-Rn & Mt-Main Contractr,10/1/2010,1091,15965.57,Capital,FM CONWAY LTD
,,Mitcham Junction station acces,"New Const, Conv & Renvtion",Ste Wrk-Rn & Mt-Main Contractr,Ste Wrk-Rn & Mt-Main Contractr,10/19/2010,1092,6706.75,Capital,FM CONWAY LTD
,,Mitcham Junction station acces,"New Const, Conv & Renvtion",Ste Wrk-Rn & Mt-Other Costs,Ste Wrk-Rn & Mt-Other Costs,10/7/2010,1093,2742.08,Capital,ABACUS LIGHTING LTD
Cultural Env Reg&Plan Services,Library Service,Mitcham Library,Premises Related Expenditure,Energy Costs,Electricity,10/28/2010,1094,1567.34,Revenue,EDF ENERGY 1 LIMITED
Childrens & Education Services,Pre-School Ed (inc Nursery),Mitcham MAT (Premises),Premises Related Expenditure,Cleaning and Domestic Supplies,Cleaning Services,10/18/2010,1095,1299.4,Revenue,LLOYDS TSB COMMERCIAL FIN LTD
Cultural Env Reg&Plan Services,Open Spaces,Mitcham Parks,Supplies & Services,Equip Furniture/Materials,Equip-Purchases,10/28/2010,1096,865.67,Revenue,P J HARVEY & CO LTD
,,Monthly Payment to Schools,Fund Balances,,Payments X,10/7/2010,1097,557005.29,Revenue,WIMBLEDON COLLEGE SCHOOL
,,Monthly Payment to Schools,Fund Balances,,Payments X,10/7/2010,1098,519222.41,Revenue,URSULINE HIGH SCHOOL
,,Monthly Payment to Schools,Fund Balances,,Payments X,10/7/2010,1099,470341.79,Revenue,RAYNES PARK SECONDARY SCHOOL
,,Monthly Payment to Schools,Fund Balances,,Payments X,10/7/2010,1100,423263.67,Revenue,RICARDS LODGE SECONDARY SCHOOL
,,Monthly Payment to Schools,Fund Balances,,Payments X,10/7/2010,1101,394077.42,Revenue,RUTLISH SCHOOL
,,Monthly Payment to Schools,Fund Balances,,Payments X,10/7/2010,1102,344617.53,Revenue,BISHOPSFORD COMMUNITY SCHOOL
,,Monthly Payment to Schools,Fund Balances,,Payments X,10/7/2010,1103,285888.94,Revenue,CRICKET GREEN SPECIAL
,,Monthly Payment to Schools,Fund Balances,,Payments X,10/7/2010,1104,157208.88,Revenue,GORRINGE PARK PRIMARY SCHOOL
,,Monthly Payment to Schools,Fund Balances,,Payments X,10/7/2010,1105,155559.93,Revenue,BISHOP GILPIN C OF E PRIMARY
,,Monthly Payment to Schools,Fund Balances,,Payments X,10/7/2010,1106,150416.25,Revenue,ST MARKS PRIMARY SCHOOL
,,Monthly Payment to Schools,Fund Balances,,Payments X,10/7/2010,1107,150112.92,Revenue,ST ANNS SCHOOL
,,Monthly Payment to Schools,Fund Balances,,Payments X,10/7/2010,1108,141820.97,Revenue,CRANMER PRIMARY SCHOOL
,,Monthly Payment to Schools,Fund Balances,,Payments X,10/7/2010,1109,137400.99,Revenue,WEST WIMBLEDON PRIMARY SCHOOL
,,Monthly Payment to Schools,Fund Balances,,Payments X,10/7/2010,1110,135894.69,Revenue,DUNDONALD PRIMARY SCHOOL
,,Monthly Payment to Schools,Fund Balances,,Payments X,10/7/2010,1111,135137.71,Revenue,MALMESBURY PRIMARY SCHOOL
,,Monthly Payment to Schools,Fund Balances,,Payments X,10/7/2010,1112,134596.46,Revenue,GARDEN PRIMARY SCHOOL
,,Monthly Payment to Schools,Fund Balances,,Payments X,10/7/2010,1113,130397.67,Revenue,WIMBLEDON CHASE PRIMARY SCHOOL
,,Monthly Payment to Schools,Fund Balances,,Payments X,10/7/2010,1114,113447.46,Revenue,LIBERTY PRIMARY SCHOOL
,,Monthly Payment to Schools,Fund Balances,,Payments X,10/7/2010,1115,112967.24,Revenue,ARAGON PRIMARY SCHOOL
,,Monthly Payment to Schools,Fund Balances,,Payments X,10/7/2010,1116,111958.63,Revenue,HASLEMERE PRIMARY SCHOOL
,,Monthly Payment to Schools,Fund Balances,,Payments X,10/7/2010,1117,110777.69,Revenue,HATFEILD PRIMARY SCHOOL
,,Monthly Payment to Schools,Fund Balances,,Payments X,10/7/2010,1118,110760.32,Revenue,POPLAR PRIMARY SCHOOL
,,Monthly Payment to Schools,Fund Balances,,Payments X,10/7/2010,1119,108558.51,Revenue,LONESOME PRIMARY SCHOOL
,,Monthly Payment to Schools,Fund Balances,,Payments X,10/7/2010,1120,106837.19,Revenue,PRIORY C OF E MIDDLE SCHOOL
,,Monthly Payment to Schools,Fund Balances,,Payments X,10/7/2010,1121,106785.85,Revenue,ST THOMAS OF CANTERBURY PRIMAR
,,Monthly Payment to Schools,Fund Balances,,Payments X,10/7/2010,1122,103765.03,Revenue,ABBOTSBURY PRIMARY SCHOOL
,,Monthly Payment to Schools,Fund Balances,,Payments X,10/7/2010,1123,103730.99,Revenue,ST TERESAS RC PRMIARY SCHOOL
